Workbook

Sheet Series Winners
B2: MU40 | F2: FU40
B4: Name | C4: Club | D4: Point | E4: Races completed | F4: Name
B9: MO40 | F9: FO40
B15: M050
B19: MO60
B23: MO70

Sheet Series Table
B1: 2017 Summer Series | G1: Torpantau | I1: Preseli Beast | K1: Cwmdu | M1: Pen Y Fan | O1: Fan Brycheiniog | Q1: Llyn Y Fan
A2: Pos | B2: Name | C2: Club | D2: Gender | E2: Cat. | F2: Total | G2: Time | H2: Score | I2: Time | J2: Score | K2: Time | L2: Score | M2: Time | N2: Score | O2: Time | P2: Score | Q2: Time | R2: Score | S2: Competed | T2: Ave (Best of 4) | V2: WFRA membership as of March 2017
A3: =ROW(A1) -> 1 | B3: Dan Doherty | C3: =IFERROR(VLOOKUP(B3,INDIRECT("'"&$M$1&"'!"&"$C$2:$H$200"),2,FALSE),"") -> Mynydd Du | D3: =IFERROR(VLOOKUP(B3,INDIRECT("'"&$M$1&"'!"&"$C$2:$H$200"),3,FALSE),"") -> M | E3: =IFERROR(VLOOKUP(B3,INDIRECT("'"&$M$1&"'!"&"$C$2:$H$200"),4,FALSE),"") -> M | F3: =SUM(LARGE((H3,J3,L3,N3,P3,R3),{1,2,3,4})) -> 517.005956 | G3: =IFERROR(VLOOKUP(B3,INDIRECT("'"&$G$1&"'!"&"$C$2:$H$200"),5,FALSE),"") -> 01:03:35 | H3: =IFERROR(VLOOKUP(B3,INDIRECT("'"&$G$1&"'!"&"$C$2:$H$200"),6,FALSE),0) -> 128.4888625 | I3: =IFERROR(VLOOKUP(B3,INDIRECT("'"&$I$1&"'!"&"$C$2:$G$200"),5,FALSE),"") -> 0.1288773148 | J3: =IFERROR(VLOOKUP(B3,INDIRECT("'"&$I$1&"'!"&"$C$2:$H$200"),6,FALSE),0) -> 132.8026746 | K3: =IFERROR(VLOOKUP(B3,INDIRECT("'"&$K$1&"'!"&"$C$2:$H$200"),5,FALSE),"") ->  | L3: =IFERROR(VLOOKUP(B3,INDIRECT("'"&$K$1&"'!"&"$C$2:$H$200"),6,FALSE),0) -> 0 | M3: =IFERROR(VLOOKUP(B3,INDIRECT("'"&$M$1&"'!"&"$C$2:$h$200"),5,FALSE),"") -> 0.02537037037 | N3: =IFERROR(VLOOKUP(B3,INDIRECT("'"&$M$1&"'!"&"$C$2:$h$200"),6,FALSE),0) -> 127.9973722 | O3: =IFERROR(VLOOKUP(B3,INDIRECT("'"&$O$1&"'!"&"$C$2:$h$200"),5,FALSE),"") -> 0.05253229167 | P3: =IFERROR(VLOOKUP(B3,INDIRECT("'"&$O$1&"'!"&"$C$2:$h$200"),6,FALSE),0) -> 127.7170467 | Q3: =IFERROR(VLOOKUP(B3,INDIRECT("'"&$Q$1&"'!"&"$C$2:$h$200"),5,FALSE),"") ->  | R3: =IFERROR(VLOOKUP(B3,INDIRECT("'"&$Q$1&"'!"&"$C$2:$h$200"),6,FALSE),0) -> 0 | S3: =6-COUNTIF(G3:Q3,"") -> 4 | T3: =F3/IF(S3>4,4,S3) -> 129.251489 | V3: =COUNTIF(#REF!,'Series Table'!B3)>0 -> 
A4: =ROW(A2) -> 2 | B4: Jez Brown | C4: =IFERROR(VLOOKUP(B4,INDIRECT("'"&$M$1&"'!"&"$C$2:$H$200"),2,FALSE),"") -> Buckley Runners | D4: =IFERROR(VLOOKUP(B4,INDIRECT("'"&$M$1&"'!"&"$C$2:$H$200"),3,FALSE),"") -> M | E4: =IFERROR(VLOOKUP(B4,INDIRECT("'"&$M$1&"'!"&"$C$2:$H$200"),4,FALSE),"") -> M40 | F4: =SUM(LARGE((H4,J4,L4,N4,P4,R4),{1,2,3,4})) -> 487.877411 | H4: 0 | I4: 0.1293055556 | J4: 132.5793876 | K4: 01:24:43 | L4: 119.4427716 | M4: 0.0269212963 | N4: 123.5957517 | O4: 0.0637662037 | P4: 112.2595002 | R4: 0 | S4: 4 | T4: 121.9693528 | V4: =COUNTIF(#REF!,'Series Table'!B4)>0 -> 
A5: 3 | B5: Andy Pritchard | C5: =IFERROR(VLOOKUP(B5,INDIRECT("'"&$G$1&"'!"&"$C$2:$H$200"),2,FALSE),"") -> Buckley Runners | D5: =IFERROR(VLOOKUP(B5,INDIRECT("'"&$G$1&"'!"&"$C$2:$H$200"),3,FALSE),"") -> M | E5: =IFERROR(VLOOKUP(B5,INDIRECT("'"&$G$1&"'!"&"$C$2:$H$200"),4,FALSE),"") -> M40 | F5: =SUM(LARGE((H5,J5,L5,N5,P5,R5),{1,2,3,4})) -> 438.6712221 | G5: 01:20:18 | H5: 109.6879003 | I5: 0.1715277778 | J5: 110.5644937 | K5: 01:34:01 | L5: 110.5993851 | N5: 0 | O5: 0.06699305556 | P5: 107.819443 | R5: 0 | S5: 4 | T5: 109.6678055 | V5: =COUNTIF(#REF!,'Series Table'!B5)>0 -> 
A6: 4 | B6: Hayley Evans | C6: =IFERROR(VLOOKUP(B6,INDIRECT("'"&$M$1&"'!"&"$C$2:$H$200"),2,FALSE),"") -> Buckley Runners | D6: =IFERROR(VLOOKUP(B6,INDIRECT("'"&$M$1&"'!"&"$C$2:$H$200"),3,FALSE),"") -> F | E6: =IFERROR(VLOOKUP(B6,INDIRECT("'"&$M$1&"'!"&"$C$2:$H$200"),4,FALSE),"") -> F | F6: =SUM(LARGE((H6,J6,L6,N6,P6,R6),{1,2,3,4})) -> 438.5551483 | G6: 01:22:44 | H6: 106.95117 | I6: 0.1618287037 | J6: 115.6216432 | K6: 01:36:29 | L6: 108.2538274 | M6: 0.03289351852 | N6: 106.646228 | O6: 0.06705914352 | P6: 107.7285078 | R6: 0 | S6: 5 | T6: 109.6387871 | V6: =COUNTIF(#REF!,'Series Table'!B6)>0 -> 
A7: 5 | B7: Rhian Probert | C7: Mynydd Du | D7: F | E7: F40 | F7: =SUM(LARGE((H7,J7,L7,N7,P7,R7),{1,2,3,4})) -> 414.3887624 | H7: 0 | I7: 0.1846990741 | J7: 103.696909 | K7: 01:42:06 | L7: 102.9129291 | M7: 0.03412037037 | N7: 103.1643491 | O7: 0.06932222222 | P7: 104.6145753 | R7: 0 | S7: 4 | T7: 103.5971906 | V7: =COUNTIF(#REF!,'Series Table'!B7)>0 -> 
A8: 6 | B8: Rona Davies | C8: Mynydd Du | D8: F | E8: F50 | F8: =SUM(LARGE((H8,J8,L8,N8,P8,R8),{1,2,3,4})) -> 388.6840473 | G8: 01:30:10 | H8: 98.59102128 | I8: 0.1886921296 | J8: 101.6149083 | K8: 01:53:15 | L8: 92.31037434 | M8: 0.03658564815 | N8: 96.16774335 | O8: 0.08060706019 | P8: 89.08695616 | R8: 0 | S8: 5 | T8: 97.17101182 | V8: =COUNTIF(#REF!,'Series Table'!B8)>0 -> 
A9: 7 | B9: Sasha Habgood | C9: MDC | D9: F | E9: F40 | F9: =SUM(LARGE((H9,J9,L9,N9,P9,R9),{1,2,3,4})) -> 373.3514188 | G9: 01:35:28 | H9: 92.63019776 | I9: 0.2121527778 | J9: 89.38240015 | K9: 01:57:16 | L9: 88.49091889 | M9: 0.03840277778 | N9: 91.01062083 | O9: 0.07243738426 | P9: 100.3282001 | R9: 0 | S9: 5 | T9: 93.3378547 | V9: =COUNTIF(#REF!,'Series Table'!B9)>0 -> 
A10: 8 | B10: Mark Lunt | C10: Westbury Harriers | D10: M | E10: M | F10: =SUM(LARGE((H10,J10,L10,N10,P10,R10),{1,2,3,4})) -> 343.014712 | G10: 01:14:06 | H10: 116.6609391 | J10: 0 | K10: 01:32:23 | L10: 112.1525246 | M10: 0.03023148148 | N10: 114.2012482 | P10: 0 | R10: 0 | S10: 3 | T10: 114.3382373 | V10: =COUNTIF(#REF!,'Series Table'!B10)>0 -> 
A11: 9 | B11: David York | C11: Tattenhall Runners | D11: M | E11: M50 | F11: =SUM(LARGE((H11,J11,L11,N11,P11,R11),{1,2,3,4})) -> 341.9597418 | G11: 01:39:15 | H11: 88.37514449 | J11: 0 | K11: 02:02:38 | L11: 83.38774605 | M11: 0.04228009259 | N11: 80.00656958 | O11: 0.07980520833 | P11: 90.19028172 | R11: 0 | S11: 4 | T11: 85.48993546 | V11: =COUNTIF(#REF!,'Series Table'!B11)>0 -> 
A12: 10 | B12: Daniel Lewis | C12: =IFERROR(VLOOKUP(B12,INDIRECT("'"&$I$1&"'!"&"$C$2:$H$200"),2,FALSE),"") -> Wye Valley Runners | D12: =IFERROR(VLOOKUP(B12,INDIRECT("'"&$I$1&"'!"&"$C$2:$H$200"),3,FALSE),"") -> M | E12: =IFERROR(VLOOKUP(B12,INDIRECT("'"&$I$1&"'!"&"$C$2:$H$200"),4,FALSE),"") -> M40 | F12: =SUM(LARGE((H12,J12,L12,N12,P12,R12),{1,2,3,4})) -> 339.3768065 | G12: 01:20:17 | H12: 109.706645 | I12: 0.1563078704 | J12: 118.5002354 | K12: 01:33:25 | L12: 111.1699261 | N12: 0 | P12: 0 | R12: 0 | S12: 3 | T12: 113.1256022 | V12: =COUNTIF(#REF!,'Series Table'!B12)>0 -> 
A13: 11 | B13: John Aggleton | C13: =IFERROR(VLOOKUP(B13,INDIRECT("'"&$M$1&"'!"&"$C$2:$H$200"),2,FALSE),"") -> MDC | D13: =IFERROR(VLOOKUP(B13,INDIRECT("'"&$M$1&"'!"&"$C$2:$H$200"),3,FALSE),"") -> M | E13: =IFERROR(VLOOKUP(B13,INDIRECT("'"&$M$1&"'!"&"$C$2:$H$200"),4,FALSE),"") -> M60 | F13: =SUM(LARGE((H13,J13,L13,N13,P13,R13),{1,2,3,4})) -> 327.5458385 | H13: 0 | I13: 0.1664583333 | J13: 113.2077294 | K13: 01:38:17 | L13: 106.5422042 | M13: 0.03248842593 | N13: 107.795905 | P13: 0 | R13: 0 | S13: 3 | T13: 109.1819462 | V13: =COUNTIF(#REF!,'Series Table'!B13)>0 -> 
A14: 12 | B14: Paul Tucker | C14: =IFERROR(VLOOKUP(B14,INDIRECT("'"&$M$1&"'!"&"$C$2:$H$200"),2,FALSE),"") -> Mynydd Du | D14: =IFERROR(VLOOKUP(B14,INDIRECT("'"&$M$1&"'!"&"$C$2:$H$200"),3,FALSE),"") -> M | E14: =IFERROR(VLOOKUP(B14,INDIRECT("'"&$M$1&"'!"&"$C$2:$H$200"),4,FALSE),"") -> M50 | F14: =SUM(LARGE((H14,J14,L14,N14,P14,R14),{1,2,3,4})) -> 315.5033965 | G14: 01:21:36 | H14: 108.2258115 | I14: 0.1844675926 | J14: 103.8176047 | L14: 0 | M14: 0.0340162037 | N14: 103.4599803 | P14: 0 | R14: 0 | S14: 3 | T14: 105.1677988 | V14: =COUNTIF(#REF!,'Series Table'!B14)>0 -> 
A15: 13 | B15: James Woodier | C15: =IFERROR(VLOOKUP(B15,INDIRECT("'"&$G$1&"'!"&"$C$2:$H$200"),2,FALSE),"") -> Mynydd Du | D15: =IFERROR(VLOOKUP(B15,INDIRECT("'"&$G$1&"'!"&"$C$2:$H$200"),3,FALSE),"") -> M | E15: =IFERROR(VLOOKUP(B15,INDIRECT("'"&$G$1&"'!"&"$C$2:$H$200"),4,FALSE),"") -> M | F15: =SUM(LARGE((H15,J15,L15,N15,P15,R15),{1,2,3,4})) -> 306.7916834 | G15: 01:26:54 | H15: 102.264988 | J15: 0 | K15: 01:41:11 | L15: 103.7845891 | N15: 0 | O15: 0.07213657407 | P15: 100.7421064 | R15: 0 | S15: 3 | T15: 102.2638945 | V15: =COUNTIF(#REF!,'Series Table'!B15)>0 -> 
A16: 14 | B16: Emma McWilliams | C16: =IFERROR(VLOOKUP(B16,INDIRECT("'"&$I$1&"'!"&"$C$2:$H$200"),2,FALSE),"") -> Mynydd Du | D16: =IFERROR(VLOOKUP(B16,INDIRECT("'"&$I$1&"'!"&"$C$2:$H$200"),3,FALSE),"") -> F | E16: =IFERROR(VLOOKUP(B16,INDIRECT("'"&$I$1&"'!"&"$C$2:$H$200"),4,FALSE),"") -> F | F16: =SUM(LARGE((H16,J16,L16,N16,P16,R16),{1,2,3,4})) -> 301.4509983 | G16: 01:29:25 | H16: 99.43453404 | I16: 0.1896180556 | J16: 101.1321256 | K16: 01:44:14 | L16: 100.8843386 | N16: 0 | P16: 0 | R16: 0 | S16: 3 | T16: 100.4836661 | V16: =COUNTIF(#REF!,'Series Table'!B16)>0 -> 
A17: 15 | B17: Bev Tucker | C17: =IFERROR(VLOOKUP(B17,INDIRECT("'"&$I$1&"'!"&"$C$2:$H$200"),2,FALSE),"") -> Mynydd Du | D17: =IFERROR(VLOOKUP(B17,INDIRECT("'"&$I$1&"'!"&"$C$2:$H$200"),3,FALSE),"") -> F | E17: =IFERROR(VLOOKUP(B17,INDIRECT("'"&$I$1&"'!"&"$C$2:$H$200"),4,FALSE),"") -> F50 | F17: =SUM(LARGE((H17,J17,L17,N17,P17,R17),{1,2,3,4})) -> 266.8187399 | G17: 01:41:55 | H17: 85.375988 | I17: 0.1949421296 | J17: 98.3561247 | K17: 02:02:57 | L17: 83.08662715 | N17: 0 | P17: 0 | R17: 0 | S17: 3 | T17: 88.93957995 | V17: =COUNTIF(#REF!,'Series Table'!B17)>0 -> 
A18: 16 | B18: Gary Gunner | C18: =IFERROR(VLOOKUP(B18,INDIRECT("'"&$M$1&"'!"&"$C$2:$H$200"),2,FALSE),"") -> Croft Ambrey | D18: =IFERROR(VLOOKUP(B18,INDIRECT("'"&$M$1&"'!"&"$C$2:$H$200"),3,FALSE),"") -> M | E18: =IFERROR(VLOOKUP(B18,INDIRECT("'"&$M$1&"'!"&"$C$2:$H$200"),4,FALSE),"") -> M70 | F18: =SUM(LARGE((H18,J18,L18,N18,P18,R18),{1,2,3,4})) -> 253.8079726 | H18: 0 | I18: 0.2129861111 | J18: 88.94789567 | K18: 02:02:45 | L18: 83.27680751 | M18: 0.04172453704 | N18: 81.58326946 | P18: 0 | R18: 0 | S18: 3 | T18: 84.60265755 | V18: =COUNTIF(#REF!,'Series Table'!B18)>0 -> 
A19: 17 | B19: Samuel Gregory | C19: =IFERROR(VLOOKUP(B19,INDIRECT("'"&$I$1&"'!"&"$C$2:$H$200"),2,FALSE),"") -> Machen | D19: =IFERROR(VLOOKUP(B19,INDIRECT("'"&$I$1&"'!"&"$C$2:$H$200"),3,FALSE),"") -> M | E19: =IFERROR(VLOOKUP(B19,INDIRECT("'"&$I$1&"'!"&"$C$2:$H$200"),4,FALSE),"") -> M | F19: =SUM(LARGE((H19,J19,L19,N19,P19,R19),{1,2,3,4})) -> 243.2510231 | H19: 0 | I19: 0.1479513889 | J19: 122.8573498 | K19: 01:23:43 | L19: 120.3936733 | N19: 0 | P19: 0 | R19: 0 | S19: 2 | T19: 121.6255115 | V19: =COUNTIF(#REF!,'Series Table'!B19)>0 -> 
A20: 18 | B20: Joc Dodd | C20: =IFERROR(VLOOKUP(B20,INDIRECT("'"&$M$1&"'!"&"$C$2:$H$200"),2,FALSE),"") -> Chepstow Harriers | D20: =IFERROR(VLOOKUP(B20,INDIRECT("'"&$M$1&"'!"&"$C$2:$H$200"),3,FALSE),"") -> F | E20: =IFERROR(VLOOKUP(B20,INDIRECT("'"&$M$1&"'!"&"$C$2:$H$200"),4,FALSE),"") -> F60 | F20: =SUM(LARGE((H20,J20,L20,N20,P20,R20),{1,2,3,4})) -> 237.2389191 | G20: 01:43:04 | H20: 84.08260177 | J20: 0 | K20: 02:05:19 | L20: 80.83615962 | M20: 0.04498842593 | N20: 72.32015767 | P20: 0 | R20: 0 | S20: 3 | T20: 79.07963969 | V20: =COUNTIF(#REF!,'Series Table'!B20)>0 -> 
A21: 19 | B21: Nathan Brickman | C21: =IFERROR(VLOOKUP(B21,INDIRECT("'"&$G$1&"'!"&"$C$2:$H$200"),2,FALSE),"") -> Belpher Harriers | D21: =IFERROR(VLOOKUP(B21,INDIRECT("'"&$G$1&"'!"&"$C$2:$H$200"),3,FALSE),"") -> M | E21: =IFERROR(VLOOKUP(B21,INDIRECT("'"&$G$1&"'!"&"$C$2:$H$200"),4,FALSE),"") -> M | F21: =SUM(LARGE((H21,J21,L21,N21,P21,R21),{1,2,3,4})) -> 233.6962893 | G21: 01:14:00 | H21: 116.7734075 | J21: 0 | K21: 01:27:22 | L21: 116.9228819 | N21: 0 | P21: 0 | R21: 0 | S21: 2 | T21: 116.8481447 | V21: =COUNTIF(#REF!,'Series Table'!B21)>0 -> 
A22: 20 | B22: Paul Jeggo | C22: =IFERROR(VLOOKUP(B22,INDIRECT("'"&$G$1&"'!"&"$C$2:$H$200"),2,FALSE),"") -> Springfield | D22: =IFERROR(VLOOKUP(B22,INDIRECT("'"&$G$1&"'!"&"$C$2:$H$200"),3,FALSE),"") -> M | E22: =IFERROR(VLOOKUP(B22,INDIRECT("'"&$G$1&"'!"&"$C$2:$H$200"),4,FALSE),"") -> M50 | F22: =SUM(LARGE((H22,J22,L22,N22,P22,R22),{1,2,3,4})) -> 226.159515 | G22: 01:21:16 | H22: 108.6007061 | I22: 0.1581134259 | J22: 117.558809 | L22: 0 | N22: 0 | P22: 0 | R22: 0 | S22: 2 | T22: 113.0797575 | V22: =COUNTIF(#REF!,'Series Table'!B22)>0 -> 
A23: 21 | B23: John Price | C23: =IFERROR(VLOOKUP(B23,INDIRECT("'"&$M$1&"'!"&"$C$2:$H$200"),2,FALSE),"") -> Hay Hotfooters | D23: =IFERROR(VLOOKUP(B23,INDIRECT("'"&$M$1&"'!"&"$C$2:$H$200"),3,FALSE),"") -> M | E23: =IFERROR(VLOOKUP(B23,INDIRECT("'"&$M$1&"'!"&"$C$2:$H$200"),4,FALSE),"") -> M60 | F23: =SUM(LARGE((H23,J23,L23,N23,P23,R23),{1,2,3,4})) -> 226.074438 | G23: 01:49:48 | H23: 76.50973164 | J23: 0 | L23: 0 | M23: 0.04171296296 | N23: 81.61611738 | O23: 0.09596956019 | P23: 67.94858898 | R23: 0 | S23: 3 | T23: 75.358146 | V23: =COUNTIF(#REF!,'Series Table'!B23)>0 -> 
A24: 22 | B24: Les Williams | C24: =IFERROR(VLOOKUP(B24,INDIRECT("'"&$M$1&"'!"&"$C$2:$H$200"),2,FALSE),"") -> Eryri | D24: =IFERROR(VLOOKUP(B24,INDIRECT("'"&$M$1&"'!"&"$C$2:$H$200"),3,FALSE),"") -> M | E24: =IFERROR(VLOOKUP(B24,INDIRECT("'"&$M$1&"'!"&"$C$2:$H$200"),4,FALSE),"") -> M70 | F24: =SUM(LARGE((H24,J24,L24,N24,P24,R24),{1,2,3,4})) -> 223.0362804 | G24: 01:52:16 | H24: 73.73551189 | J24: 0 | L24: 0 | M24: 0.04383101852 | N24: 75.60494909 | O24: 0.09179270833 | P24: 73.69581945 | R24: 0 | S24: 3 | T24: 74.34542681 | V24: =COUNTIF(#REF!,'Series Table'!B24)>0 -> 
A25: 23 | B25: Anthony Powell | C25: =IFERROR(VLOOKUP(B25,INDIRECT("'"&$M$1&"'!"&"$C$2:$H$200"),2,FALSE),"") -> Maldwyn Harriers | D25: =IFERROR(VLOOKUP(B25,INDIRECT("'"&$M$1&"'!"&"$C$2:$H$200"),3,FALSE),"") -> M | E25: =IFERROR(VLOOKUP(B25,INDIRECT("'"&$M$1&"'!"&"$C$2:$H$200"),4,FALSE),"") -> M40 | F25: =SUM(LARGE((H25,J25,L25,N25,P25,R25),{1,2,3,4})) -> 223.0023246 | H25: 0 | J25: 0 | K25: 01:34:44 | L25: 109.9179055 | M25: 0.030625 | N25: 113.0844191 | P25: 0 | R25: 0 | S25: 2 | T25: 111.5011623 | V25: =COUNTIF(#REF!,'Series Table'!B25)>0 -> 
A26: 24 | B26: Nick Biggs | C26: =IFERROR(VLOOKUP(B26,INDIRECT("'"&$M$1&"'!"&"$C$2:$H$200"),2,FALSE),"") -> Vegan Runners | D26: =IFERROR(VLOOKUP(B26,INDIRECT("'"&$M$1&"'!"&"$C$2:$H$200"),3,FALSE),"") -> M | E26: =IFERROR(VLOOKUP(B26,INDIRECT("'"&$M$1&"'!"&"$C$2:$H$200"),4,FALSE),"") -> M40 | F26: =SUM(LARGE((H26,J26,L26,N26,P26,R26),{1,2,3,4})) -> 222.5525599 | G26: 01:20:49 | H26: 109.1068137 | J26: 0 | L26: 0 | M26: 0.03049768519 | N26: 113.4457462 | P26: 0 | R26: 0 | S26: 2 | T26: 111.27628 | V26: =COUNTIF(#REF!,'Series Table'!B26)>0 -> 
A27: 25 | B27: Helen Brown | C27: =IFERROR(VLOOKUP(B27,INDIRECT("'"&$M$1&"'!"&"$C$2:$H$200"),2,FALSE),"") -> Mynydd Du | D27: =IFERROR(VLOOKUP(B27,INDIRECT("'"&$M$1&"'!"&"$C$2:$H$200"),3,FALSE),"") -> F | E27: =IFERROR(VLOOKUP(B27,INDIRECT("'"&$M$1&"'!"&"$C$2:$H$200"),4,FALSE),"") -> F40 | F27: =SUM(LARGE((H27,J27,L27,N27,P27,R27),{1,2,3,4})) -> 219.4034049 | H27: 0 | J27: 0 | K27: 01:36:06 | L27: 108.6183397 | M27: 0.03143518519 | N27: 110.7850651 | P27: 0 | R27: 0 | S27: 2 | T27: 109.7017024 | V27: =COUNTIF(#REF!,'Series Table'!B27)>0 -> 
A28: 26 | B28: Matthew Lawson | C28: =IFERROR(VLOOKUP(B28,INDIRECT("'"&$K$1&"'!"&"$C$2:$H$200"),2,FALSE),"") -> Chepstow Harriers | D28: =IFERROR(VLOOKUP(B28,INDIRECT("'"&$K$1&"'!"&"$C$2:$H$200"),3,FALSE),"") -> M | E28: =IFERROR(VLOOKUP(B28,INDIRECT("'"&$K$1&"'!"&"$C$2:$H$200"),4,FALSE),"") -> M40 | F28: =SUM(LARGE((H28,J28,L28,N28,P28,R28),{1,2,3,4})) -> 215.89267 | H28: 0 | J28: 0 | K28: 01:37:04 | L28: 107.6991347 | N28: 0 | O28: 0.06672118056 | P28: 108.1935353 | R28: 0 | S28: 2 | T28: 107.946335 | V28: =COUNTIF(#REF!,'Series Table'!B28)>0 -> 
A29: 27 | B29: Jeremy Jehan | C29: =IFERROR(VLOOKUP(B29,INDIRECT("'"&$I$1&"'!"&"$C$2:$H$200"),2,FALSE),"") -> Wye Valley Runners | D29: =IFERROR(VLOOKUP(B29,INDIRECT("'"&$I$1&"'!"&"$C$2:$H$200"),3,FALSE),"") -> M | E29: =IFERROR(VLOOKUP(B29,INDIRECT("'"&$I$1&"'!"&"$C$2:$H$200"),4,FALSE),"") -> M40 | F29: =SUM(LARGE((H29,J29,L29,N29,P29,R29),{1,2,3,4})) -> 209.1496966 | G29: 01:28:26 | H29: 100.540473 | I29: 0.1752777778 | J29: 108.6092236 | L29: 0 | N29: 0 | P29: 0 | R29: 0 | S29: 2 | T29: 104.5748483 | V29: =COUNTIF(#REF!,'Series Table'!B29)>0 -> 
A30: 28 | B30: Nick Dallimore | C30: =IFERROR(VLOOKUP(B30,INDIRECT("'"&$K$1&"'!"&"$C$2:$H$200"),2,FALSE),"") -> MDC | D30: =IFERROR(VLOOKUP(B30,INDIRECT("'"&$K$1&"'!"&"$C$2:$H$200"),3,FALSE),"") -> M | E30: =IFERROR(VLOOKUP(B30,INDIRECT("'"&$K$1&"'!"&"$C$2:$H$200"),4,FALSE),"") -> M60 | F30: =SUM(LARGE((H30,J30,L30,N30,P30,R30),{1,2,3,4})) -> 206.6780829 | H30: 0 | J30: 0 | K30: 01:43:25 | L30: 101.6609084 | N30: 0 | O30: 0.06902962963 | P30: 105.0171744 | R30: 0 | S30: 2 | T30: 103.3390414 | V30: =COUNTIF(#REF!,'Series Table'!B30)>0 -> 
A31: 29 | B31: Helen Marshall | C31: =IFERROR(VLOOKUP(B31,INDIRECT("'"&$M$1&"'!"&"$C$2:$H$200"),2,FALSE),"") -> Aberystwyth AC | D31: =IFERROR(VLOOKUP(B31,INDIRECT("'"&$M$1&"'!"&"$C$2:$H$200"),3,FALSE),"") -> F | E31: =IFERROR(VLOOKUP(B31,INDIRECT("'"&$M$1&"'!"&"$C$2:$H$200"),4,FALSE),"") -> F | F31: =SUM(LARGE((H31,J31,L31,N31,P31,R31),{1,2,3,4})) -> 203.7033992 | H31: 0 | J31: 0 | K31: 01:46:36 | L31: 98.63387112 | M31: 0.03344907407 | N31: 105.0695281 | P31: 0 | R31: 0 | S31: 2 | T31: 101.8516996 | V31: =COUNTIF(#REF!,'Series Table'!B31)>0 -> 
A32: 30 | B32: Kevin Hagley | C32: =IFERROR(VLOOKUP(B32,INDIRECT("'"&$M$1&"'!"&"$C$2:$H$200"),2,FALSE),"") -> South West Road Runners | D32: =IFERROR(VLOOKUP(B32,INDIRECT("'"&$M$1&"'!"&"$C$2:$H$200"),3,FALSE),"") -> M | E32: =IFERROR(VLOOKUP(B32,INDIRECT("'"&$M$1&"'!"&"$C$2:$H$200"),4,FALSE),"") -> M50 | F32: =SUM(LARGE((H32,J32,L32,N32,P32,R32),{1,2,3,4})) -> 202.1630008 | H32: 0 | J32: 0 | K32: 01:46:42 | L32: 98.53878094 | M32: 0.03395833333 | N32: 103.6242199 | P32: 0 | R32: 0 | S32: 2 | T32: 101.0815004 | V32: =COUNTIF(#REF!,'Series Table'!B32)>0 -> 
A33: 31 | B33: Andy Horlick | C33: =IFERROR(VLOOKUP(B33,INDIRECT("'"&$K$1&"'!"&"$C$2:$H$200"),2,FALSE),"") -> Forest Of Dean Ac | D33: =IFERROR(VLOOKUP(B33,INDIRECT("'"&$K$1&"'!"&"$C$2:$H$200"),3,FALSE),"") -> M | E33: =IFERROR(VLOOKUP(B33,INDIRECT("'"&$K$1&"'!"&"$C$2:$H$200"),4,FALSE),"") -> M40 | F33: =SUM(LARGE((H33,J33,L33,N33,P33,R33),{1,2,3,4})) -> 200.8192351 | H33: 0 | J33: 0 | K33: 01:52:09 | L33: 93.35636629 | N33: 0 | O33: 0.06725219907 | P33: 107.4628688 | R33: 0 | S33: 2 | T33: 100.4096175 | V33: =COUNTIF(#REF!,'Series Table'!B33)>0 -> 
A34: 32 | B34: David Mullin | C34: =IFERROR(VLOOKUP(B34,INDIRECT("'"&$K$1&"'!"&"$C$2:$H$200"),2,FALSE),"") -> Mercia Fell Runners | D34: =IFERROR(VLOOKUP(B34,INDIRECT("'"&$K$1&"'!"&"$C$2:$H$200"),3,FALSE),"") -> M | E34: =IFERROR(VLOOKUP(B34,INDIRECT("'"&$K$1&"'!"&"$C$2:$H$200"),4,FALSE),"") -> M40 | F34: =SUM(LARGE((H34,J34,L34,N34,P34,R34),{1,2,3,4})) -> 198.6333032 | H34: 0 | J34: 0 | K34: 01:45:56 | L34: 99.26780564 | N34: 0 | O34: 0.07313703704 | P34: 99.36549756 | R34: 0 | S34: 2 | T34: 99.3166516 | V34: =COUNTIF(#REF!,'Series Table'!B34)>0 -> 
A35: 33 | B35: Andy Stott | C35: =IFERROR(VLOOKUP(B35,INDIRECT("'"&$K$1&"'!"&"$C$2:$H$200"),2,FALSE),"") -> MDC | D35: =IFERROR(VLOOKUP(B35,INDIRECT("'"&$K$1&"'!"&"$C$2:$H$200"),3,FALSE),"") -> M | E35: =IFERROR(VLOOKUP(B35,INDIRECT("'"&$K$1&"'!"&"$C$2:$H$200"),4,FALSE),"") -> M50 | F35: =SUM(LARGE((H35,J35,L35,N35,P35,R35),{1,2,3,4})) -> 196.1936314 | H35: 0 | J35: 0 | K35: 01:49:28 | L35: 95.90795271 | N35: 0 | O35: 0.07246828704 | P35: 100.2856787 | R35: 0 | S35: 2 | T35: 98.09681571 | V35: =COUNTIF(#REF!,'Series Table'!B35)>0 -> 
A36: 34 | B36: Martin Carter | C36: =IFERROR(VLOOKUP(B36,INDIRECT("'"&$G$1&"'!"&"$C$2:$H$200"),2,FALSE),"") -> Hay Hotfooters | D36: =IFERROR(VLOOKUP(B36,INDIRECT("'"&$G$1&"'!"&"$C$2:$H$200"),3,FALSE),"") -> M | E36: =IFERROR(VLOOKUP(B36,INDIRECT("'"&$G$1&"'!"&"$C$2:$H$200"),4,FALSE),"") -> M50 | F36: =SUM(LARGE((H36,J36,L36,N36,P36,R36),{1,2,3,4})) -> 193.0233575 | G36: 01:35:31 | H36: 92.57396357 | J36: 0 | L36: 0 | N36: 0 | O36: 0.07234930556 | P36: 100.4493939 | R36: 0 | S36: 2 | T36: 96.51167873 | V36: =COUNTIF(#REF!,'Series Table'!B36)>0 -> 
A37: 35 | B37: Julian Boon | C37: =IFERROR(VLOOKUP(B37,INDIRECT("'"&$M$1&"'!"&"$C$2:$H$200"),2,FALSE),"") -> Forest of Dean AC | D37: =IFERROR(VLOOKUP(B37,INDIRECT("'"&$M$1&"'!"&"$C$2:$H$200"),3,FALSE),"") -> M | E37: =IFERROR(VLOOKUP(B37,INDIRECT("'"&$M$1&"'!"&"$C$2:$H$200"),4,FALSE),"") -> M40 | F37: =SUM(LARGE((H37,J37,L37,N37,P37,R37),{1,2,3,4})) -> 184.387956 | H37: 0 | J37: 0 | L37: 0 | M37: 0.03517361111 | N37: 100.1751889 | O37: 0.0841494213 | P37: 84.21276708 | R37: 0 | S37: 2 | T37: 92.19397798 | V37: =COUNTIF(#REF!,'Series Table'!B37)>0 -> 
A38: 36 | B38: John Jaspers | C38: =IFERROR(VLOOKUP(B38,INDIRECT("'"&$M$1&"'!"&"$C$2:$H$200"),2,FALSE),"") -> Hay Hotfooters | D38: =IFERROR(VLOOKUP(B38,INDIRECT("'"&$M$1&"'!"&"$C$2:$H$200"),3,FALSE),"") -> M | E38: =IFERROR(VLOOKUP(B38,INDIRECT("'"&$M$1&"'!"&"$C$2:$H$200"),4,FALSE),"") -> M40 | F38: =SUM(LARGE((H38,J38,L38,N38,P38,R38),{1,2,3,4})) -> 163.5125194 | H38: 0 | J38: 0 | L38: 0 | M38: 0.04126157407 | N38: 82.89718603 | O38: 0.08676388889 | P38: 80.61533333 | R38: 0 | S38: 2 | T38: 81.75625968 | V38: =COUNTIF(#REF!,'Series Table'!B38)>0 -> 
A39: 37 | B39: Karen Elvers | C39: =IFERROR(VLOOKUP(B39,INDIRECT("'"&$G$1&"'!"&"$C$2:$H$200"),2,FALSE),"") -> MDC | D39: =IFERROR(VLOOKUP(B39,INDIRECT("'"&$G$1&"'!"&"$C$2:$H$200"),3,FALSE),"") -> F | E39: =IFERROR(VLOOKUP(B39,INDIRECT("'"&$G$1&"'!"&"$C$2:$H$200"),4,FALSE),"") -> F40 | F39: =SUM(LARGE((H39,J39,L39,N39,P39,R39),{1,2,3,4})) -> 156.6484385 | G39: 01:48:18 | H39: 78.19675716 | J39: 0 | L39: 0 | N39: 0 | O39: 0.08833634259 | P39: 78.45168133 | R39: 0 | S39: 2 | T39: 78.32421925 | V39: =COUNTIF(#REF!,'Series Table'!B39)>0 -> 
A40: 38 | B40: Caroline Dallimore | C40: =IFERROR(VLOOKUP(B40,INDIRECT("'"&$K$1&"'!"&"$C$2:$H$200"),2,FALSE),"") -> MDC | D40: =IFERROR(VLOOKUP(B40,INDIRECT("'"&$K$1&"'!"&"$C$2:$H$200"),3,FALSE),"") -> F | E40: =IFERROR(VLOOKUP(B40,INDIRECT("'"&$K$1&"'!"&"$C$2:$H$200"),4,FALSE),"") -> F60 | F40: =SUM(LARGE((H40,J40,L40,N40,P40,R40),{1,2,3,4})) -> 155.9626525 | H40: 0 | J40: 0 | K40: 02:08:40 | L40: 77.65063869 | N40: 0 | O40: 0.08843784722 | P40: 78.31201382 | R40: 0 | S40: 2 | T40: 77.98132626 | V40: =COUNTIF(#REF!,'Series Table'!B40)>0 -> 
A41: 39 | B41: Paul Symons | C41: =IFERROR(VLOOKUP(B41,INDIRECT("'"&$K$1&"'!"&"$C$2:$H$200"),2,FALSE),"") -> Unattached | D41: =IFERROR(VLOOKUP(B41,INDIRECT("'"&$K$1&"'!"&"$C$2:$H$200"),3,FALSE),"") -> M | E41: =IFERROR(VLOOKUP(B41,INDIRECT("'"&$K$1&"'!"&"$C$2:$H$200"),4,FALSE),"") -> M50 | F41: =SUM(LARGE((H41,J41,L41,N41,P41,R41),{1,2,3,4})) -> 146.01401 | H41: 0 | J41: 0 | K41: 02:14:13 | L41: 72.37313386 | N41: 0 | O41: 0.09183263889 | P41: 73.64087613 | R41: 0 | S41: 2 | T41: 73.00700499 | V41: =COUNTIF(#REF!,'Series Table'!B41)>0 -> 
A42: 40 | B42: Dylan Griffiths | C42: =IFERROR(VLOOKUP(B42,INDIRECT("'"&$I$1&"'!"&"$C$2:$H$200"),2,FALSE),"") -> Rhedwyr Hebog | D42: =IFERROR(VLOOKUP(B42,INDIRECT("'"&$I$1&"'!"&"$C$2:$H$200"),3,FALSE),"") -> M | E42: =IFERROR(VLOOKUP(B42,INDIRECT("'"&$I$1&"'!"&"$C$2:$H$200"),4,FALSE),"") -> M | F42: =SUM(LARGE((H42,J42,L42,N42,P42,R42),{1,2,3,4})) -> 128.4395254 | H42: 0 | I42: 0.1372453704 | J42: 128.4395254 | L42: 0 | N42: 0 | P42: 0 | R42: 0 | S42: 1 | T42: 128.4395254 | V42: =COUNTIF(#REF!,'Series Table'!B42)>0 -> 
A43: 41 | B43: Michael Corrales | C43: =IFERROR(VLOOKUP(B43,INDIRECT("'"&$M$1&"'!"&"$C$2:$H$200"),2,FALSE),"") -> North Wales Road Runners | D43: =IFERROR(VLOOKUP(B43,INDIRECT("'"&$M$1&"'!"&"$C$2:$H$200"),3,FALSE),"") -> M | E43: =IFERROR(VLOOKUP(B43,INDIRECT("'"&$M$1&"'!"&"$C$2:$H$200"),4,FALSE),"") -> M | F43: =SUM(LARGE((H43,J43,L43,N43,P43,R43),{1,2,3,4})) -> 128.2930034 | H43: 0 | J43: 0 | L43: 0 | M43: 0.0252662037 | N43: 128.2930034 | P43: 0 | R43: 0 | S43: 1 | T43: 128.2930034 | V43: =COUNTIF(#REF!,'Series Table'!B43)>0 -> 
A44: 42 | B44: Daryl John | C44: =IFERROR(VLOOKUP(B44,INDIRECT("'"&$I$1&"'!"&"$C$2:$H$200"),2,FALSE),"") -> Trots | D44: =IFERROR(VLOOKUP(B44,INDIRECT("'"&$I$1&"'!"&"$C$2:$H$200"),3,FALSE),"") -> M | E44: =IFERROR(VLOOKUP(B44,INDIRECT("'"&$I$1&"'!"&"$C$2:$H$200"),4,FALSE),"") -> M40 | F44: =SUM(LARGE((H44,J44,L44,N44,P44,R44),{1,2,3,4})) -> 126.0497508 | H44: 0 | I44: 0.1418287037 | J44: 126.0497508 | L44: 0 | N44: 0 | P44: 0 | R44: 0 | S44: 1 | T44: 126.0497508 | V44: =COUNTIF(#REF!,'Series Table'!B44)>0 -> 
A45: 43 | B45: Samuel Bevan | C45: =IFERROR(VLOOKUP(B45,INDIRECT("'"&$M$1&"'!"&"$C$2:$H$200"),2,FALSE),"") -> Basingstoke & Mid Hants AC | D45: =IFERROR(VLOOKUP(B45,INDIRECT("'"&$M$1&"'!"&"$C$2:$H$200"),3,FALSE),"") -> M | E45: =IFERROR(VLOOKUP(B45,INDIRECT("'"&$M$1&"'!"&"$C$2:$H$200"),4,FALSE),"") -> M | F45: =SUM(LARGE((H45,J45,L45,N45,P45,R45),{1,2,3,4})) -> 125.9279536 | H45: 0 | J45: 0 | L45: 0 | M45: 0.02609953704 | N45: 125.9279536 | P45: 0 | R45: 0 | S45: 1 | T45: 125.9279536 | V45: =COUNTIF(#REF!,'Series Table'!B45)>0 -> 
A46: 44 | B46: Daniel Hooper | C46: =IFERROR(VLOOKUP(B46,INDIRECT("'"&$I$1&"'!"&"$C$2:$H$200"),2,FALSE),"") -> Cwmdu, Llandeilo | D46: =IFERROR(VLOOKUP(B46,INDIRECT("'"&$I$1&"'!"&"$C$2:$H$200"),3,FALSE),"") -> M | E46: =IFERROR(VLOOKUP(B46,INDIRECT("'"&$I$1&"'!"&"$C$2:$H$200"),4,FALSE),"") -> M40 | F46: =SUM(LARGE((H46,J46,L46,N46,P46,R46),{1,2,3,4})) -> 124.9936635 | H46: 0 | I46: 0.1438541667 | J46: 124.9936635 | L46: 0 | N46: 0 | P46: 0 | R46: 0 | S46: 1 | T46: 124.9936635 | V46: =COUNTIF(#REF!,'Series Table'!B46)>0 -> 
A47: 45 | B47: Billy Starling | C47: =IFERROR(VLOOKUP(B47,INDIRECT("'"&$M$1&"'!"&"$C$2:$H$200"),2,FALSE),"") -> Mercia Fell Runners | D47: =IFERROR(VLOOKUP(B47,INDIRECT("'"&$M$1&"'!"&"$C$2:$H$200"),3,FALSE),"") -> M | E47: =IFERROR(VLOOKUP(B47,INDIRECT("'"&$M$1&"'!"&"$C$2:$H$200"),4,FALSE),"") -> M | F47: =SUM(LARGE((H47,J47,L47,N47,P47,R47),{1,2,3,4})) -> 123.9570787 | H47: 0 | J47: 0 | L47: 0 | M47: 0.02679398148 | N47: 123.9570787 | P47: 0 | R47: 0 | S47: 1 | T47: 123.9570787 | V47: =COUNTIF(#REF!,'Series Table'!B47)>0 -> 
A48: 46 | B48: Balazs Pinter | C48: =IFERROR(VLOOKUP(B48,INDIRECT("'"&$I$1&"'!"&"$C$2:$H$200"),2,FALSE),"") -> Aberystwyth Ac | D48: =IFERROR(VLOOKUP(B48,INDIRECT("'"&$I$1&"'!"&"$C$2:$H$200"),3,FALSE),"") -> M | E48: =IFERROR(VLOOKUP(B48,INDIRECT("'"&$I$1&"'!"&"$C$2:$H$200"),4,FALSE),"") -> M40 | F48: =SUM(LARGE((H48,J48,L48,N48,P48,R48),{1,2,3,4})) -> 123.1530542 | H48: 0 | I48: 0.1473842593 | J48: 123.1530542 | L48: 0 | N48: 0 | P48: 0 | R48: 0 | S48: 1 | T48: 123.1530542 | V48: =COUNTIF(#REF!,'Series Table'!B48)>0 -> 
A49: 47 | B49: Little Dave Cumins | C49: =IFERROR(VLOOKUP(B49,INDIRECT("'"&$I$1&"'!"&"$C$2:$H$200"),2,FALSE),"") -> Ddmt/Kom/Ttb | D49: =IFERROR(VLOOKUP(B49,INDIRECT("'"&$I$1&"'!"&"$C$2:$H$200"),3,FALSE),"") -> M | E49: =IFERROR(VLOOKUP(B49,INDIRECT("'"&$I$1&"'!"&"$C$2:$H$200"),4,FALSE),"") -> M40 | F49: =SUM(LARGE((H49,J49,L49,N49,P49,R49),{1,2,3,4})) -> 122.1211061 | H49: 0 | I49: 0.1493634259 | J49: 122.1211061 | L49: 0 | N49: 0 | P49: 0 | R49: 0 | S49: 1 | T49: 122.1211061 | V49: =COUNTIF(#REF!,'Series Table'!B49)>0 -> 
A50: 48 | B50: Sam Hawking | C50: =IFERROR(VLOOKUP(B50,INDIRECT("'"&$I$1&"'!"&"$C$2:$H$200"),2,FALSE),"") -> Neath | D50: =IFERROR(VLOOKUP(B50,INDIRECT("'"&$I$1&"'!"&"$C$2:$H$200"),3,FALSE),"") -> M | E50: =IFERROR(VLOOKUP(B50,INDIRECT("'"&$I$1&"'!"&"$C$2:$H$200"),4,FALSE),"") -> M40 | F50: =SUM(LARGE((H50,J50,L50,N50,P50,R50),{1,2,3,4})) -> 121.7710886 | H50: 0 | I50: 0.1500347222 | J50: 121.7710886 | L50: 0 | N50: 0 | P50: 0 | R50: 0 | S50: 1 | T50: 121.7710886 | V50: =COUNTIF(#REF!,'Series Table'!B50)>0 -> 
A51: 49 | B51: Jim Webb | C51: =IFERROR(VLOOKUP(B51,INDIRECT("'"&$M$1&"'!"&"$C$2:$H$200"),2,FALSE),"") -> Team Bath AC | D51: =IFERROR(VLOOKUP(B51,INDIRECT("'"&$M$1&"'!"&"$C$2:$H$200"),3,FALSE),"") -> M | E51: =IFERROR(VLOOKUP(B51,INDIRECT("'"&$M$1&"'!"&"$C$2:$H$200"),4,FALSE),"") -> M | F51: =SUM(LARGE((H51,J51,L51,N51,P51,R51),{1,2,3,4})) -> 121.6248768 | H51: 0 | J51: 0 | L51: 0 | M51: 0.02761574074 | N51: 121.6248768 | P51: 0 | R51: 0 | S51: 1 | T51: 121.6248768 | V51: =COUNTIF(#REF!,'Series Table'!B51)>0 -> 
A52: 50 | B52: Robin Wood | C52: =IFERROR(VLOOKUP(B52,INDIRECT("'"&$K$1&"'!"&"$C$2:$H$200"),2,FALSE),"") -> Builth & District | D52: =IFERROR(VLOOKUP(B52,INDIRECT("'"&$K$1&"'!"&"$C$2:$H$200"),3,FALSE),"") -> M | E52: =IFERROR(VLOOKUP(B52,INDIRECT("'"&$K$1&"'!"&"$C$2:$H$200"),4,FALSE),"") -> M40 | F52: =SUM(LARGE((H52,J52,L52,N52,P52,R52),{1,2,3,4})) -> 120.4253701 | H52: 0 | J52: 0 | K52: 01:23:41 | L52: 120.4253701 | N52: 0 | P52: 0 | R52: 0 | S52: 1 | T52: 120.4253701 | V52: =COUNTIF(#REF!,'Series Table'!B52)>0 -> 
A53: 51 | B53: Andrew Reeves | C53: =IFERROR(VLOOKUP(B53,INDIRECT("'"&$M$1&"'!"&"$C$2:$H$200"),2,FALSE),"") -> Serpentine Running Club | D53: =IFERROR(VLOOKUP(B53,INDIRECT("'"&$M$1&"'!"&"$C$2:$H$200"),3,FALSE),"") -> M | E53: =IFERROR(VLOOKUP(B53,INDIRECT("'"&$M$1&"'!"&"$C$2:$H$200"),4,FALSE),"") -> M40 | F53: =SUM(LARGE((H53,J53,L53,N53,P53,R53),{1,2,3,4})) -> 119.5883061 | H53: 0 | J53: 0 | L53: 0 | M53: 0.02833333333 | N53: 119.5883061 | P53: 0 | R53: 0 | S53: 1 | T53: 119.5883061 | V53: =COUNTIF(#REF!,'Series Table'!B53)>0 -> 
A54: 52 | B54: Afan Humphries | C54: =IFERROR(VLOOKUP(B54,INDIRECT("'"&$I$1&"'!"&"$C$2:$H$200"),2,FALSE),"") -> Caerphilly | D54: =IFERROR(VLOOKUP(B54,INDIRECT("'"&$I$1&"'!"&"$C$2:$H$200"),3,FALSE),"") -> M | E54: =IFERROR(VLOOKUP(B54,INDIRECT("'"&$I$1&"'!"&"$C$2:$H$200"),4,FALSE),"") -> M | F54: =SUM(LARGE((H54,J54,L54,N54,P54,R54),{1,2,3,4})) -> 119.4175226 | H54: 0 | I54: 0.1545486111 | J54: 119.4175226 | L54: 0 | N54: 0 | P54: 0 | R54: 0 | S54: 1 | T54: 119.4175226 | V54: =COUNTIF(#REF!,'Series Table'!B54)>0 -> 
A55: 53 | B55: Sian Williams | C55: =IFERROR(VLOOKUP(B55,INDIRECT("'"&$I$1&"'!"&"$C$2:$H$200"),2,FALSE),"") -> Rhedwyr Hebog | D55: =IFERROR(VLOOKUP(B55,INDIRECT("'"&$I$1&"'!"&"$C$2:$H$200"),3,FALSE),"") -> F | E55: =IFERROR(VLOOKUP(B55,INDIRECT("'"&$I$1&"'!"&"$C$2:$H$200"),4,FALSE),"") -> F | F55: =SUM(LARGE((H55,J55,L55,N55,P55,R55),{1,2,3,4})) -> 119.1761312 | H55: 0 | I55: 0.1550115741 | J55: 119.1761312 | L55: 0 | N55: 0 | P55: 0 | R55: 0 | S55: 1 | T55: 119.1761312 | V55: =COUNTIF(#REF!,'Series Table'!B55)>0 -> 
A56: 54 | B56: Mark Palmer | C56: =IFERROR(VLOOKUP(B56,INDIRECT("'"&$K$1&"'!"&"$C$2:$H$200"),2,FALSE),"") -> Unattached | D56: =IFERROR(VLOOKUP(B56,INDIRECT("'"&$K$1&"'!"&"$C$2:$H$200"),3,FALSE),"") -> M | E56: =IFERROR(VLOOKUP(B56,INDIRECT("'"&$K$1&"'!"&"$C$2:$H$200"),4,FALSE),"") -> M50 | F56: =SUM(LARGE((H56,J56,L56,N56,P56,R56),{1,2,3,4})) -> 118.0481156 | H56: 0 | J56: 0 | K56: 01:26:11 | L56: 118.0481156 | N56: 0 | P56: 0 | R56: 0 | S56: 1 | T56: 118.0481156 | V56: =COUNTIF(#REF!,'Series Table'!B56)>0 -> 
A57: 55 | B57: Nerys Jones | C57: =IFERROR(VLOOKUP(B57,INDIRECT("'"&$I$1&"'!"&"$C$2:$H$200"),2,FALSE),"") -> Parcllyn, Ceredigion | D57: =IFERROR(VLOOKUP(B57,INDIRECT("'"&$I$1&"'!"&"$C$2:$H$200"),3,FALSE),"") -> F | E57: =IFERROR(VLOOKUP(B57,INDIRECT("'"&$I$1&"'!"&"$C$2:$H$200"),4,FALSE),"") -> F | F57: =SUM(LARGE((H57,J57,L57,N57,P57,R57),{1,2,3,4})) -> 117.4562176 | H57: 0 | I57: 0.1583101852 | J57: 117.4562176 | L57: 0 | N57: 0 | P57: 0 | R57: 0 | S57: 1 | T57: 117.4562176 | V57: =COUNTIF(#REF!,'Series Table'!B57)>0 -> 
A58: 56 | B58: David Powell | C58: =IFERROR(VLOOKUP(B58,INDIRECT("'"&$I$1&"'!"&"$C$2:$H$200"),2,FALSE),"") -> Aberystwyth Ac | D58: =IFERROR(VLOOKUP(B58,INDIRECT("'"&$I$1&"'!"&"$C$2:$H$200"),3,FALSE),"") -> M | E58: =IFERROR(VLOOKUP(B58,INDIRECT("'"&$I$1&"'!"&"$C$2:$H$200"),4,FALSE),"") -> M50 | F58: =SUM(LARGE((H58,J58,L58,N58,P58,R58),{1,2,3,4})) -> 117.4139741 | H58: 0 | I58: 0.1583912037 | J58: 117.4139741 | L58: 0 | N58: 0 | P58: 0 | R58: 0 | S58: 1 | T58: 117.4139741 | V58: =COUNTIF(#REF!,'Series Table'!B58)>0 -> 
A59: 57 | B59: David Lawson | C59: =IFERROR(VLOOKUP(B59,INDIRECT("'"&$M$1&"'!"&"$C$2:$H$200"),2,FALSE),"") -> MDC | D59: =IFERROR(VLOOKUP(B59,INDIRECT("'"&$M$1&"'!"&"$C$2:$H$200"),3,FALSE),"") -> M | E59: =IFERROR(VLOOKUP(B59,INDIRECT("'"&$M$1&"'!"&"$C$2:$H$200"),4,FALSE),"") -> M | F59: =SUM(LARGE((H59,J59,L59,N59,P59,R59),{1,2,3,4})) -> 117.354648 | H59: 0 | J59: 0 | L59: 0 | M59: 0.02912037037 | N59: 117.354648 | P59: 0 | R59: 0 | S59: 1 | T59: 117.354648 | V59: =COUNTIF(#REF!,'Series Table'!B59)>0 -> 
A60: 58 | B60: Dee Buchanan | C60: =IFERROR(VLOOKUP(B60,INDIRECT("'"&$I$1&"'!"&"$C$2:$H$200"),2,FALSE),"") -> San Domenico | D60: =IFERROR(VLOOKUP(B60,INDIRECT("'"&$I$1&"'!"&"$C$2:$H$200"),3,FALSE),"") -> M | E60: =IFERROR(VLOOKUP(B60,INDIRECT("'"&$I$1&"'!"&"$C$2:$H$200"),4,FALSE),"") -> M | F60: =SUM(LARGE((H60,J60,L60,N60,P60,R60),{1,2,3,4})) -> 116.9070522 | H60: 0 | I60: 0.1593634259 | J60: 116.9070522 | L60: 0 | N60: 0 | P60: 0 | R60: 0 | S60: 1 | T60: 116.9070522 | V60: =COUNTIF(#REF!,'Series Table'!B60)>0 -> 
A61: 59 | B61: Patrick Swann | C61: =IFERROR(VLOOKUP(B61,INDIRECT("'"&$I$1&"'!"&"$C$2:$H$200"),2,FALSE),"") -> U/A | D61: =IFERROR(VLOOKUP(B61,INDIRECT("'"&$I$1&"'!"&"$C$2:$H$200"),3,FALSE),"") -> M | E61: =IFERROR(VLOOKUP(B61,INDIRECT("'"&$I$1&"'!"&"$C$2:$H$200"),4,FALSE),"") -> M40 | F61: =SUM(LARGE((H61,J61,L61,N61,P61,R61),{1,2,3,4})) -> 116.8768783 | H61: 0 | I61: 0.1594212963 | J61: 116.8768783 | L61: 0 | N61: 0 | P61: 0 | R61: 0 | S61: 1 | T61: 116.8768783 | V61: =COUNTIF(#REF!,'Series Table'!B61)>0 -> 
A62: 60 | B62: Hopcyn Matthews | C62: =IFERROR(VLOOKUP(B62,INDIRECT("'"&$M$1&"'!"&"$C$2:$H$200"),2,FALSE),"") -> Unattached | D62: =IFERROR(VLOOKUP(B62,INDIRECT("'"&$M$1&"'!"&"$C$2:$H$200"),3,FALSE),"") -> M | E62: =IFERROR(VLOOKUP(B62,INDIRECT("'"&$M$1&"'!"&"$C$2:$H$200"),4,FALSE),"") -> M | F62: =SUM(LARGE((H62,J62,L62,N62,P62,R62),{1,2,3,4})) -> 116.7633855 | H62: 0 | J62: 0 | L62: 0 | M62: 0.0293287037 | N62: 116.7633855 | P62: 0 | R62: 0 | S62: 1 | T62: 116.7633855 | V62: =COUNTIF(#REF!,'Series Table'!B62)>0 -> 
A63: 61 | B63: Christian Poulton | C63: =IFERROR(VLOOKUP(B63,INDIRECT("'"&$M$1&"'!"&"$C$2:$H$200"),2,FALSE),"") -> Cambridge Harriers | D63: =IFERROR(VLOOKUP(B63,INDIRECT("'"&$M$1&"'!"&"$C$2:$H$200"),3,FALSE),"") -> M | E63: =IFERROR(VLOOKUP(B63,INDIRECT("'"&$M$1&"'!"&"$C$2:$H$200"),4,FALSE),"") -> M50 | F63: =SUM(LARGE((H63,J63,L63,N63,P63,R63),{1,2,3,4})) -> 116.6648418 | H63: 0 | J63: 0 | L63: 0 | M63: 0.02936342593 | N63: 116.6648418 | P63: 0 | R63: 0 | S63: 1 | T63: 116.6648418 | V63: =COUNTIF(#REF!,'Series Table'!B63)>0 -> 
A64: 62 | B64: Tom Mollekin | C64: =IFERROR(VLOOKUP(B64,INDIRECT("'"&$O$1&"'!"&"$C$2:$H$200"),2,FALSE),"") -> Mynydd Du | D64: =IFERROR(VLOOKUP(B64,INDIRECT("'"&$O$1&"'!"&"$C$2:$H$200"),3,FALSE),"") -> M | E64: =IFERROR(VLOOKUP(B64,INDIRECT("'"&$O$1&"'!"&"$C$2:$H$200"),4,FALSE),"") -> M | F64: =SUM(LARGE((H64,J64,L64,N64,P64,R64),{1,2,3,4})) -> 116.2135081 | H64: 0 | J64: 0 | L64: 0 | N64: 0 | O64: 0.06089259259 | P64: 116.2135081 | R64: 0 | S64: 1 | T64: 116.2135081 | V64: =COUNTIF(#REF!,'Series Table'!B64)>0 -> 
A65: 63 | B65: Llewelyn Lloyd | C65: =IFERROR(VLOOKUP(B65,INDIRECT("'"&$M$1&"'!"&"$C$2:$H$200"),2,FALSE),"") -> Sarn Helen | D65: =IFERROR(VLOOKUP(B65,INDIRECT("'"&$M$1&"'!"&"$C$2:$H$200"),3,FALSE),"") -> M | E65: =IFERROR(VLOOKUP(B65,INDIRECT("'"&$M$1&"'!"&"$C$2:$H$200"),4,FALSE),"") -> M | F65: =SUM(LARGE((H65,J65,L65,N65,P65,R65),{1,2,3,4})) -> 116.204971 | H65: 0 | J65: 0 | L65: 0 | M65: 0.02952546296 | N65: 116.204971 | P65: 0 | R65: 0 | S65: 1 | T65: 116.204971 | V65: =COUNTIF(#REF!,'Series Table'!B65)>0 -> 
A66: 64 | B66: Joe Starling | C66: =IFERROR(VLOOKUP(B66,INDIRECT("'"&$M$1&"'!"&"$C$2:$H$200"),2,FALSE),"") -> Mercia Fell Runners | D66: =IFERROR(VLOOKUP(B66,INDIRECT("'"&$M$1&"'!"&"$C$2:$H$200"),3,FALSE),"") -> M | E66: =IFERROR(VLOOKUP(B66,INDIRECT("'"&$M$1&"'!"&"$C$2:$H$200"),4,FALSE),"") -> M | F66: =SUM(LARGE((H66,J66,L66,N66,P66,R66),{1,2,3,4})) -> 116.1064272 | H66: 0 | J66: 0 | L66: 0 | M66: 0.02956018519 | N66: 116.1064272 | P66: 0 | R66: 0 | S66: 1 | T66: 116.1064272 | V66: =COUNTIF(#REF!,'Series Table'!B66)>0 -> 
A67: 65 | B67: Mark Hopkinson | C67: =IFERROR(VLOOKUP(B67,INDIRECT("'"&$M$1&"'!"&"$C$2:$H$200"),2,FALSE),"") -> Unattached | D67: =IFERROR(VLOOKUP(B67,INDIRECT("'"&$M$1&"'!"&"$C$2:$H$200"),3,FALSE),"") -> M | E67: =IFERROR(VLOOKUP(B67,INDIRECT("'"&$M$1&"'!"&"$C$2:$H$200"),4,FALSE),"") -> M | F67: =SUM(LARGE((H67,J67,L67,N67,P67,R67),{1,2,3,4})) -> 115.9750356 | G67: =IFERROR(VLOOKUP(B67,INDIRECT("'"&$G$1&"'!"&"$C$2:$H$200"),5,FALSE),"") ->  | H67: =IFERROR(VLOOKUP(B67,INDIRECT("'"&$G$1&"'!"&"$C$2:$H$200"),6,FALSE),0) -> 0 | I67: =IFERROR(VLOOKUP(B67,INDIRECT("'"&$I$1&"'!"&"$C$2:$G$200"),5,FALSE),"") ->  | J67: =IFERROR(VLOOKUP(B67,INDIRECT("'"&$I$1&"'!"&"$C$2:$H$200"),6,FALSE),0) -> 0 | K67: =IFERROR(VLOOKUP(B67,INDIRECT("'"&$K$1&"'!"&"$C$2:$H$200"),5,FALSE),"") ->  | L67: =IFERROR(VLOOKUP(B67,INDIRECT("'"&$K$1&"'!"&"$C$2:$H$200"),6,FALSE),0) -> 0 | M67: =IFERROR(VLOOKUP(B67,INDIRECT("'"&$M$1&"'!"&"$C$2:$h$200"),5,FALSE),"") -> 0.02960648148 | N67: =IFERROR(VLOOKUP(B67,INDIRECT("'"&$M$1&"'!"&"$C$2:$h$200"),6,FALSE),0) -> 115.9750356 | O67: =IFERROR(VLOOKUP(B67,INDIRECT("'"&$O$1&"'!"&"$C$2:$h$200"),5,FALSE),"") ->  | P67: =IFERROR(VLOOKUP(B67,INDIRECT("'"&$O$1&"'!"&"$C$2:$h$200"),6,FALSE),0) -> 0 | Q67: =IFERROR(VLOOKUP(B67,INDIRECT("'"&$Q$1&"'!"&"$C$2:$h$200"),5,FALSE),"") ->  | R67: =IFERROR(VLOOKUP(B67,INDIRECT("'"&$Q$1&"'!"&"$C$2:$h$200"),6,FALSE),0) -> 0 | S67: =6-COUNTIF(G67:Q67,"") -> 1 | T67: =F67/IF(S67>4,4,S67) -> 115.9750356 | V67: =COUNTIF(#REF!,'Series Table'!B67)>0 -> 
A68: =ROW(A66) -> 66 | B68: Simon Roberts | C68: =IFERROR(VLOOKUP(B68,INDIRECT("'"&$I$1&"'!"&"$C$2:$H$200"),2,FALSE),"") -> Chester Ac | D68: =IFERROR(VLOOKUP(B68,INDIRECT("'"&$I$1&"'!"&"$C$2:$H$200"),3,FALSE),"") -> M | E68: =IFERROR(VLOOKUP(B68,INDIRECT("'"&$I$1&"'!"&"$C$2:$H$200"),4,FALSE),"") -> M40 | F68: =SUM(LARGE((H68,J68,L68,N68,P68,R68),{1,2,3,4})) -> 115.8569997 | H68: 0 | I68: 0.1613773148 | J68: 115.8569997 | L68: 0 | N68: 0 | P68: 0 | R68: 0 | S68: 1 | T68: 115.8569997 | V68: =COUNTIF(#REF!,'Series Table'!B68)>0 -> 
A69: 67 | B69: Tarbo Fukazawa | C69: =IFERROR(VLOOKUP(B69,INDIRECT("'"&$M$1&"'!"&"$C$2:$H$200"),2,FALSE),"") -> Cambridge Harriers | D69: =IFERROR(VLOOKUP(B69,INDIRECT("'"&$M$1&"'!"&"$C$2:$H$200"),3,FALSE),"") -> M | E69: =IFERROR(VLOOKUP(B69,INDIRECT("'"&$M$1&"'!"&"$C$2:$H$200"),4,FALSE),"") -> M | F69: =SUM(LARGE((H69,J69,L69,N69,P69,R69),{1,2,3,4})) -> 115.2523815 | H69: 0 | J69: 0 | L69: 0 | M69: 0.02986111111 | N69: 115.2523815 | P69: 0 | R69: 0 | S69: 1 | T69: 115.2523815 | V69: =COUNTIF(#REF!,'Series Table'!B69)>0 -> 
A70: 68 | B70: Daniel Nettelfield | C70: =IFERROR(VLOOKUP(B70,INDIRECT("'"&$M$1&"'!"&"$C$2:$H$200"),2,FALSE),"") -> South Molton Strugglers | D70: =IFERROR(VLOOKUP(B70,INDIRECT("'"&$M$1&"'!"&"$C$2:$H$200"),3,FALSE),"") -> M | E70: =IFERROR(VLOOKUP(B70,INDIRECT("'"&$M$1&"'!"&"$C$2:$H$200"),4,FALSE),"") -> M | F70: =SUM(LARGE((H70,J70,L70,N70,P70,R70),{1,2,3,4})) -> 115.2195336 | H70: 0 | J70: 0 | L70: 0 | M70: 0.02987268519 | N70: 115.2195336 | P70: 0 | R70: 0 | S70: 1 | T70: 115.2195336 | V70: =COUNTIF(#REF!,'Series Table'!B70)>0 -> 
A71: 69 | B71: Iwan Morton | C71: =IFERROR(VLOOKUP(B71,INDIRECT("'"&$K$1&"'!"&"$C$2:$H$200"),2,FALSE),"") -> Mynydd Du | D71: =IFERROR(VLOOKUP(B71,INDIRECT("'"&$K$1&"'!"&"$C$2:$H$200"),3,FALSE),"") -> M | E71: =IFERROR(VLOOKUP(B71,INDIRECT("'"&$K$1&"'!"&"$C$2:$H$200"),4,FALSE),"") -> M40 | F71: =SUM(LARGE((H71,J71,L71,N71,P71,R71),{1,2,3,4})) -> 114.6724143 | H71: 0 | J71: 0 | K71: 01:29:44 | L71: 114.6724143 | N71: 0 | P71: 0 | R71: 0 | S71: 1 | T71: 114.6724143 | V71: =COUNTIF(#REF!,'Series Table'!B71)>0 -> 
A72: 70 | B72: Thomas Mollekin | C72: =IFERROR(VLOOKUP(B72,INDIRECT("'"&$M$1&"'!"&"$C$2:$H$200"),2,FALSE),"") -> Mynydd Du | D72: =IFERROR(VLOOKUP(B72,INDIRECT("'"&$M$1&"'!"&"$C$2:$H$200"),3,FALSE),"") -> M | E72: =IFERROR(VLOOKUP(B72,INDIRECT("'"&$M$1&"'!"&"$C$2:$H$200"),4,FALSE),"") -> M | F72: =SUM(LARGE((H72,J72,L72,N72,P72,R72),{1,2,3,4})) -> 114.5625753 | H72: 0 | J72: 0 | L72: 0 | M72: 0.03010416667 | N72: 114.5625753 | P72: 0 | R72: 0 | S72: 1 | T72: 114.5625753 | V72: =COUNTIF(#REF!,'Series Table'!B72)>0 -> 
A73: 71 | B73: Gary Davies | C73: =IFERROR(VLOOKUP(B73,INDIRECT("'"&$I$1&"'!"&"$C$2:$H$200"),2,FALSE),"") -> MDC | D73: =IFERROR(VLOOKUP(B73,INDIRECT("'"&$I$1&"'!"&"$C$2:$H$200"),3,FALSE),"") -> M | E73: =IFERROR(VLOOKUP(B73,INDIRECT("'"&$I$1&"'!"&"$C$2:$H$200"),4,FALSE),"") -> M | F73: =SUM(LARGE((H73,J73,L73,N73,P73,R73),{1,2,3,4})) -> 114.1793297 | H73: 0 | I73: 0.1645949074 | J73: 114.1793297 | L73: 0 | N73: 0 | P73: 0 | R73: 0 | S73: 1 | T73: 114.1793297 | V73: =COUNTIF(#REF!,'Series Table'!B73)>0 -> 
A74: 72 | B74: Will Feline | C74: =IFERROR(VLOOKUP(B74,INDIRECT("'"&$I$1&"'!"&"$C$2:$H$200"),2,FALSE),"") -> Stubbington Green | D74: =IFERROR(VLOOKUP(B74,INDIRECT("'"&$I$1&"'!"&"$C$2:$H$200"),3,FALSE),"") -> M | E74: =IFERROR(VLOOKUP(B74,INDIRECT("'"&$I$1&"'!"&"$C$2:$H$200"),4,FALSE),"") -> M | F74: =SUM(LARGE((H74,J74,L74,N74,P74,R74),{1,2,3,4})) -> 114.0465644 | H74: 0 | I74: 0.164849537 | J74: 114.0465644 | L74: 0 | N74: 0 | P74: 0 | R74: 0 | S74: 1 | T74: 114.0465644 | V74: =COUNTIF(#REF!,'Series Table'!B74)>0 -> 
A75: 73 | B75: Alun Wood | C75: =IFERROR(VLOOKUP(B75,INDIRECT("'"&$O$1&"'!"&"$C$2:$H$200"),2,FALSE),"") -> Mynydd Du | D75: =IFERROR(VLOOKUP(B75,INDIRECT("'"&$O$1&"'!"&"$C$2:$H$200"),3,FALSE),"") -> M | E75: =IFERROR(VLOOKUP(B75,INDIRECT("'"&$O$1&"'!"&"$C$2:$H$200"),4,FALSE),"") -> M | F75: =SUM(LARGE((H75,J75,L75,N75,P75,R75),{1,2,3,4})) -> 113.5593477 | H75: 0 | J75: 0 | L75: 0 | N75: 0 | O75: 0.06282152778 | P75: 113.5593477 | R75: 0 | S75: 1 | T75: 113.5593477 | V75: =COUNTIF(#REF!,'Series Table'!B75)>0 -> 
A76: 74 | B76: Andrew Hughes | C76: =IFERROR(VLOOKUP(B76,INDIRECT("'"&$I$1&"'!"&"$C$2:$H$200"),2,FALSE),"") -> Rhedwyr Preseli | D76: =IFERROR(VLOOKUP(B76,INDIRECT("'"&$I$1&"'!"&"$C$2:$H$200"),3,FALSE),"") -> M | E76: =IFERROR(VLOOKUP(B76,INDIRECT("'"&$I$1&"'!"&"$C$2:$H$200"),4,FALSE),"") -> M40 | F76: =SUM(LARGE((H76,J76,L76,N76,P76,R76),{1,2,3,4})) -> 113.2560076 | H76: 0 | I76: 0.1663657407 | J76: 113.2560076 | L76: 0 | N76: 0 | P76: 0 | R76: 0 | S76: 1 | T76: 113.2560076 | V76: =COUNTIF(#REF!,'Series Table'!B76)>0 -> 
A77: 75 | B77: Leigh Searle | C77: =IFERROR(VLOOKUP(B77,INDIRECT("'"&$I$1&"'!"&"$C$2:$H$200"),2,FALSE),"") -> Treorchy | D77: =IFERROR(VLOOKUP(B77,INDIRECT("'"&$I$1&"'!"&"$C$2:$H$200"),3,FALSE),"") -> M | E77: =IFERROR(VLOOKUP(B77,INDIRECT("'"&$I$1&"'!"&"$C$2:$H$200"),4,FALSE),"") -> M40 | F77: =SUM(LARGE((H77,J77,L77,N77,P77,R77),{1,2,3,4})) -> 112.9965119 | H77: 0 | I77: 0.1668634259 | J77: 112.9965119 | L77: 0 | N77: 0 | P77: 0 | R77: 0 | S77: 1 | T77: 112.9965119 | V77: =COUNTIF(#REF!,'Series Table'!B77)>0 -> 
A78: 76 | B78: Niki Radnedge | C78: =IFERROR(VLOOKUP(B78,INDIRECT("'"&$K$1&"'!"&"$C$2:$H$200"),2,FALSE),"") -> Unattached | D78: =IFERROR(VLOOKUP(B78,INDIRECT("'"&$K$1&"'!"&"$C$2:$H$200"),3,FALSE),"") -> M | E78: =IFERROR(VLOOKUP(B78,INDIRECT("'"&$K$1&"'!"&"$C$2:$H$200"),4,FALSE),"") -> M40 | F78: =SUM(LARGE((H78,J78,L78,N78,P78,R78),{1,2,3,4})) -> 111.3442581 | H78: 0 | J78: 0 | K78: 01:33:14 | L78: 111.3442581 | N78: 0 | P78: 0 | R78: 0 | S78: 1 | T78: 111.3442581 | V78: =COUNTIF(#REF!,'Series Table'!B78)>0 -> 
A79: 77 | B79: Alex Lewis | C79: =IFERROR(VLOOKUP(B79,INDIRECT("'"&$O$1&"'!"&"$C$2:$H$200"),2,FALSE),"") -> Neath Harriers | D79: =IFERROR(VLOOKUP(B79,INDIRECT("'"&$O$1&"'!"&"$C$2:$H$200"),3,FALSE),"") -> M | E79: =IFERROR(VLOOKUP(B79,INDIRECT("'"&$O$1&"'!"&"$C$2:$H$200"),4,FALSE),"") -> M | F79: =SUM(LARGE((H79,J79,L79,N79,P79,R79),{1,2,3,4})) -> 111.1606338 | H79: 0 | J79: 0 | L79: 0 | N79: 0 | O79: 0.06456481481 | P79: 111.1606338 | R79: 0 | S79: 1 | T79: 111.1606338 | V79: =COUNTIF(#REF!,'Series Table'!B79)>0 -> 
A80: 78 | B80: Mark Bevan | C80: =IFERROR(VLOOKUP(B80,INDIRECT("'"&$M$1&"'!"&"$C$2:$H$200"),2,FALSE),"") -> Basingstoke & Mid Hants AC | D80: =IFERROR(VLOOKUP(B80,INDIRECT("'"&$M$1&"'!"&"$C$2:$H$200"),3,FALSE),"") -> M | E80: =IFERROR(VLOOKUP(B80,INDIRECT("'"&$M$1&"'!"&"$C$2:$H$200"),4,FALSE),"") -> M50 | F80: =SUM(LARGE((H80,J80,L80,N80,P80,R80),{1,2,3,4})) -> 111.1463922 | H80: 0 | J80: 0 | L80: 0 | M80: 0.03130787037 | N80: 111.1463922 | P80: 0 | R80: 0 | S80: 1 | T80: 111.1463922 | V80: =COUNTIF(#REF!,'Series Table'!B80)>0 -> 
A81: 79 | B81: Ruben Lightfoot | C81: =IFERROR(VLOOKUP(B81,INDIRECT("'"&$I$1&"'!"&"$C$2:$H$200"),2,FALSE),"") -> Cwm Cych | D81: =IFERROR(VLOOKUP(B81,INDIRECT("'"&$I$1&"'!"&"$C$2:$H$200"),3,FALSE),"") -> M | E81: =IFERROR(VLOOKUP(B81,INDIRECT("'"&$I$1&"'!"&"$C$2:$H$200"),4,FALSE),"") -> M | F81: =SUM(LARGE((H81,J81,L81,N81,P81,R81),{1,2,3,4})) -> 110.8058851 | H81: 0 | I81: 0.1710648148 | J81: 110.8058851 | L81: 0 | N81: 0 | P81: 0 | R81: 0 | S81: 1 | T81: 110.8058851 | V81: =COUNTIF(#REF!,'Series Table'!B81)>0 -> 
A82: 80 | B82: Gavin Brace | C82: =IFERROR(VLOOKUP(B82,INDIRECT("'"&$K$1&"'!"&"$C$2:$H$200"),2,FALSE),"") -> Lliswerry Runners | D82: =IFERROR(VLOOKUP(B82,INDIRECT("'"&$K$1&"'!"&"$C$2:$H$200"),3,FALSE),"") -> M | E82: =IFERROR(VLOOKUP(B82,INDIRECT("'"&$K$1&"'!"&"$C$2:$H$200"),4,FALSE),"") -> M | F82: =SUM(LARGE((H82,J82,L82,N82,P82,R82),{1,2,3,4})) -> 110.7737171 | H82: 0 | J82: 0 | K82: 01:33:50 | L82: 110.7737171 | N82: 0 | P82: 0 | R82: 0 | S82: 1 | T82: 110.7737171 | V82: =COUNTIF(#REF!,'Series Table'!B82)>0 -> 
A83: 81 | B83: Andrew Pritchard | C83: =IFERROR(VLOOKUP(B83,INDIRECT("'"&$M$1&"'!"&"$C$2:$H$200"),2,FALSE),"") -> Buckley Runners | D83: =IFERROR(VLOOKUP(B83,INDIRECT("'"&$M$1&"'!"&"$C$2:$H$200"),3,FALSE),"") -> M | E83: =IFERROR(VLOOKUP(B83,INDIRECT("'"&$M$1&"'!"&"$C$2:$H$200"),4,FALSE),"") -> M40 | F83: =SUM(LARGE((H83,J83,L83,N83,P83,R83),{1,2,3,4})) -> 110.7193693 | H83: 0 | J83: 0 | L83: 0 | M83: 0.03145833333 | N83: 110.7193693 | P83: 0 | R83: 0 | S83: 1 | T83: 110.7193693 | V83: =COUNTIF(#REF!,'Series Table'!B83)>0 -> 
A84: 82 | B84: Edward Davies | C84: =IFERROR(VLOOKUP(B84,INDIRECT("'"&$M$1&"'!"&"$C$2:$H$200"),2,FALSE),"") -> Mercia Fell Runners | D84: =IFERROR(VLOOKUP(B84,INDIRECT("'"&$M$1&"'!"&"$C$2:$H$200"),3,FALSE),"") -> M | E84: =IFERROR(VLOOKUP(B84,INDIRECT("'"&$M$1&"'!"&"$C$2:$H$200"),4,FALSE),"") -> M60 | F84: =SUM(LARGE((H84,J84,L84,N84,P84,R84),{1,2,3,4})) -> 110.1281069 | H84: 0 | J84: 0 | L84: 0 | M84: 0.03166666667 | N84: 110.1281069 | P84: 0 | R84: 0 | S84: 1 | T84: 110.1281069 | V84: =COUNTIF(#REF!,'Series Table'!B84)>0 -> 
A85: 83 | B85: Tasha Sexton | C85: =IFERROR(VLOOKUP(B85,INDIRECT("'"&$I$1&"'!"&"$C$2:$H$200"),2,FALSE),"") -> Pembrokeshire Harriers | D85: =IFERROR(VLOOKUP(B85,INDIRECT("'"&$I$1&"'!"&"$C$2:$H$200"),3,FALSE),"") -> F | E85: =IFERROR(VLOOKUP(B85,INDIRECT("'"&$I$1&"'!"&"$C$2:$H$200"),4,FALSE),"") -> F40 | F85: =SUM(LARGE((H85,J85,L85,N85,P85,R85),{1,2,3,4})) -> 110.1118849 | H85: 0 | I85: 0.1723958333 | J85: 110.1118849 | L85: 0 | N85: 0 | P85: 0 | R85: 0 | S85: 1 | T85: 110.1118849 | V85: =COUNTIF(#REF!,'Series Table'!B85)>0 -> 
A86: 84 | B86: Paul Beeson | C86: =IFERROR(VLOOKUP(B86,INDIRECT("'"&$I$1&"'!"&"$C$2:$H$200"),2,FALSE),"") -> Maldwyn Harriers | D86: =IFERROR(VLOOKUP(B86,INDIRECT("'"&$I$1&"'!"&"$C$2:$H$200"),3,FALSE),"") -> M | E86: =IFERROR(VLOOKUP(B86,INDIRECT("'"&$I$1&"'!"&"$C$2:$H$200"),4,FALSE),"") -> M50 | F86: =SUM(LARGE((H86,J86,L86,N86,P86,R86),{1,2,3,4})) -> 110.0998153 | H86: 0 | I86: 0.1724189815 | J86: 110.0998153 | L86: 0 | N86: 0 | P86: 0 | R86: 0 | S86: 1 | T86: 110.0998153 | V86: =COUNTIF(#REF!,'Series Table'!B86)>0 -> 
A87: 85 | B87: James Gillanders | C87: =IFERROR(VLOOKUP(B87,INDIRECT("'"&$M$1&"'!"&"$C$2:$H$200"),2,FALSE),"") -> Serpentine Running Club | D87: =IFERROR(VLOOKUP(B87,INDIRECT("'"&$M$1&"'!"&"$C$2:$H$200"),3,FALSE),"") -> M | E87: =IFERROR(VLOOKUP(B87,INDIRECT("'"&$M$1&"'!"&"$C$2:$H$200"),4,FALSE),"") -> M | F87: =SUM(LARGE((H87,J87,L87,N87,P87,R87),{1,2,3,4})) -> 110.062411 | H87: 0 | J87: 0 | L87: 0 | M87: 0.03168981481 | N87: 110.062411 | P87: 0 | R87: 0 | S87: 1 | T87: 110.062411 | V87: =COUNTIF(#REF!,'Series Table'!B87)>0 -> 
A88: 86 | B88: John Keenan | C88: =IFERROR(VLOOKUP(B88,INDIRECT("'"&$M$1&"'!"&"$C$2:$H$200"),2,FALSE),"") -> London Frontrunners | D88: =IFERROR(VLOOKUP(B88,INDIRECT("'"&$M$1&"'!"&"$C$2:$H$200"),3,FALSE),"") -> M | E88: =IFERROR(VLOOKUP(B88,INDIRECT("'"&$M$1&"'!"&"$C$2:$H$200"),4,FALSE),"") -> M40 | F88: =SUM(LARGE((H88,J88,L88,N88,P88,R88),{1,2,3,4})) -> 109.9310194 | H88: 0 | J88: 0 | L88: 0 | M88: 0.03173611111 | N88: 109.9310194 | P88: 0 | R88: 0 | S88: 1 | T88: 109.9310194 | V88: =COUNTIF(#REF!,'Series Table'!B88)>0 -> 
A89: 87 | B89: Conrad Rees | C89: =IFERROR(VLOOKUP(B89,INDIRECT("'"&$I$1&"'!"&"$C$2:$H$200"),2,FALSE),"") -> Manorbier Newton | D89: =IFERROR(VLOOKUP(B89,INDIRECT("'"&$I$1&"'!"&"$C$2:$H$200"),3,FALSE),"") -> M | E89: =IFERROR(VLOOKUP(B89,INDIRECT("'"&$I$1&"'!"&"$C$2:$H$200"),4,FALSE),"") -> M40 | F89: =SUM(LARGE((H89,J89,L89,N89,P89,R89),{1,2,3,4})) -> 109.9067022 | H89: 0 | I89: 0.1727893519 | J89: 109.9067022 | L89: 0 | N89: 0 | P89: 0 | R89: 0 | S89: 1 | T89: 109.9067022 | V89: =COUNTIF(#REF!,'Series Table'!B89)>0 -> 
A90: 88 | B90: Tom Molleskin | C90: =IFERROR(VLOOKUP(B90,INDIRECT("'"&$G$1&"'!"&"$C$2:$H$200"),2,FALSE),"") -> Mynydd Du | D90: =IFERROR(VLOOKUP(B90,INDIRECT("'"&$G$1&"'!"&"$C$2:$H$200"),3,FALSE),"") -> M | E90: =IFERROR(VLOOKUP(B90,INDIRECT("'"&$G$1&"'!"&"$C$2:$H$200"),4,FALSE),"") -> M | F90: =SUM(LARGE((H90,J90,L90,N90,P90,R90),{1,2,3,4})) -> 109.7441345 | G90: 01:20:15 | H90: 109.7441345 | J90: 0 | L90: 0 | N90: 0 | P90: 0 | R90: 0 | S90: 1 | T90: 109.7441345 | V90: =COUNTIF(#REF!,'Series Table'!B90)>0 -> 
A91: 89 | B91: Brad Johnson | C91: =IFERROR(VLOOKUP(B91,INDIRECT("'"&$G$1&"'!"&"$C$2:$H$200"),2,FALSE),"") -> U/A | D91: =IFERROR(VLOOKUP(B91,INDIRECT("'"&$G$1&"'!"&"$C$2:$H$200"),3,FALSE),"") -> M | E91: =IFERROR(VLOOKUP(B91,INDIRECT("'"&$G$1&"'!"&"$C$2:$H$200"),4,FALSE),"") -> M | F91: =SUM(LARGE((H91,J91,L91,N91,P91,R91),{1,2,3,4})) -> 109.7253897 | G91: 01:20:16 | H91: 109.7253897 | J91: 0 | L91: 0 | N91: 0 | P91: 0 | R91: 0 | S91: 1 | T91: 109.7253897 | V91: =COUNTIF(#REF!,'Series Table'!B91)>0 -> 
A92: 90 | B92: Patrick Tudor | C92: =IFERROR(VLOOKUP(B92,INDIRECT("'"&$K$1&"'!"&"$C$2:$H$200"),2,FALSE),"") -> Unattached | D92: =IFERROR(VLOOKUP(B92,INDIRECT("'"&$K$1&"'!"&"$C$2:$H$200"),3,FALSE),"") -> M | E92: =IFERROR(VLOOKUP(B92,INDIRECT("'"&$K$1&"'!"&"$C$2:$H$200"),4,FALSE),"") -> M | F92: =SUM(LARGE((H92,J92,L92,N92,P92,R92),{1,2,3,4})) -> 109.6643317 | H92: 0 | J92: 0 | K92: 01:35:00 | L92: 109.6643317 | N92: 0 | P92: 0 | R92: 0 | S92: 1 | T92: 109.6643317 | V92: =COUNTIF(#REF!,'Series Table'!B92)>0 -> 
A93: 91 | B93: Sarah Tagg | C93: =IFERROR(VLOOKUP(B93,INDIRECT("'"&$I$1&"'!"&"$C$2:$H$200"),2,FALSE),"") -> West Coast Tri | D93: =IFERROR(VLOOKUP(B93,INDIRECT("'"&$I$1&"'!"&"$C$2:$H$200"),3,FALSE),"") -> F | E93: =IFERROR(VLOOKUP(B93,INDIRECT("'"&$I$1&"'!"&"$C$2:$H$200"),4,FALSE),"") -> F40 | F93: =SUM(LARGE((H93,J93,L93,N93,P93,R93),{1,2,3,4})) -> 109.6351369 | H93: 0 | I93: 0.1733101852 | J93: 109.6351369 | L93: 0 | N93: 0 | P93: 0 | R93: 0 | S93: 1 | T93: 109.6351369 | V93: =COUNTIF(#REF!,'Series Table'!B93)>0 -> 
A94: 92 | B94: Wayne Billman | C94: =IFERROR(VLOOKUP(B94,INDIRECT("'"&$I$1&"'!"&"$C$2:$H$200"),2,FALSE),"") -> Blandford Camp | D94: =IFERROR(VLOOKUP(B94,INDIRECT("'"&$I$1&"'!"&"$C$2:$H$200"),3,FALSE),"") -> M | E94: =IFERROR(VLOOKUP(B94,INDIRECT("'"&$I$1&"'!"&"$C$2:$H$200"),4,FALSE),"") -> M | F94: =SUM(LARGE((H94,J94,L94,N94,P94,R94),{1,2,3,4})) -> 109.5808239 | H94: 0 | I94: 0.1734143519 | J94: 109.5808239 | L94: 0 | N94: 0 | P94: 0 | R94: 0 | S94: 1 | T94: 109.5808239 | V94: =COUNTIF(#REF!,'Series Table'!B94)>0 -> 
A95: 93 | B95: Jonny Ashley | C95: =IFERROR(VLOOKUP(B95,INDIRECT("'"&$M$1&"'!"&"$C$2:$H$200"),2,FALSE),"") -> Unattached | D95: =IFERROR(VLOOKUP(B95,INDIRECT("'"&$M$1&"'!"&"$C$2:$H$200"),3,FALSE),"") -> M | E95: =IFERROR(VLOOKUP(B95,INDIRECT("'"&$M$1&"'!"&"$C$2:$H$200"),4,FALSE),"") -> M | F95: =SUM(LARGE((H95,J95,L95,N95,P95,R95),{1,2,3,4})) -> 109.5039965 | H95: 0 | J95: 0 | L95: 0 | M95: 0.03188657407 | N95: 109.5039965 | P95: 0 | R95: 0 | S95: 1 | T95: 109.5039965 | V95: =COUNTIF(#REF!,'Series Table'!B95)>0 -> 
A96: 94 | B96: Martin Everett | C96: =IFERROR(VLOOKUP(B96,INDIRECT("'"&$I$1&"'!"&"$C$2:$H$200"),2,FALSE),"") -> Narberth | D96: =IFERROR(VLOOKUP(B96,INDIRECT("'"&$I$1&"'!"&"$C$2:$H$200"),3,FALSE),"") -> M | E96: =IFERROR(VLOOKUP(B96,INDIRECT("'"&$I$1&"'!"&"$C$2:$H$200"),4,FALSE),"") -> M40 | F96: =SUM(LARGE((H96,J96,L96,N96,P96,R96),{1,2,3,4})) -> 109.2609803 | H96: 0 | I96: 0.1740277778 | J96: 109.2609803 | L96: 0 | N96: 0 | P96: 0 | R96: 0 | S96: 1 | T96: 109.2609803 | V96: =COUNTIF(#REF!,'Series Table'!B96)>0 -> 
A97: 95 | B97: Karie Atkins | C97: =IFERROR(VLOOKUP(B97,INDIRECT("'"&$G$1&"'!"&"$C$2:$H$200"),2,FALSE),"") -> Chepstow | D97: =IFERROR(VLOOKUP(B97,INDIRECT("'"&$G$1&"'!"&"$C$2:$H$200"),3,FALSE),"") -> M | E97: =IFERROR(VLOOKUP(B97,INDIRECT("'"&$G$1&"'!"&"$C$2:$H$200"),4,FALSE),"") -> M40 | F97: =SUM(LARGE((H97,J97,L97,N97,P97,R97),{1,2,3,4})) -> 109.2567715 | G97: 01:20:41 | H97: 109.2567715 | J97: 0 | L97: 0 | N97: 0 | P97: 0 | R97: 0 | S97: 1 | T97: 109.2567715 | V97: =COUNTIF(#REF!,'Series Table'!B97)>0 -> 
A98: 96 | B98: Nigel Davies | C98: =IFERROR(VLOOKUP(B98,INDIRECT("'"&$I$1&"'!"&"$C$2:$H$200"),2,FALSE),"") -> Sarn Helen | D98: =IFERROR(VLOOKUP(B98,INDIRECT("'"&$I$1&"'!"&"$C$2:$H$200"),3,FALSE),"") -> M | E98: =IFERROR(VLOOKUP(B98,INDIRECT("'"&$I$1&"'!"&"$C$2:$H$200"),4,FALSE),"") -> M40 | F98: =SUM(LARGE((H98,J98,L98,N98,P98,R98),{1,2,3,4})) -> 109.2308064 | H98: 0 | I98: 0.1740856481 | J98: 109.2308064 | L98: 0 | N98: 0 | P98: 0 | R98: 0 | S98: 1 | T98: 109.2308064 | V98: =COUNTIF(#REF!,'Series Table'!B98)>0 -> 
A99: 97 | B99: Dave Robson | C99: =IFERROR(VLOOKUP(B99,INDIRECT("'"&$K$1&"'!"&"$C$2:$H$200"),2,FALSE),"") -> Ilkley Harriers | D99: =IFERROR(VLOOKUP(B99,INDIRECT("'"&$K$1&"'!"&"$C$2:$H$200"),3,FALSE),"") -> M | E99: =IFERROR(VLOOKUP(B99,INDIRECT("'"&$K$1&"'!"&"$C$2:$H$200"),4,FALSE),"") -> M40 | F99: =SUM(LARGE((H99,J99,L99,N99,P99,R99),{1,2,3,4})) -> 109.1413357 | H99: 0 | J99: 0 | K99: 01:35:33 | L99: 109.1413357 | N99: 0 | P99: 0 | R99: 0 | S99: 1 | T99: 109.1413357 | V99: =COUNTIF(#REF!,'Series Table'!B99)>0 -> 
A100: 98 | B100: Malcolm O'Brien | C100: =IFERROR(VLOOKUP(B100,INDIRECT("'"&$M$1&"'!"&"$C$2:$H$200"),2,FALSE),"") -> Unattached | D100: =IFERROR(VLOOKUP(B100,INDIRECT("'"&$M$1&"'!"&"$C$2:$H$200"),3,FALSE),"") -> M | E100: =IFERROR(VLOOKUP(B100,INDIRECT("'"&$M$1&"'!"&"$C$2:$H$200"),4,FALSE),"") -> M | F100: =SUM(LARGE((H100,J100,L100,N100,P100,R100),{1,2,3,4})) -> 108.551407 | H100: 0 | J100: 0 | L100: 0 | M100: 0.03222222222 | N100: 108.551407 | P100: 0 | R100: 0 | S100: 1 | T100: 108.551407 | V100: =COUNTIF(#REF!,'Series Table'!B100)>0 -> 
A101: 99 | B101: Evan Davies | C101: =IFERROR(VLOOKUP(B101,INDIRECT("'"&$M$1&"'!"&"$C$2:$H$200"),2,FALSE),"") -> Unattached | D101: =IFERROR(VLOOKUP(B101,INDIRECT("'"&$M$1&"'!"&"$C$2:$H$200"),3,FALSE),"") -> M | E101: =IFERROR(VLOOKUP(B101,INDIRECT("'"&$M$1&"'!"&"$C$2:$H$200"),4,FALSE),"") -> M | F101: =SUM(LARGE((H101,J101,L101,N101,P101,R101),{1,2,3,4})) -> 108.551407 | H101: 0 | J101: 0 | L101: 0 | M101: 0.03222222222 | N101: 108.551407 | P101: 0 | R101: 0 | S101: 1 | T101: 108.551407 | V101: =COUNTIF(#REF!,'Series Table'!B101)>0 -> 
A102: 100 | B102: Mark Nelson | C102: =IFERROR(VLOOKUP(B102,INDIRECT("'"&$K$1&"'!"&"$C$2:$H$200"),2,FALSE),"") -> Unattached | D102: =IFERROR(VLOOKUP(B102,INDIRECT("'"&$K$1&"'!"&"$C$2:$H$200"),3,FALSE),"") -> M | E102: =IFERROR(VLOOKUP(B102,INDIRECT("'"&$K$1&"'!"&"$C$2:$H$200"),4,FALSE),"") -> M40 | F102: =SUM(LARGE((H102,J102,L102,N102,P102,R102),{1,2,3,4})) -> 108.3806143 | H102: 0 | J102: 0 | K102: 01:36:21 | L102: 108.3806143 | N102: 0 | P102: 0 | R102: 0 | S102: 1 | T102: 108.3806143 | V102: =COUNTIF(#REF!,'Series Table'!B102)>0 -> 
A103: 101 | B103: John Hallett | C103: =IFERROR(VLOOKUP(B103,INDIRECT("'"&$G$1&"'!"&"$C$2:$H$200"),2,FALSE),"") -> MDC | D103: =IFERROR(VLOOKUP(B103,INDIRECT("'"&$G$1&"'!"&"$C$2:$H$200"),3,FALSE),"") -> M | E103: =IFERROR(VLOOKUP(B103,INDIRECT("'"&$G$1&"'!"&"$C$2:$H$200"),4,FALSE),"") -> M | F103: =SUM(LARGE((H103,J103,L103,N103,P103,R103),{1,2,3,4})) -> 108.188322 | G103: 01:21:38 | H103: 108.188322 | J103: 0 | L103: 0 | N103: 0 | P103: 0 | R103: 0 | S103: 1 | T103: 108.188322 | V103: =COUNTIF(#REF!,'Series Table'!B103)>0 -> 
A104: 102 | B104: Mike Johnson | C104: =IFERROR(VLOOKUP(B104,INDIRECT("'"&$K$1&"'!"&"$C$2:$H$200"),2,FALSE),"") -> Unattached | D104: =IFERROR(VLOOKUP(B104,INDIRECT("'"&$K$1&"'!"&"$C$2:$H$200"),3,FALSE),"") -> M | E104: =IFERROR(VLOOKUP(B104,INDIRECT("'"&$K$1&"'!"&"$C$2:$H$200"),4,FALSE),"") -> M50 | F104: =SUM(LARGE((H104,J104,L104,N104,P104,R104),{1,2,3,4})) -> 107.9685568 | H104: 0 | J104: 0 | K104: 01:36:47 | L104: 107.9685568 | N104: 0 | P104: 0 | R104: 0 | S104: 1 | T104: 107.9685568 | V104: =COUNTIF(#REF!,'Series Table'!B104)>0 -> 
A105: 103 | B105: Andy Creber | C105: =IFERROR(VLOOKUP(B105,INDIRECT("'"&$O$1&"'!"&"$C$2:$H$200"),2,FALSE),"") -> Chepstow Harriers | D105: =IFERROR(VLOOKUP(B105,INDIRECT("'"&$O$1&"'!"&"$C$2:$H$200"),3,FALSE),"") -> M | E105: =IFERROR(VLOOKUP(B105,INDIRECT("'"&$O$1&"'!"&"$C$2:$H$200"),4,FALSE),"") -> M50 | F105: =SUM(LARGE((H105,J105,L105,N105,P105,R105),{1,2,3,4})) -> 107.9247112 | H105: 0 | J105: 0 | L105: 0 | N105: 0 | O105: 0.06691655093 | P105: 107.9247112 | R105: 0 | S105: 1 | T105: 107.9247112 | V105: =COUNTIF(#REF!,'Series Table'!B105)>0 -> 
A106: 104 | B106: John Cherry | C106: =IFERROR(VLOOKUP(B106,INDIRECT("'"&$I$1&"'!"&"$C$2:$H$200"),2,FALSE),"") -> Upper Killay | D106: =IFERROR(VLOOKUP(B106,INDIRECT("'"&$I$1&"'!"&"$C$2:$H$200"),3,FALSE),"") -> M | E106: =IFERROR(VLOOKUP(B106,INDIRECT("'"&$I$1&"'!"&"$C$2:$H$200"),4,FALSE),"") -> M40 | F106: =SUM(LARGE((H106,J106,L106,N106,P106,R106),{1,2,3,4})) -> 107.7945277 | H106: 0 | I106: 0.1768402778 | J106: 107.7945277 | L106: 0 | N106: 0 | P106: 0 | R106: 0 | S106: 1 | T106: 107.7945277 | V106: =COUNTIF(#REF!,'Series Table'!B106)>0 -> 
A107: 105 | B107: Andy Vaudin | C107: =IFERROR(VLOOKUP(B107,INDIRECT("'"&$O$1&"'!"&"$C$2:$H$200"),2,FALSE),"") -> Unattached | D107: =IFERROR(VLOOKUP(B107,INDIRECT("'"&$O$1&"'!"&"$C$2:$H$200"),3,FALSE),"") -> M | E107: =IFERROR(VLOOKUP(B107,INDIRECT("'"&$O$1&"'!"&"$C$2:$H$200"),4,FALSE),"") -> M50 | F107: =SUM(LARGE((H107,J107,L107,N107,P107,R107),{1,2,3,4})) -> 107.5760998 | H107: 0 | J107: 0 | L107: 0 | N107: 0 | O107: 0.06716990741 | P107: 107.5760998 | R107: 0 | S107: 1 | T107: 107.5760998 | V107: =COUNTIF(#REF!,'Series Table'!B107)>0 -> 
A108: 106 | B108: Ben Jozefiak | C108: =IFERROR(VLOOKUP(B108,INDIRECT("'"&$K$1&"'!"&"$C$2:$H$200"),2,FALSE),"") -> Eryri Harriers | D108: =IFERROR(VLOOKUP(B108,INDIRECT("'"&$K$1&"'!"&"$C$2:$H$200"),3,FALSE),"") -> M | E108: =IFERROR(VLOOKUP(B108,INDIRECT("'"&$K$1&"'!"&"$C$2:$H$200"),4,FALSE),"") -> M | F108: =SUM(LARGE((H108,J108,L108,N108,P108,R108),{1,2,3,4})) -> 107.3980158 | H108: 0 | J108: 0 | K108: 01:37:23 | L108: 107.3980158 | N108: 0 | P108: 0 | R108: 0 | S108: 1 | T108: 107.3980158 | V108: =COUNTIF(#REF!,'Series Table'!B108)>0 -> 
A109: 107 | B109: Glyn Fletcher | C109: =IFERROR(VLOOKUP(B109,INDIRECT("'"&$I$1&"'!"&"$C$2:$H$200"),2,FALSE),"") -> Maldwyn Harriers | D109: =IFERROR(VLOOKUP(B109,INDIRECT("'"&$I$1&"'!"&"$C$2:$H$200"),3,FALSE),"") -> M | E109: =IFERROR(VLOOKUP(B109,INDIRECT("'"&$I$1&"'!"&"$C$2:$H$200"),4,FALSE),"") -> M50 | F109: =SUM(LARGE((H109,J109,L109,N109,P109,R109),{1,2,3,4})) -> 107.3720927 | H109: 0 | I109: 0.177650463 | J109: 107.3720927 | L109: 0 | N109: 0 | P109: 0 | R109: 0 | S109: 1 | T109: 107.3720927 | V109: =COUNTIF(#REF!,'Series Table'!B109)>0 -> 
A110: 108 | B110: Jonathan Moscrop | C110: =IFERROR(VLOOKUP(B110,INDIRECT("'"&$M$1&"'!"&"$C$2:$H$200"),2,FALSE),"") -> Serpentine Running Club | D110: =IFERROR(VLOOKUP(B110,INDIRECT("'"&$M$1&"'!"&"$C$2:$H$200"),3,FALSE),"") -> M | E110: =IFERROR(VLOOKUP(B110,INDIRECT("'"&$M$1&"'!"&"$C$2:$H$200"),4,FALSE),"") -> M40 | F110: =SUM(LARGE((H110,J110,L110,N110,P110,R110),{1,2,3,4})) -> 107.2703383 | H110: 0 | J110: 0 | L110: 0 | M110: 0.03267361111 | N110: 107.2703383 | P110: 0 | R110: 0 | S110: 1 | T110: 107.2703383 | V110: =COUNTIF(#REF!,'Series Table'!B110)>0 -> 
A111: 109 | B111: Anderson Hirst | C111: =IFERROR(VLOOKUP(B111,INDIRECT("'"&$M$1&"'!"&"$C$2:$H$200"),2,FALSE),"") -> Unattached | D111: =IFERROR(VLOOKUP(B111,INDIRECT("'"&$M$1&"'!"&"$C$2:$H$200"),3,FALSE),"") -> M | E111: =IFERROR(VLOOKUP(B111,INDIRECT("'"&$M$1&"'!"&"$C$2:$H$200"),4,FALSE),"") -> M50 | F111: =SUM(LARGE((H111,J111,L111,N111,P111,R111),{1,2,3,4})) -> 107.2374904 | H111: 0 | J111: 0 | L111: 0 | M111: 0.03268518519 | N111: 107.2374904 | P111: 0 | R111: 0 | S111: 1 | T111: 107.2374904 | V111: =COUNTIF(#REF!,'Series Table'!B111)>0 -> 
A112: 110 | B112: Nigel Eldridge | C112: =IFERROR(VLOOKUP(B112,INDIRECT("'"&$M$1&"'!"&"$C$2:$H$200"),2,FALSE),"") -> Ryde Harriers | D112: =IFERROR(VLOOKUP(B112,INDIRECT("'"&$M$1&"'!"&"$C$2:$H$200"),3,FALSE),"") -> M | E112: =IFERROR(VLOOKUP(B112,INDIRECT("'"&$M$1&"'!"&"$C$2:$H$200"),4,FALSE),"") -> M40 | F112: =SUM(LARGE((H112,J112,L112,N112,P112,R112),{1,2,3,4})) -> 107.2374904 | H112: 0 | J112: 0 | L112: 0 | M112: 0.03268518519 | N112: 107.2374904 | P112: 0 | R112: 0 | S112: 1 | T112: 107.2374904 | V112: =COUNTIF(#REF!,'Series Table'!B112)>0 -> 
A113: 111 | B113: Paul Dodd | C113: =IFERROR(VLOOKUP(B113,INDIRECT("'"&$M$1&"'!"&"$C$2:$H$200"),2,FALSE),"") -> Chepstow Harriers | D113: =IFERROR(VLOOKUP(B113,INDIRECT("'"&$M$1&"'!"&"$C$2:$H$200"),3,FALSE),"") -> M | E113: =IFERROR(VLOOKUP(B113,INDIRECT("'"&$M$1&"'!"&"$C$2:$H$200"),4,FALSE),"") -> M50 | F113: =SUM(LARGE((H113,J113,L113,N113,P113,R113),{1,2,3,4})) -> 107.1717946 | H113: 0 | J113: 0 | L113: 0 | M113: 0.03270833333 | N113: 107.1717946 | P113: 0 | R113: 0 | S113: 1 | T113: 107.1717946 | V113: =COUNTIF(#REF!,'Series Table'!B113)>0 -> 
A114: 112 | B114: Gemma Moore | C114: =IFERROR(VLOOKUP(B114,INDIRECT("'"&$M$1&"'!"&"$C$2:$H$200"),2,FALSE),"") -> North Wales Road Runners | D114: =IFERROR(VLOOKUP(B114,INDIRECT("'"&$M$1&"'!"&"$C$2:$H$200"),3,FALSE),"") -> F | E114: =IFERROR(VLOOKUP(B114,INDIRECT("'"&$M$1&"'!"&"$C$2:$H$200"),4,FALSE),"") -> F | F114: =SUM(LARGE((H114,J114,L114,N114,P114,R114),{1,2,3,4})) -> 107.1389467 | H114: 0 | J114: 0 | L114: 0 | M114: 0.03271990741 | N114: 107.1389467 | P114: 0 | R114: 0 | S114: 1 | T114: 107.1389467 | V114: =COUNTIF(#REF!,'Series Table'!B114)>0 -> 
A115: 113 | B115: Braddon Johnson | C115: =IFERROR(VLOOKUP(B115,INDIRECT("'"&$I$1&"'!"&"$C$2:$H$200"),2,FALSE),"") -> Stonehouse | D115: =IFERROR(VLOOKUP(B115,INDIRECT("'"&$I$1&"'!"&"$C$2:$H$200"),3,FALSE),"") -> M | E115: =IFERROR(VLOOKUP(B115,INDIRECT("'"&$I$1&"'!"&"$C$2:$H$200"),4,FALSE),"") -> M | F115: =SUM(LARGE((H115,J115,L115,N115,P115,R115),{1,2,3,4})) -> 107.0884579 | H115: 0 | I115: 0.1781944444 | J115: 107.0884579 | L115: 0 | N115: 0 | P115: 0 | R115: 0 | S115: 1 | T115: 107.0884579 | V115: =COUNTIF(#REF!,'Series Table'!B115)>0 -> 
A116: 114 | B116: George Fisher | C116: =IFERROR(VLOOKUP(B116,INDIRECT("'"&$G$1&"'!"&"$C$2:$H$200"),2,FALSE),"") -> 1 Rifles | D116: =IFERROR(VLOOKUP(B116,INDIRECT("'"&$G$1&"'!"&"$C$2:$H$200"),3,FALSE),"") -> M | E116: =IFERROR(VLOOKUP(B116,INDIRECT("'"&$G$1&"'!"&"$C$2:$H$200"),4,FALSE),"") -> U23 | F116: =SUM(LARGE((H116,J116,L116,N116,P116,R116),{1,2,3,4})) -> 106.95117 | G116: 01:22:44 | H116: 106.95117 | J116: 0 | L116: 0 | N116: 0 | P116: 0 | R116: 0 | S116: 1 | T116: 106.95117 | V116: =COUNTIF(#REF!,'Series Table'!B116)>0 -> 
A117: 115 | B117: Sophie Noot | C117: =IFERROR(VLOOKUP(B117,INDIRECT("'"&$I$1&"'!"&"$C$2:$H$200"),2,FALSE),"") -> Team Cemais | D117: =IFERROR(VLOOKUP(B117,INDIRECT("'"&$I$1&"'!"&"$C$2:$H$200"),3,FALSE),"") -> F | E117: =IFERROR(VLOOKUP(B117,INDIRECT("'"&$I$1&"'!"&"$C$2:$H$200"),4,FALSE),"") -> F40 | F117: =SUM(LARGE((H117,J117,L117,N117,P117,R117),{1,2,3,4})) -> 106.4306664 | H117: 0 | I117: 0.1794560185 | J117: 106.4306664 | L117: 0 | N117: 0 | P117: 0 | R117: 0 | S117: 1 | T117: 106.4306664 | V117: =COUNTIF(#REF!,'Series Table'!B117)>0 -> 
A118: 116 | B118: Andrew Clement | C118: Trots | D118: M | E118: M50 | F118: =SUM(LARGE((H118,J118,L118,N118,P118,R118),{1,2,3,4})) -> 106.3522142 | H118: 0 | I118: 0.1796064815 | J118: 106.3522142 | L118: 0 | N118: 0 | P118: 0 | R118: 0 | S118: 1 | T118: 106.3522142 | V118: =COUNTIF(#REF!,'Series Table'!B118)>0 -> 
A119: 117 | B119: James Roberts | C119: Pemb Dock | D119: M | E119: M | F119: =SUM(LARGE((H119,J119,L119,N119,P119,R119),{1,2,3,4})) -> 106.1530663 | H119: 0 | I119: 0.1799884259 | J119: 106.1530663 | L119: 0 | N119: 0 | P119: 0 | R119: 0 | S119: 1 | T119: 106.1530663 | V119: =COUNTIF(#REF!,'Series Table'!B119)>0 -> 
A120: 118 | B120: Llifon Howell | C120: West Coast Tri | D120: M | E120: M | F120: =SUM(LARGE((H120,J120,L120,N120,P120,R120),{1,2,3,4})) -> 106.1168576 | H120: 0 | I120: 0.1800578704 | J120: 106.1168576 | L120: 0 | N120: 0 | P120: 0 | R120: 0 | S120: 1 | T120: 106.1168576 | V120: =COUNTIF(#REF!,'Series Table'!B120)>0 -> 
A121: 119 | B121: Heddwyn Evans | C121: Cardigan Running Club | D121: M | E121: M | F121: =SUM(LARGE((H121,J121,L121,N121,P121,R121),{1,2,3,4})) -> 106.0685793 | H121: 0 | I121: 0.180150463 | J121: 106.0685793 | L121: 0 | N121: 0 | P121: 0 | R121: 0 | S121: 1 | T121: 106.0685793 | V121: =COUNTIF(#REF!,'Series Table'!B121)>0 -> 
A122: 120 | B122: Michael Smith | C122: Worcester | D122: M | E122: M | F122: =SUM(LARGE((H122,J122,L122,N122,P122,R122),{1,2,3,4})) -> 105.6944227 | H122: 0 | I122: 0.1808680556 | J122: 105.6944227 | L122: 0 | N122: 0 | P122: 0 | R122: 0 | S122: 1 | T122: 105.6944227 | V122: =COUNTIF(#REF!,'Series Table'!B122)>0 -> 
A123: 121 | B123: Niki Morgan | C123: =IFERROR(VLOOKUP(B123,INDIRECT("'"&$O$1&"'!"&"$C$2:$H$200"),2,FALSE),"") -> Mynydd Du | D123: =IFERROR(VLOOKUP(B123,INDIRECT("'"&$O$1&"'!"&"$C$2:$H$200"),3,FALSE),"") -> F | E123: =IFERROR(VLOOKUP(B123,INDIRECT("'"&$O$1&"'!"&"$C$2:$H$200"),4,FALSE),"") -> F50 | F123: =SUM(LARGE((H123,J123,L123,N123,P123,R123),{1,2,3,4})) -> 105.5454266 | H123: 0 | J123: 0 | L123: 0 | N123: 0 | O123: 0.06864571759 | P123: 105.5454266 | R123: 0 | S123: 1 | T123: 105.5454266 | V123: =COUNTIF(#REF!,'Series Table'!B123)>0 -> 
A124: 122 | B124: Jonathan Roberts | C124: =IFERROR(VLOOKUP(B124,INDIRECT("'"&$I$1&"'!"&"$C$2:$H$200"),2,FALSE),"") -> Pemb Dock | D124: =IFERROR(VLOOKUP(B124,INDIRECT("'"&$I$1&"'!"&"$C$2:$H$200"),3,FALSE),"") -> M | E124: =IFERROR(VLOOKUP(B124,INDIRECT("'"&$I$1&"'!"&"$C$2:$H$200"),4,FALSE),"") -> M | F124: =SUM(LARGE((H124,J124,L124,N124,P124,R124),{1,2,3,4})) -> 105.4530313 | H124: 0 | I124: 0.1813310185 | J124: 105.4530313 | L124: 0 | N124: 0 | P124: 0 | R124: 0 | S124: 1 | T124: 105.4530313 | V124: =COUNTIF(#REF!,'Series Table'!B124)>0 -> 
A125: 123 | B125: Louise Barker | C125: =IFERROR(VLOOKUP(B125,INDIRECT("'"&$I$1&"'!"&"$C$2:$H$200"),2,FALSE),"") -> Aberystwyth Ac | D125: =IFERROR(VLOOKUP(B125,INDIRECT("'"&$I$1&"'!"&"$C$2:$H$200"),3,FALSE),"") -> F | E125: =IFERROR(VLOOKUP(B125,INDIRECT("'"&$I$1&"'!"&"$C$2:$H$200"),4,FALSE),"") -> F40 | F125: =SUM(LARGE((H125,J125,L125,N125,P125,R125),{1,2,3,4})) -> 105.3383704 | H125: 0 | I125: 0.1815509259 | J125: 105.3383704 | L125: 0 | N125: 0 | P125: 0 | R125: 0 | S125: 1 | T125: 105.3383704 | V125: =COUNTIF(#REF!,'Series Table'!B125)>0 -> 
A126: 124 | B126: Alex Banks | C126: =IFERROR(VLOOKUP(B126,INDIRECT("'"&$K$1&"'!"&"$C$2:$H$200"),2,FALSE),"") -> Bristol & West Ac | D126: =IFERROR(VLOOKUP(B126,INDIRECT("'"&$K$1&"'!"&"$C$2:$H$200"),3,FALSE),"") -> M | E126: =IFERROR(VLOOKUP(B126,INDIRECT("'"&$K$1&"'!"&"$C$2:$H$200"),4,FALSE),"") -> M | F126: =SUM(LARGE((H126,J126,L126,N126,P126,R126),{1,2,3,4})) -> 105.2584868 | H126: 0 | J126: 0 | K126: 01:39:38 | L126: 105.2584868 | N126: 0 | P126: 0 | R126: 0 | S126: 1 | T126: 105.2584868 | V126: =COUNTIF(#REF!,'Series Table'!B126)>0 -> 
A127: 125 | B127: Phil Carter | C127: =IFERROR(VLOOKUP(B127,INDIRECT("'"&$I$1&"'!"&"$C$2:$H$200"),2,FALSE),"") -> Pembrokeshire Tri | D127: =IFERROR(VLOOKUP(B127,INDIRECT("'"&$I$1&"'!"&"$C$2:$H$200"),3,FALSE),"") -> M | E127: =IFERROR(VLOOKUP(B127,INDIRECT("'"&$I$1&"'!"&"$C$2:$H$200"),4,FALSE),"") -> M50 | F127: =SUM(LARGE((H127,J127,L127,N127,P127,R127),{1,2,3,4})) -> 104.8133441 | H127: 0 | I127: 0.1825578704 | J127: 104.8133441 | L127: 0 | N127: 0 | P127: 0 | R127: 0 | S127: 1 | T127: 104.8133441 | V127: =COUNTIF(#REF!,'Series Table'!B127)>0 -> 
A128: 126 | B128: Rodney Parker | C128: =IFERROR(VLOOKUP(B128,INDIRECT("'"&$M$1&"'!"&"$C$2:$H$200"),2,FALSE),"") -> Ryde Harriers | D128: =IFERROR(VLOOKUP(B128,INDIRECT("'"&$M$1&"'!"&"$C$2:$H$200"),3,FALSE),"") -> M | E128: =IFERROR(VLOOKUP(B128,INDIRECT("'"&$M$1&"'!"&"$C$2:$H$200"),4,FALSE),"") -> M40 | F128: =SUM(LARGE((H128,J128,L128,N128,P128,R128),{1,2,3,4})) -> 104.7738969 | H128: 0 | J128: 0 | L128: 0 | M128: 0.03355324074 | N128: 104.7738969 | P128: 0 | R128: 0 | S128: 1 | T128: 104.7738969 | V128: =COUNTIF(#REF!,'Series Table'!B128)>0 -> 
A129: 127 | B129: Steven Plumb | C129: =IFERROR(VLOOKUP(B129,INDIRECT("'"&$I$1&"'!"&"$C$2:$H$200"),2,FALSE),"") -> Carmarthen | D129: =IFERROR(VLOOKUP(B129,INDIRECT("'"&$I$1&"'!"&"$C$2:$H$200"),3,FALSE),"") -> M | E129: =IFERROR(VLOOKUP(B129,INDIRECT("'"&$I$1&"'!"&"$C$2:$H$200"),4,FALSE),"") -> M | F129: =SUM(LARGE((H129,J129,L129,N129,P129,R129),{1,2,3,4})) -> 104.6805789 | H129: 0 | I129: 0.1828125 | J129: 104.6805789 | L129: 0 | N129: 0 | P129: 0 | R129: 0 | S129: 1 | T129: 104.6805789 | V129: =COUNTIF(#REF!,'Series Table'!B129)>0 -> 
A130: 128 | B130: Jason Wilkins | C130: =IFERROR(VLOOKUP(B130,INDIRECT("'"&$I$1&"'!"&"$C$2:$H$200"),2,FALSE),"") -> Rhedwyr Preseli | D130: =IFERROR(VLOOKUP(B130,INDIRECT("'"&$I$1&"'!"&"$C$2:$H$200"),3,FALSE),"") -> M | E130: =IFERROR(VLOOKUP(B130,INDIRECT("'"&$I$1&"'!"&"$C$2:$H$200"),4,FALSE),"") -> M40 | F130: =SUM(LARGE((H130,J130,L130,N130,P130,R130),{1,2,3,4})) -> 104.5719527 | H130: 0 | I130: 0.1830208333 | J130: 104.5719527 | L130: 0 | N130: 0 | P130: 0 | R130: 0 | S130: 1 | T130: 104.5719527 | V130: =COUNTIF(#REF!,'Series Table'!B130)>0 -> 
A131: 129 | B131: Harry Rann | C131: =IFERROR(VLOOKUP(B131,INDIRECT("'"&$M$1&"'!"&"$C$2:$H$200"),2,FALSE),"") -> Godshill Massive | D131: =IFERROR(VLOOKUP(B131,INDIRECT("'"&$M$1&"'!"&"$C$2:$H$200"),3,FALSE),"") -> M | E131: =IFERROR(VLOOKUP(B131,INDIRECT("'"&$M$1&"'!"&"$C$2:$H$200"),4,FALSE),"") -> M | F131: =SUM(LARGE((H131,J131,L131,N131,P131,R131),{1,2,3,4})) -> 104.3140261 | G131: =IFERROR(VLOOKUP(B131,INDIRECT("'"&$G$1&"'!"&"$C$2:$H$200"),5,FALSE),"") ->  | H131: =IFERROR(VLOOKUP(B131,INDIRECT("'"&$G$1&"'!"&"$C$2:$H$200"),6,FALSE),0) -> 0 | I131: =IFERROR(VLOOKUP(B131,INDIRECT("'"&$I$1&"'!"&"$C$2:$G$200"),5,FALSE),"") ->  | J131: =IFERROR(VLOOKUP(B131,INDIRECT("'"&$I$1&"'!"&"$C$2:$H$200"),6,FALSE),0) -> 0 | K131: =IFERROR(VLOOKUP(B131,INDIRECT("'"&$K$1&"'!"&"$C$2:$H$200"),5,FALSE),"") ->  | L131: =IFERROR(VLOOKUP(B131,INDIRECT("'"&$K$1&"'!"&"$C$2:$H$200"),6,FALSE),0) -> 0 | M131: =IFERROR(VLOOKUP(B131,INDIRECT("'"&$M$1&"'!"&"$C$2:$h$200"),5,FALSE),"") -> 0.03371527778 | N131: =IFERROR(VLOOKUP(B131,INDIRECT("'"&$M$1&"'!"&"$C$2:$h$200"),6,FALSE),0) -> 104.3140261 | O131: =IFERROR(VLOOKUP(B131,INDIRECT("'"&$O$1&"'!"&"$C$2:$h$200"),5,FALSE),"") ->  | P131: =IFERROR(VLOOKUP(B131,INDIRECT("'"&$O$1&"'!"&"$C$2:$h$200"),6,FALSE),0) -> 0 | Q131: =IFERROR(VLOOKUP(B131,INDIRECT("'"&$Q$1&"'!"&"$C$2:$h$200"),5,FALSE),"") ->  | R131: =IFERROR(VLOOKUP(B131,INDIRECT("'"&$Q$1&"'!"&"$C$2:$h$200"),6,FALSE),0) -> 0 | S131: =6-COUNTIF(G131:Q131,"") -> 1 | T131: =F131/IF(S131>4,4,S131) -> 104.3140261 | V131: =COUNTIF(#REF!,'Series Table'!B131)>0 -> 
A132: =ROW(A130) -> 130 | B132: Richard Love | C132: =IFERROR(VLOOKUP(B132,INDIRECT("'"&$M$1&"'!"&"$C$2:$H$200"),2,FALSE),"") -> Mercia Fell Runners | D132: =IFERROR(VLOOKUP(B132,INDIRECT("'"&$M$1&"'!"&"$C$2:$H$200"),3,FALSE),"") -> M | E132: =IFERROR(VLOOKUP(B132,INDIRECT("'"&$M$1&"'!"&"$C$2:$H$200"),4,FALSE),"") -> M50 | F132: =SUM(LARGE((H132,J132,L132,N132,P132,R132),{1,2,3,4})) -> 103.7556115 | H132: 0 | J132: 0 | L132: 0 | M132: 0.03391203704 | N132: 103.7556115 | P132: 0 | R132: 0 | S132: 1 | T132: 103.7556115 | V132: =COUNTIF(#REF!,'Series Table'!B132)>0 -> 
A133: 131 | B133: Michael Cope | C133: =IFERROR(VLOOKUP(B133,INDIRECT("'"&$K$1&"'!"&"$C$2:$H$200"),2,FALSE),"") -> Mynydd Du | D133: =IFERROR(VLOOKUP(B133,INDIRECT("'"&$K$1&"'!"&"$C$2:$H$200"),3,FALSE),"") -> M | E133: =IFERROR(VLOOKUP(B133,INDIRECT("'"&$K$1&"'!"&"$C$2:$H$200"),4,FALSE),"") -> M40 | F133: =SUM(LARGE((H133,J133,L133,N133,P133,R133),{1,2,3,4})) -> 103.7211956 | H133: 0 | J133: 0 | K133: 01:41:15 | L133: 103.7211956 | N133: 0 | P133: 0 | R133: 0 | S133: 1 | T133: 103.7211956 | V133: =COUNTIF(#REF!,'Series Table'!B133)>0 -> 
A134: 132 | B134: Crispin Flower | C134: =IFERROR(VLOOKUP(B134,INDIRECT("'"&$K$1&"'!"&"$C$2:$H$200"),2,FALSE),"") -> Mynydd Du | D134: =IFERROR(VLOOKUP(B134,INDIRECT("'"&$K$1&"'!"&"$C$2:$H$200"),3,FALSE),"") -> M | E134: =IFERROR(VLOOKUP(B134,INDIRECT("'"&$K$1&"'!"&"$C$2:$H$200"),4,FALSE),"") -> M40 | F134: =SUM(LARGE((H134,J134,L134,N134,P134,R134),{1,2,3,4})) -> 103.6419538 | H134: 0 | J134: 0 | K134: 01:41:20 | L134: 103.6419538 | N134: 0 | P134: 0 | R134: 0 | S134: 1 | T134: 103.6419538 | V134: =COUNTIF(#REF!,'Series Table'!B134)>0 -> 
A135: 133 | B135: Luke Baines | C135: =IFERROR(VLOOKUP(B135,INDIRECT("'"&$I$1&"'!"&"$C$2:$H$200"),2,FALSE),"") -> Narberth | D135: =IFERROR(VLOOKUP(B135,INDIRECT("'"&$I$1&"'!"&"$C$2:$H$200"),3,FALSE),"") -> M | E135: =IFERROR(VLOOKUP(B135,INDIRECT("'"&$I$1&"'!"&"$C$2:$H$200"),4,FALSE),"") -> M | F135: =SUM(LARGE((H135,J135,L135,N135,P135,R135),{1,2,3,4})) -> 103.1598132 | H135: 0 | I135: 0.1857291667 | J135: 103.1598132 | L135: 0 | N135: 0 | P135: 0 | R135: 0 | S135: 1 | T135: 103.1598132 | V135: =COUNTIF(#REF!,'Series Table'!B135)>0 -> 
A136: 134 | B136: Nick Davies | C136: =IFERROR(VLOOKUP(B136,INDIRECT("'"&$I$1&"'!"&"$C$2:$H$200"),2,FALSE),"") -> Rhedwyr Preseli | D136: =IFERROR(VLOOKUP(B136,INDIRECT("'"&$I$1&"'!"&"$C$2:$H$200"),3,FALSE),"") -> M | E136: =IFERROR(VLOOKUP(B136,INDIRECT("'"&$I$1&"'!"&"$C$2:$H$200"),4,FALSE),"") -> M50 | F136: =SUM(LARGE((H136,J136,L136,N136,P136,R136),{1,2,3,4})) -> 102.9244566 | H136: 0 | I136: 0.1861805556 | J136: 102.9244566 | L136: 0 | N136: 0 | P136: 0 | R136: 0 | S136: 1 | T136: 102.9244566 | V136: =COUNTIF(#REF!,'Series Table'!B136)>0 -> 
A137: 135 | B137: Gareth Morris | C137: =IFERROR(VLOOKUP(B137,INDIRECT("'"&$I$1&"'!"&"$C$2:$H$200"),2,FALSE),"") -> Buckley Runners | D137: =IFERROR(VLOOKUP(B137,INDIRECT("'"&$I$1&"'!"&"$C$2:$H$200"),3,FALSE),"") -> M | E137: =IFERROR(VLOOKUP(B137,INDIRECT("'"&$I$1&"'!"&"$C$2:$H$200"),4,FALSE),"") -> M | F137: =SUM(LARGE((H137,J137,L137,N137,P137,R137),{1,2,3,4})) -> 102.8882479 | H137: 0 | I137: 0.18625 | J137: 102.8882479 | L137: 0 | N137: 0 | P137: 0 | R137: 0 | S137: 1 | T137: 102.8882479 | V137: =COUNTIF(#REF!,'Series Table'!B137)>0 -> 
A138: 136 | B138: John Rees | C138: =IFERROR(VLOOKUP(B138,INDIRECT("'"&$I$1&"'!"&"$C$2:$H$200"),2,FALSE),"") -> Rhedwyr Preseli | D138: =IFERROR(VLOOKUP(B138,INDIRECT("'"&$I$1&"'!"&"$C$2:$H$200"),3,FALSE),"") -> M | E138: =IFERROR(VLOOKUP(B138,INDIRECT("'"&$I$1&"'!"&"$C$2:$H$200"),4,FALSE),"") -> M50 | F138: =SUM(LARGE((H138,J138,L138,N138,P138,R138),{1,2,3,4})) -> 102.7373782 | H138: 0 | I138: 0.1865393519 | J138: 102.7373782 | L138: 0 | N138: 0 | P138: 0 | R138: 0 | S138: 1 | T138: 102.7373782 | V138: =COUNTIF(#REF!,'Series Table'!B138)>0 -> 
A139: 137 | B139: Ben Arkell | C139: =IFERROR(VLOOKUP(B139,INDIRECT("'"&$G$1&"'!"&"$C$2:$H$200"),2,FALSE),"") -> MDC | D139: =IFERROR(VLOOKUP(B139,INDIRECT("'"&$G$1&"'!"&"$C$2:$H$200"),3,FALSE),"") -> M | E139: =IFERROR(VLOOKUP(B139,INDIRECT("'"&$G$1&"'!"&"$C$2:$H$200"),4,FALSE),"") -> U23 | F139: =SUM(LARGE((H139,J139,L139,N139,P139,R139),{1,2,3,4})) -> 102.4524353 | G139: 01:26:44 | H139: 102.4524353 | J139: 0 | L139: 0 | N139: 0 | P139: 0 | R139: 0 | S139: 1 | T139: 102.4524353 | V139: =COUNTIF(#REF!,'Series Table'!B139)>0 -> 
A140: 138 | B140: Nicky Rees | C140: =IFERROR(VLOOKUP(B140,INDIRECT("'"&$I$1&"'!"&"$C$2:$H$200"),2,FALSE),"") -> Five Frogs | D140: =IFERROR(VLOOKUP(B140,INDIRECT("'"&$I$1&"'!"&"$C$2:$H$200"),3,FALSE),"") -> M | E140: =IFERROR(VLOOKUP(B140,INDIRECT("'"&$I$1&"'!"&"$C$2:$H$200"),4,FALSE),"") -> M40 | F140: =SUM(LARGE((H140,J140,L140,N140,P140,R140),{1,2,3,4})) -> 102.2787346 | H140: 0 | I140: 0.1874189815 | J140: 102.2787346 | L140: 0 | N140: 0 | P140: 0 | R140: 0 | S140: 1 | T140: 102.2787346 | V140: =COUNTIF(#REF!,'Series Table'!B140)>0 -> 
A141: 139 | B141: Steve Rogers | C141: =IFERROR(VLOOKUP(B141,INDIRECT("'"&$I$1&"'!"&"$C$2:$H$200"),2,FALSE),"") -> Five Frogs | D141: =IFERROR(VLOOKUP(B141,INDIRECT("'"&$I$1&"'!"&"$C$2:$H$200"),3,FALSE),"") -> M | E141: =IFERROR(VLOOKUP(B141,INDIRECT("'"&$I$1&"'!"&"$C$2:$H$200"),4,FALSE),"") -> M40 | F141: =SUM(LARGE((H141,J141,L141,N141,P141,R141),{1,2,3,4})) -> 102.2726998 | H141: 0 | I141: 0.1874305556 | J141: 102.2726998 | L141: 0 | N141: 0 | P141: 0 | R141: 0 | S141: 1 | T141: 102.2726998 | V141: =COUNTIF(#REF!,'Series Table'!B141)>0 -> 
A142: 140 | B142: Gary Pearson | C142: =IFERROR(VLOOKUP(B142,INDIRECT("'"&$M$1&"'!"&"$C$2:$H$200"),2,FALSE),"") -> Croft Ambrey | D142: =IFERROR(VLOOKUP(B142,INDIRECT("'"&$M$1&"'!"&"$C$2:$H$200"),3,FALSE),"") -> M | E142: =IFERROR(VLOOKUP(B142,INDIRECT("'"&$M$1&"'!"&"$C$2:$H$200"),4,FALSE),"") -> M40 | F142: =SUM(LARGE((H142,J142,L142,N142,P142,R142),{1,2,3,4})) -> 101.8832804 | H142: 0 | J142: 0 | L142: 0 | M142: 0.03457175926 | N142: 101.8832804 | P142: 0 | R142: 0 | S142: 1 | T142: 101.8832804 | V142: =COUNTIF(#REF!,'Series Table'!B142)>0 -> 
A143: 141 | B143: Dave Clarke | C143: =IFERROR(VLOOKUP(B143,INDIRECT("'"&$M$1&"'!"&"$C$2:$H$200"),2,FALSE),"") -> Unattached | D143: =IFERROR(VLOOKUP(B143,INDIRECT("'"&$M$1&"'!"&"$C$2:$H$200"),3,FALSE),"") -> M | E143: =IFERROR(VLOOKUP(B143,INDIRECT("'"&$M$1&"'!"&"$C$2:$H$200"),4,FALSE),"") -> M | F143: =SUM(LARGE((H143,J143,L143,N143,P143,R143),{1,2,3,4})) -> 101.6861929 | H143: 0 | J143: 0 | L143: 0 | M143: 0.0346412037 | N143: 101.6861929 | P143: 0 | R143: 0 | S143: 1 | T143: 101.6861929 | V143: =COUNTIF(#REF!,'Series Table'!B143)>0 -> 
A144: 142 | B144: Ainslie Corp | C144: =IFERROR(VLOOKUP(B144,INDIRECT("'"&$I$1&"'!"&"$C$2:$H$200"),2,FALSE),"") -> Penffordd | D144: =IFERROR(VLOOKUP(B144,INDIRECT("'"&$I$1&"'!"&"$C$2:$H$200"),3,FALSE),"") -> M | E144: =IFERROR(VLOOKUP(B144,INDIRECT("'"&$I$1&"'!"&"$C$2:$H$200"),4,FALSE),"") -> M40 | F144: =SUM(LARGE((H144,J144,L144,N144,P144,R144),{1,2,3,4})) -> 101.5243866 | H144: 0 | I144: 0.1888657407 | J144: 101.5243866 | L144: 0 | N144: 0 | P144: 0 | R144: 0 | S144: 1 | T144: 101.5243866 | V144: =COUNTIF(#REF!,'Series Table'!B144)>0 -> 
A145: 143 | B145: Lawrie Jones | C145: =IFERROR(VLOOKUP(B145,INDIRECT("'"&$I$1&"'!"&"$C$2:$H$200"),2,FALSE),"") -> Fra | D145: =IFERROR(VLOOKUP(B145,INDIRECT("'"&$I$1&"'!"&"$C$2:$H$200"),3,FALSE),"") -> M | E145: =IFERROR(VLOOKUP(B145,INDIRECT("'"&$I$1&"'!"&"$C$2:$H$200"),4,FALSE),"") -> M60 | F145: =SUM(LARGE((H145,J145,L145,N145,P145,R145),{1,2,3,4})) -> 101.4519692 | H145: 0 | I145: 0.1890046296 | J145: 101.4519692 | L145: 0 | N145: 0 | P145: 0 | R145: 0 | S145: 1 | T145: 101.4519692 | V145: =COUNTIF(#REF!,'Series Table'!B145)>0 -> 
A146: 144 | B146: Clem Dixon | C146: =IFERROR(VLOOKUP(B146,INDIRECT("'"&$M$1&"'!"&"$C$2:$H$200"),2,FALSE),"") -> Cambridge Harriers | D146: =IFERROR(VLOOKUP(B146,INDIRECT("'"&$M$1&"'!"&"$C$2:$H$200"),3,FALSE),"") -> M | E146: =IFERROR(VLOOKUP(B146,INDIRECT("'"&$M$1&"'!"&"$C$2:$H$200"),4,FALSE),"") -> M50 | F146: =SUM(LARGE((H146,J146,L146,N146,P146,R146),{1,2,3,4})) -> 101.292018 | H146: 0 | J146: 0 | L146: 0 | M146: 0.03478009259 | N146: 101.292018 | P146: 0 | R146: 0 | S146: 1 | T146: 101.292018 | V146: =COUNTIF(#REF!,'Series Table'!B146)>0 -> 
A147: 145 | B147: Pauline Linton | C147: =IFERROR(VLOOKUP(B147,INDIRECT("'"&$O$1&"'!"&"$C$2:$H$200"),2,FALSE),"") -> FRA | D147: =IFERROR(VLOOKUP(B147,INDIRECT("'"&$O$1&"'!"&"$C$2:$H$200"),3,FALSE),"") -> F | E147: =IFERROR(VLOOKUP(B147,INDIRECT("'"&$O$1&"'!"&"$C$2:$H$200"),4,FALSE),"") -> F50 | F147: =SUM(LARGE((H147,J147,L147,N147,P147,R147),{1,2,3,4})) -> 101.2369148 | H147: 0 | J147: 0 | L147: 0 | N147: 0 | O147: 0.07177696759 | P147: 101.2369148 | R147: 0 | S147: 1 | T147: 101.2369148 | V147: =COUNTIF(#REF!,'Series Table'!B147)>0 -> 
A148: 146 | B148: Chris Chambers | C148: =IFERROR(VLOOKUP(B148,INDIRECT("'"&$G$1&"'!"&"$C$2:$H$200"),2,FALSE),"") -> Mynydd Du | D148: =IFERROR(VLOOKUP(B148,INDIRECT("'"&$G$1&"'!"&"$C$2:$H$200"),3,FALSE),"") -> M | E148: =IFERROR(VLOOKUP(B148,INDIRECT("'"&$G$1&"'!"&"$C$2:$H$200"),4,FALSE),"") -> M40 | F148: =SUM(LARGE((H148,J148,L148,N148,P148,R148),{1,2,3,4})) -> 101.159049 | G148: 01:27:53 | H148: 101.159049 | J148: 0 | L148: 0 | N148: 0 | P148: 0 | R148: 0 | S148: 1 | T148: 101.159049 | V148: =COUNTIF(#REF!,'Series Table'!B148)>0 -> 
A149: 147 | B149: Dafydd Lewis | C149: =IFERROR(VLOOKUP(B149,INDIRECT("'"&$I$1&"'!"&"$C$2:$H$200"),2,FALSE),"") -> Whitland | D149: =IFERROR(VLOOKUP(B149,INDIRECT("'"&$I$1&"'!"&"$C$2:$H$200"),3,FALSE),"") -> M | E149: =IFERROR(VLOOKUP(B149,INDIRECT("'"&$I$1&"'!"&"$C$2:$H$200"),4,FALSE),"") -> M | F149: =SUM(LARGE((H149,J149,L149,N149,P149,R149),{1,2,3,4})) -> 101.0717777 | H149: 0 | I149: 0.1897337963 | J149: 101.0717777 | L149: 0 | N149: 0 | P149: 0 | R149: 0 | S149: 1 | T149: 101.0717777 | V149: =COUNTIF(#REF!,'Series Table'!B149)>0 -> 
A150: 148 | B150: Max Burns | C150: =IFERROR(VLOOKUP(B150,INDIRECT("'"&$G$1&"'!"&"$C$2:$H$200"),2,FALSE),"") -> 1 Rifles | D150: =IFERROR(VLOOKUP(B150,INDIRECT("'"&$G$1&"'!"&"$C$2:$H$200"),3,FALSE),"") -> M | E150: =IFERROR(VLOOKUP(B150,INDIRECT("'"&$G$1&"'!"&"$C$2:$H$200"),4,FALSE),"") -> M | F150: =SUM(LARGE((H150,J150,L150,N150,P150,R150),{1,2,3,4})) -> 101.0653254 | G150: 01:27:58 | H150: 101.0653254 | J150: 0 | L150: 0 | N150: 0 | P150: 0 | R150: 0 | S150: 1 | T150: 101.0653254 | V150: =COUNTIF(#REF!,'Series Table'!B150)>0 -> 
A151: 149 | B151: Domi Kimber | C151: =IFERROR(VLOOKUP(B151,INDIRECT("'"&$I$1&"'!"&"$C$2:$H$200"),2,FALSE),"") -> Rhedwyr Preseli | D151: =IFERROR(VLOOKUP(B151,INDIRECT("'"&$I$1&"'!"&"$C$2:$H$200"),3,FALSE),"") -> F | E151: =IFERROR(VLOOKUP(B151,INDIRECT("'"&$I$1&"'!"&"$C$2:$H$200"),4,FALSE),"") -> F40 | F151: =SUM(LARGE((H151,J151,L151,N151,P151,R151),{1,2,3,4})) -> 101.0053951 | H151: 0 | I151: 0.1898611111 | J151: 101.0053951 | L151: 0 | N151: 0 | P151: 0 | R151: 0 | S151: 1 | T151: 101.0053951 | V151: =COUNTIF(#REF!,'Series Table'!B151)>0 -> 
A152: 150 | B152: Ben Woods | C152: =IFERROR(VLOOKUP(B152,INDIRECT("'"&$I$1&"'!"&"$C$2:$H$200"),2,FALSE),"") -> Newcastle Emlyn | D152: =IFERROR(VLOOKUP(B152,INDIRECT("'"&$I$1&"'!"&"$C$2:$H$200"),3,FALSE),"") -> M | E152: =IFERROR(VLOOKUP(B152,INDIRECT("'"&$I$1&"'!"&"$C$2:$H$200"),4,FALSE),"") -> M | F152: =SUM(LARGE((H152,J152,L152,N152,P152,R152),{1,2,3,4})) -> 100.9571168 | H152: 0 | I152: 0.1899537037 | J152: 100.9571168 | L152: 0 | N152: 0 | P152: 0 | R152: 0 | S152: 1 | T152: 100.9571168 | V152: =COUNTIF(#REF!,'Series Table'!B152)>0 -> 
A153: 151 | B153: Martin Green | C153: =IFERROR(VLOOKUP(B153,INDIRECT("'"&$M$1&"'!"&"$C$2:$H$200"),2,FALSE),"") -> Maldwyn Harriers | D153: =IFERROR(VLOOKUP(B153,INDIRECT("'"&$M$1&"'!"&"$C$2:$H$200"),3,FALSE),"") -> M | E153: =IFERROR(VLOOKUP(B153,INDIRECT("'"&$M$1&"'!"&"$C$2:$H$200"),4,FALSE),"") -> M60 | F153: =SUM(LARGE((H153,J153,L153,N153,P153,R153),{1,2,3,4})) -> 100.8321472 | H153: 0 | J153: 0 | L153: 0 | M153: 0.03494212963 | N153: 100.8321472 | P153: 0 | R153: 0 | S153: 1 | T153: 100.8321472 | V153: =COUNTIF(#REF!,'Series Table'!B153)>0 -> 
A154: 152 | B154: Dafydd James | C154: =IFERROR(VLOOKUP(B154,INDIRECT("'"&$I$1&"'!"&"$C$2:$H$200"),2,FALSE),"") -> Newcastle Emlyn | D154: =IFERROR(VLOOKUP(B154,INDIRECT("'"&$I$1&"'!"&"$C$2:$H$200"),3,FALSE),"") -> M | E154: =IFERROR(VLOOKUP(B154,INDIRECT("'"&$I$1&"'!"&"$C$2:$H$200"),4,FALSE),"") -> M | F154: =SUM(LARGE((H154,J154,L154,N154,P154,R154),{1,2,3,4})) -> 100.3898471 | H154: 0 | I154: 0.1910416667 | J154: 100.3898471 | L154: 0 | N154: 0 | P154: 0 | R154: 0 | S154: 1 | T154: 100.3898471 | V154: =COUNTIF(#REF!,'Series Table'!B154)>0 -> 
A155: 153 | B155: Laura Wainwright | C155: =IFERROR(VLOOKUP(B155,INDIRECT("'"&$I$1&"'!"&"$C$2:$H$200"),2,FALSE),"") -> Stubbington Green | D155: =IFERROR(VLOOKUP(B155,INDIRECT("'"&$I$1&"'!"&"$C$2:$H$200"),3,FALSE),"") -> F | E155: =IFERROR(VLOOKUP(B155,INDIRECT("'"&$I$1&"'!"&"$C$2:$H$200"),4,FALSE),"") -> F | F155: =SUM(LARGE((H155,J155,L155,N155,P155,R155),{1,2,3,4})) -> 100.1665601 | H155: 0 | I155: 0.1914699074 | J155: 100.1665601 | L155: 0 | N155: 0 | P155: 0 | R155: 0 | S155: 1 | T155: 100.1665601 | V155: =COUNTIF(#REF!,'Series Table'!B155)>0 -> 
A156: 154 | B156: Andy James | C156: =IFERROR(VLOOKUP(B156,INDIRECT("'"&$I$1&"'!"&"$C$2:$H$200"),2,FALSE),"") -> Tailwind Nutrition | D156: =IFERROR(VLOOKUP(B156,INDIRECT("'"&$I$1&"'!"&"$C$2:$H$200"),3,FALSE),"") -> M | E156: =IFERROR(VLOOKUP(B156,INDIRECT("'"&$I$1&"'!"&"$C$2:$H$200"),4,FALSE),"") -> M40 | F156: =SUM(LARGE((H156,J156,L156,N156,P156,R156),{1,2,3,4})) -> 100.1605253 | H156: 0 | I156: 0.1914814815 | J156: 100.1605253 | L156: 0 | N156: 0 | P156: 0 | R156: 0 | S156: 1 | T156: 100.1605253 | V156: =COUNTIF(#REF!,'Series Table'!B156)>0 -> 
A157: 155 | B157: Richard Smith | C157: =IFERROR(VLOOKUP(B157,INDIRECT("'"&$G$1&"'!"&"$C$2:$H$200"),2,FALSE),"") -> Dursley | D157: =IFERROR(VLOOKUP(B157,INDIRECT("'"&$G$1&"'!"&"$C$2:$H$200"),3,FALSE),"") -> M | E157: =IFERROR(VLOOKUP(B157,INDIRECT("'"&$G$1&"'!"&"$C$2:$H$200"),4,FALSE),"") -> M | F157: =SUM(LARGE((H157,J157,L157,N157,P157,R157),{1,2,3,4})) -> 100.128089 | G157: 01:28:48 | H157: 100.128089 | J157: 0 | L157: 0 | N157: 0 | P157: 0 | R157: 0 | S157: 1 | T157: 100.128089 | V157: =COUNTIF(#REF!,'Series Table'!B157)>0 -> 
A158: 156 | B158: Peter Kusy | C158: =IFERROR(VLOOKUP(B158,INDIRECT("'"&$I$1&"'!"&"$C$2:$H$200"),2,FALSE),"") -> Milford Haven | D158: =IFERROR(VLOOKUP(B158,INDIRECT("'"&$I$1&"'!"&"$C$2:$H$200"),3,FALSE),"") -> M | E158: =IFERROR(VLOOKUP(B158,INDIRECT("'"&$I$1&"'!"&"$C$2:$H$200"),4,FALSE),"") -> M | F158: =SUM(LARGE((H158,J158,L158,N158,P158,R158),{1,2,3,4})) -> 100.0639687 | H158: 0 | I158: 0.1916666667 | J158: 100.0639687 | L158: 0 | N158: 0 | P158: 0 | R158: 0 | S158: 1 | T158: 100.0639687 | V158: =COUNTIF(#REF!,'Series Table'!B158)>0 -> 
A159: 157 | B159: Tony Wooldridge | C159: =IFERROR(VLOOKUP(B159,INDIRECT("'"&$G$1&"'!"&"$C$2:$H$200"),2,FALSE),"") -> Dursley | D159: =IFERROR(VLOOKUP(B159,INDIRECT("'"&$G$1&"'!"&"$C$2:$H$200"),3,FALSE),"") -> M | E159: =IFERROR(VLOOKUP(B159,INDIRECT("'"&$G$1&"'!"&"$C$2:$H$200"),4,FALSE),"") -> M60 | F159: =SUM(LARGE((H159,J159,L159,N159,P159,R159),{1,2,3,4})) -> 99.95938642 | G159: 01:28:57 | H159: 99.95938642 | J159: 0 | L159: 0 | N159: 0 | P159: 0 | R159: 0 | S159: 1 | T159: 99.95938642 | V159: =COUNTIF(#REF!,'Series Table'!B159)>0 -> 
A160: 158 | B160: Jonathan Smith | C160: =IFERROR(VLOOKUP(B160,INDIRECT("'"&$M$1&"'!"&"$C$2:$H$200"),2,FALSE),"") -> Ranelagh Harriers | D160: =IFERROR(VLOOKUP(B160,INDIRECT("'"&$M$1&"'!"&"$C$2:$H$200"),3,FALSE),"") -> M | E160: =IFERROR(VLOOKUP(B160,INDIRECT("'"&$M$1&"'!"&"$C$2:$H$200"),4,FALSE),"") -> M | F160: =SUM(LARGE((H160,J160,L160,N160,P160,R160),{1,2,3,4})) -> 99.81386182 | H160: 0 | J160: 0 | L160: 0 | M160: 0.03530092593 | N160: 99.81386182 | P160: 0 | R160: 0 | S160: 1 | T160: 99.81386182 | V160: =COUNTIF(#REF!,'Series Table'!B160)>0 -> 
A161: 159 | B161: Andrew Noble | C161: =IFERROR(VLOOKUP(B161,INDIRECT("'"&$M$1&"'!"&"$C$2:$H$200"),2,FALSE),"") -> Folkestone RC | D161: =IFERROR(VLOOKUP(B161,INDIRECT("'"&$M$1&"'!"&"$C$2:$H$200"),3,FALSE),"") -> M | E161: =IFERROR(VLOOKUP(B161,INDIRECT("'"&$M$1&"'!"&"$C$2:$H$200"),4,FALSE),"") -> M50 | F161: =SUM(LARGE((H161,J161,L161,N161,P161,R161),{1,2,3,4})) -> 99.78101391 | H161: 0 | J161: 0 | L161: 0 | M161: 0.0353125 | N161: 99.78101391 | P161: 0 | R161: 0 | S161: 1 | T161: 99.78101391 | V161: =COUNTIF(#REF!,'Series Table'!B161)>0 -> 
A162: 160 | B162: Tom Rees | C162: =IFERROR(VLOOKUP(B162,INDIRECT("'"&$I$1&"'!"&"$C$2:$H$200"),2,FALSE),"") -> Newport,Pembs | D162: =IFERROR(VLOOKUP(B162,INDIRECT("'"&$I$1&"'!"&"$C$2:$H$200"),3,FALSE),"") -> M | E162: =IFERROR(VLOOKUP(B162,INDIRECT("'"&$I$1&"'!"&"$C$2:$H$200"),4,FALSE),"") -> M | F162: =SUM(LARGE((H162,J162,L162,N162,P162,R162),{1,2,3,4})) -> 99.21909889 | H162: 0 | I162: 0.193287037 | J162: 99.21909889 | L162: 0 | N162: 0 | P162: 0 | R162: 0 | S162: 1 | T162: 99.21909889 | V162: =COUNTIF(#REF!,'Series Table'!B162)>0 -> 
A163: 161 | B163: Richard Hudson | C163: =IFERROR(VLOOKUP(B163,INDIRECT("'"&$K$1&"'!"&"$C$2:$H$200"),2,FALSE),"") -> Avon Valley Runners | D163: =IFERROR(VLOOKUP(B163,INDIRECT("'"&$K$1&"'!"&"$C$2:$H$200"),3,FALSE),"") -> M | E163: =IFERROR(VLOOKUP(B163,INDIRECT("'"&$K$1&"'!"&"$C$2:$H$200"),4,FALSE),"") -> M50 | F163: =SUM(LARGE((H163,J163,L163,N163,P163,R163),{1,2,3,4})) -> 99.20441218 | H163: 0 | J163: 0 | K163: 01:46:00 | L163: 99.20441218 | N163: 0 | P163: 0 | R163: 0 | S163: 1 | T163: 99.20441218 | V163: =COUNTIF(#REF!,'Series Table'!B163)>0 -> 
A164: 162 | B164: Peter Dyer | C164: =IFERROR(VLOOKUP(B164,INDIRECT("'"&$K$1&"'!"&"$C$2:$H$200"),2,FALSE),"") -> Avon Valley Runners | D164: =IFERROR(VLOOKUP(B164,INDIRECT("'"&$K$1&"'!"&"$C$2:$H$200"),3,FALSE),"") -> M | E164: =IFERROR(VLOOKUP(B164,INDIRECT("'"&$K$1&"'!"&"$C$2:$H$200"),4,FALSE),"") -> MU23 | F164: =SUM(LARGE((H164,J164,L164,N164,P164,R164),{1,2,3,4})) -> 98.9825351 | H164: 0 | J164: 0 | K164: 01:46:14 | L164: 98.9825351 | N164: 0 | P164: 0 | R164: 0 | S164: 1 | T164: 98.9825351 | V164: =COUNTIF(#REF!,'Series Table'!B164)>0 -> 
A165: 163 | B165: Dave Place | C165: =IFERROR(VLOOKUP(B165,INDIRECT("'"&$K$1&"'!"&"$C$2:$H$200"),2,FALSE),"") -> Unattached | D165: =IFERROR(VLOOKUP(B165,INDIRECT("'"&$K$1&"'!"&"$C$2:$H$200"),3,FALSE),"") -> M | E165: =IFERROR(VLOOKUP(B165,INDIRECT("'"&$K$1&"'!"&"$C$2:$H$200"),4,FALSE),"") -> M50 | F165: =SUM(LARGE((H165,J165,L165,N165,P165,R165),{1,2,3,4})) -> 98.90329329 | H165: 0 | J165: 0 | K165: 01:46:19 | L165: 98.90329329 | N165: 0 | P165: 0 | R165: 0 | S165: 1 | T165: 98.90329329 | V165: =COUNTIF(#REF!,'Series Table'!B165)>0 -> 
A166: 164 | B166: Steve Harrhy | C166: =IFERROR(VLOOKUP(B166,INDIRECT("'"&$G$1&"'!"&"$C$2:$H$200"),2,FALSE),"") -> Pontypool | D166: =IFERROR(VLOOKUP(B166,INDIRECT("'"&$G$1&"'!"&"$C$2:$H$200"),3,FALSE),"") -> M | E166: =IFERROR(VLOOKUP(B166,INDIRECT("'"&$G$1&"'!"&"$C$2:$H$200"),4,FALSE),"") -> M50 | F166: =SUM(LARGE((H166,J166,L166,N166,P166,R166),{1,2,3,4})) -> 98.8721922 | G166: 01:29:55 | H166: 98.8721922 | J166: 0 | L166: 0 | N166: 0 | P166: 0 | R166: 0 | S166: 1 | T166: 98.8721922 | V166: =COUNTIF(#REF!,'Series Table'!B166)>0 -> 
A167: 165 | B167: Jon Roberts | C167: =IFERROR(VLOOKUP(B167,INDIRECT("'"&$O$1&"'!"&"$C$2:$H$200"),2,FALSE),"") -> Unattached | D167: =IFERROR(VLOOKUP(B167,INDIRECT("'"&$O$1&"'!"&"$C$2:$H$200"),3,FALSE),"") -> M | E167: =IFERROR(VLOOKUP(B167,INDIRECT("'"&$O$1&"'!"&"$C$2:$H$200"),4,FALSE),"") -> M | F167: =SUM(LARGE((H167,J167,L167,N167,P167,R167),{1,2,3,4})) -> 98.82912336 | H167: 0 | J167: 0 | L167: 0 | N167: 0 | O167: 0.07352685185 | P167: 98.82912336 | R167: 0 | S167: 1 | T167: 98.82912336 | V167: =COUNTIF(#REF!,'Series Table'!B167)>0 -> 
A168: 166 | B168: Alice Bedwell | C168: =IFERROR(VLOOKUP(B168,INDIRECT("'"&$K$1&"'!"&"$C$2:$H$200"),2,FALSE),"") -> MDC | D168: =IFERROR(VLOOKUP(B168,INDIRECT("'"&$K$1&"'!"&"$C$2:$H$200"),3,FALSE),"") -> F | E168: =IFERROR(VLOOKUP(B168,INDIRECT("'"&$K$1&"'!"&"$C$2:$H$200"),4,FALSE),"") -> F50 | F168: =SUM(LARGE((H168,J168,L168,N168,P168,R168),{1,2,3,4})) -> 98.45953913 | H168: 0 | J168: 0 | K168: 01:46:47 | L168: 98.45953913 | N168: 0 | P168: 0 | R168: 0 | S168: 1 | T168: 98.45953913 | V168: =COUNTIF(#REF!,'Series Table'!B168)>0 -> 
A169: 167 | B169: Paul Kelly | C169: =IFERROR(VLOOKUP(B169,INDIRECT("'"&$M$1&"'!"&"$C$2:$H$200"),2,FALSE),"") -> Durham Fell Runners | D169: =IFERROR(VLOOKUP(B169,INDIRECT("'"&$M$1&"'!"&"$C$2:$H$200"),3,FALSE),"") -> M | E169: =IFERROR(VLOOKUP(B169,INDIRECT("'"&$M$1&"'!"&"$C$2:$H$200"),4,FALSE),"") -> M60 | F169: =SUM(LARGE((H169,J169,L169,N169,P169,R169),{1,2,3,4})) -> 98.10577028 | H169: 0 | J169: 0 | L169: 0 | M169: 0.03590277778 | N169: 98.10577028 | P169: 0 | R169: 0 | S169: 1 | T169: 98.10577028 | V169: =COUNTIF(#REF!,'Series Table'!B169)>0 -> 
A170: 168 | B170: Peter Sowerby | C170: =IFERROR(VLOOKUP(B170,INDIRECT("'"&$K$1&"'!"&"$C$2:$H$200"),2,FALSE),"") -> Brecon Ac | D170: =IFERROR(VLOOKUP(B170,INDIRECT("'"&$K$1&"'!"&"$C$2:$H$200"),3,FALSE),"") -> M | E170: =IFERROR(VLOOKUP(B170,INDIRECT("'"&$K$1&"'!"&"$C$2:$H$200"),4,FALSE),"") -> M50 | F170: =SUM(LARGE((H170,J170,L170,N170,P170,R170),{1,2,3,4})) -> 97.82560462 | H170: 0 | J170: 0 | K170: 01:47:27 | L170: 97.82560462 | N170: 0 | P170: 0 | R170: 0 | S170: 1 | T170: 97.82560462 | V170: =COUNTIF(#REF!,'Series Table'!B170)>0 -> 
A171: 169 | B171: Mal Evans | C171: =IFERROR(VLOOKUP(B171,INDIRECT("'"&$K$1&"'!"&"$C$2:$H$200"),2,FALSE),"") -> Unattached | D171: =IFERROR(VLOOKUP(B171,INDIRECT("'"&$K$1&"'!"&"$C$2:$H$200"),3,FALSE),"") -> M | E171: =IFERROR(VLOOKUP(B171,INDIRECT("'"&$K$1&"'!"&"$C$2:$H$200"),4,FALSE),"") -> M50 | F171: =SUM(LARGE((H171,J171,L171,N171,P171,R171),{1,2,3,4})) -> 97.79390789 | H171: 0 | J171: 0 | K171: 01:47:29 | L171: 97.79390789 | N171: 0 | P171: 0 | R171: 0 | S171: 1 | T171: 97.79390789 | V171: =COUNTIF(#REF!,'Series Table'!B171)>0 -> 
A172: 170 | B172: Timothy Parker | C172: =IFERROR(VLOOKUP(B172,INDIRECT("'"&$I$1&"'!"&"$C$2:$H$200"),2,FALSE),"") -> Mercia Fell Runners | D172: =IFERROR(VLOOKUP(B172,INDIRECT("'"&$I$1&"'!"&"$C$2:$H$200"),3,FALSE),"") -> M | E172: =IFERROR(VLOOKUP(B172,INDIRECT("'"&$I$1&"'!"&"$C$2:$H$200"),4,FALSE),"") -> M50 | F172: =SUM(LARGE((H172,J172,L172,N172,P172,R172),{1,2,3,4})) -> 97.77678539 | H172: 0 | I172: 0.1960532407 | J172: 97.77678539 | L172: 0 | N172: 0 | P172: 0 | R172: 0 | S172: 1 | T172: 97.77678539 | V172: =COUNTIF(#REF!,'Series Table'!B172)>0 -> 
A173: 171 | B173: Matt Rogerson | C173: =IFERROR(VLOOKUP(B173,INDIRECT("'"&$I$1&"'!"&"$C$2:$H$200"),2,FALSE),"") -> Llanelli | D173: =IFERROR(VLOOKUP(B173,INDIRECT("'"&$I$1&"'!"&"$C$2:$H$200"),3,FALSE),"") -> M | E173: =IFERROR(VLOOKUP(B173,INDIRECT("'"&$I$1&"'!"&"$C$2:$H$200"),4,FALSE),"") -> M40 | F173: =SUM(LARGE((H173,J173,L173,N173,P173,R173),{1,2,3,4})) -> 97.19744608 | H173: 0 | I173: 0.1971643519 | J173: 97.19744608 | L173: 0 | N173: 0 | P173: 0 | R173: 0 | S173: 1 | T173: 97.19744608 | V173: =COUNTIF(#REF!,'Series Table'!B173)>0 -> 
A174: 172 | B174: Jonny Sable | C174: =IFERROR(VLOOKUP(B174,INDIRECT("'"&$I$1&"'!"&"$C$2:$H$200"),2,FALSE),"") -> Rhedwyr Preseli | D174: =IFERROR(VLOOKUP(B174,INDIRECT("'"&$I$1&"'!"&"$C$2:$H$200"),3,FALSE),"") -> M | E174: =IFERROR(VLOOKUP(B174,INDIRECT("'"&$I$1&"'!"&"$C$2:$H$200"),4,FALSE),"") -> M | F174: =SUM(LARGE((H174,J174,L174,N174,P174,R174),{1,2,3,4})) -> 96.99829819 | H174: 0 | I174: 0.1975462963 | J174: 96.99829819 | L174: 0 | N174: 0 | P174: 0 | R174: 0 | S174: 1 | T174: 96.99829819 | V174: =COUNTIF(#REF!,'Series Table'!B174)>0 -> 
A175: 173 | B175: Tim Plumb | C175: =IFERROR(VLOOKUP(B175,INDIRECT("'"&$I$1&"'!"&"$C$2:$H$200"),2,FALSE),"") -> Narberth | D175: =IFERROR(VLOOKUP(B175,INDIRECT("'"&$I$1&"'!"&"$C$2:$H$200"),3,FALSE),"") -> M | E175: =IFERROR(VLOOKUP(B175,INDIRECT("'"&$I$1&"'!"&"$C$2:$H$200"),4,FALSE),"") -> M | F175: =SUM(LARGE((H175,J175,L175,N175,P175,R175),{1,2,3,4})) -> 96.90777642 | H175: 0 | I175: 0.1977199074 | J175: 96.90777642 | L175: 0 | N175: 0 | P175: 0 | R175: 0 | S175: 1 | T175: 96.90777642 | V175: =COUNTIF(#REF!,'Series Table'!B175)>0 -> 
A176: 174 | B176: Michael Brown | C176: =IFERROR(VLOOKUP(B176,INDIRECT("'"&$I$1&"'!"&"$C$2:$H$200"),2,FALSE),"") -> London | D176: =IFERROR(VLOOKUP(B176,INDIRECT("'"&$I$1&"'!"&"$C$2:$H$200"),3,FALSE),"") -> M | E176: =IFERROR(VLOOKUP(B176,INDIRECT("'"&$I$1&"'!"&"$C$2:$H$200"),4,FALSE),"") -> M | F176: =SUM(LARGE((H176,J176,L176,N176,P176,R176),{1,2,3,4})) -> 96.90174164 | H176: 0 | I176: 0.1977314815 | J176: 96.90174164 | L176: 0 | N176: 0 | P176: 0 | R176: 0 | S176: 1 | T176: 96.90174164 | V176: =COUNTIF(#REF!,'Series Table'!B176)>0 -> 
A177: 175 | B177: Simon Blease | C177: =IFERROR(VLOOKUP(B177,INDIRECT("'"&$M$1&"'!"&"$C$2:$H$200"),2,FALSE),"") -> Brycheiniog | D177: =IFERROR(VLOOKUP(B177,INDIRECT("'"&$M$1&"'!"&"$C$2:$H$200"),3,FALSE),"") -> M | E177: =IFERROR(VLOOKUP(B177,INDIRECT("'"&$M$1&"'!"&"$C$2:$H$200"),4,FALSE),"") -> M50 | F177: =SUM(LARGE((H177,J177,L177,N177,P177,R177),{1,2,3,4})) -> 96.89039746 | H177: 0 | J177: 0 | L177: 0 | M177: 0.03633101852 | N177: 96.89039746 | P177: 0 | R177: 0 | S177: 1 | T177: 96.89039746 | V177: =COUNTIF(#REF!,'Series Table'!B177)>0 -> 
A178: 176 | B178: Kim Braznell | C178: =IFERROR(VLOOKUP(B178,INDIRECT("'"&$I$1&"'!"&"$C$2:$H$200"),2,FALSE),"") -> Mercia Fell Runners | D178: =IFERROR(VLOOKUP(B178,INDIRECT("'"&$I$1&"'!"&"$C$2:$H$200"),3,FALSE),"") -> F | E178: =IFERROR(VLOOKUP(B178,INDIRECT("'"&$I$1&"'!"&"$C$2:$H$200"),4,FALSE),"") -> F60 | F178: =SUM(LARGE((H178,J178,L178,N178,P178,R178),{1,2,3,4})) -> 96.84139379 | H178: 0 | I178: 0.1978472222 | J178: 96.84139379 | L178: 0 | N178: 0 | P178: 0 | R178: 0 | S178: 1 | T178: 96.84139379 | V178: =COUNTIF(#REF!,'Series Table'!B178)>0 -> 
A179: 177 | B179: Claudio Donofrio | C179: =IFERROR(VLOOKUP(B179,INDIRECT("'"&$I$1&"'!"&"$C$2:$H$200"),2,FALSE),"") -> Swansea | D179: =IFERROR(VLOOKUP(B179,INDIRECT("'"&$I$1&"'!"&"$C$2:$H$200"),3,FALSE),"") -> M | E179: =IFERROR(VLOOKUP(B179,INDIRECT("'"&$I$1&"'!"&"$C$2:$H$200"),4,FALSE),"") -> M40 | F179: =SUM(LARGE((H179,J179,L179,N179,P179,R179),{1,2,3,4})) -> 96.24395013 | H179: 0 | I179: 0.1989930556 | J179: 96.24395013 | L179: 0 | N179: 0 | P179: 0 | R179: 0 | S179: 1 | T179: 96.24395013 | V179: =COUNTIF(#REF!,'Series Table'!B179)>0 -> 
A180: 178 | B180: Julian Williams | C180: =IFERROR(VLOOKUP(B180,INDIRECT("'"&$M$1&"'!"&"$C$2:$H$200"),2,FALSE),"") -> London Frontrunners | D180: =IFERROR(VLOOKUP(B180,INDIRECT("'"&$M$1&"'!"&"$C$2:$H$200"),3,FALSE),"") -> M | E180: =IFERROR(VLOOKUP(B180,INDIRECT("'"&$M$1&"'!"&"$C$2:$H$200"),4,FALSE),"") -> M40 | F180: =SUM(LARGE((H180,J180,L180,N180,P180,R180),{1,2,3,4})) -> 96.13489543 | H180: 0 | J180: 0 | L180: 0 | M180: 0.03659722222 | N180: 96.13489543 | P180: 0 | R180: 0 | S180: 1 | T180: 96.13489543 | V180: =COUNTIF(#REF!,'Series Table'!B180)>0 -> 
A181: 179 | B181: Gareth Oliver | C181: =IFERROR(VLOOKUP(B181,INDIRECT("'"&$I$1&"'!"&"$C$2:$H$200"),2,FALSE),"") -> Swansea | D181: =IFERROR(VLOOKUP(B181,INDIRECT("'"&$I$1&"'!"&"$C$2:$H$200"),3,FALSE),"") -> M | E181: =IFERROR(VLOOKUP(B181,INDIRECT("'"&$I$1&"'!"&"$C$2:$H$200"),4,FALSE),"") -> M40 | F181: =SUM(LARGE((H181,J181,L181,N181,P181,R181),{1,2,3,4})) -> 95.92410655 | H181: 0 | I181: 0.1996064815 | J181: 95.92410655 | L181: 0 | N181: 0 | P181: 0 | R181: 0 | S181: 1 | T181: 95.92410655 | V181: =COUNTIF(#REF!,'Series Table'!B181)>0 -> 
A182: 180 | B182: Ricky Holmes | C182: =IFERROR(VLOOKUP(B182,INDIRECT("'"&$I$1&"'!"&"$C$2:$H$200"),2,FALSE),"") -> Aberporth | D182: =IFERROR(VLOOKUP(B182,INDIRECT("'"&$I$1&"'!"&"$C$2:$H$200"),3,FALSE),"") -> M | E182: =IFERROR(VLOOKUP(B182,INDIRECT("'"&$I$1&"'!"&"$C$2:$H$200"),4,FALSE),"") -> M | F182: =SUM(LARGE((H182,J182,L182,N182,P182,R182),{1,2,3,4})) -> 95.86979349 | H182: 0 | I182: 0.1997106481 | J182: 95.86979349 | L182: 0 | N182: 0 | P182: 0 | R182: 0 | S182: 1 | T182: 95.86979349 | V182: =COUNTIF(#REF!,'Series Table'!B182)>0 -> 
A183: 181 | B183: Pauol Sajgalik | C183: =IFERROR(VLOOKUP(B183,INDIRECT("'"&$K$1&"'!"&"$C$2:$H$200"),2,FALSE),"") -> Tj Drhleny | D183: =IFERROR(VLOOKUP(B183,INDIRECT("'"&$K$1&"'!"&"$C$2:$H$200"),3,FALSE),"") -> M | E183: =IFERROR(VLOOKUP(B183,INDIRECT("'"&$K$1&"'!"&"$C$2:$H$200"),4,FALSE),"") -> M | F183: =SUM(LARGE((H183,J183,L183,N183,P183,R183),{1,2,3,4})) -> 95.48004691 | H183: 0 | J183: 0 | K183: 01:49:55 | L183: 95.48004691 | N183: 0 | P183: 0 | R183: 0 | S183: 1 | T183: 95.48004691 | V183: =COUNTIF(#REF!,'Series Table'!B183)>0 -> 
A184: 182 | B184: James Morrison | C184: =IFERROR(VLOOKUP(B184,INDIRECT("'"&$M$1&"'!"&"$C$2:$H$200"),2,FALSE),"") -> Tiverton Harriers | D184: =IFERROR(VLOOKUP(B184,INDIRECT("'"&$M$1&"'!"&"$C$2:$H$200"),3,FALSE),"") -> M | E184: =IFERROR(VLOOKUP(B184,INDIRECT("'"&$M$1&"'!"&"$C$2:$H$200"),4,FALSE),"") -> M40 | F184: =SUM(LARGE((H184,J184,L184,N184,P184,R184),{1,2,3,4})) -> 95.24800175 | H184: 0 | J184: 0 | L184: 0 | M184: 0.03690972222 | N184: 95.24800175 | P184: 0 | R184: 0 | S184: 1 | T184: 95.24800175 | V184: =COUNTIF(#REF!,'Series Table'!B184)>0 -> 
A185: 183 | B185: Fraser Mcmillan | C185: =IFERROR(VLOOKUP(B185,INDIRECT("'"&$I$1&"'!"&"$C$2:$H$200"),2,FALSE),"") -> Cardigan Rc | D185: =IFERROR(VLOOKUP(B185,INDIRECT("'"&$I$1&"'!"&"$C$2:$H$200"),3,FALSE),"") -> M | E185: =IFERROR(VLOOKUP(B185,INDIRECT("'"&$I$1&"'!"&"$C$2:$H$200"),4,FALSE),"") -> M40 | F185: =SUM(LARGE((H185,J185,L185,N185,P185,R185),{1,2,3,4})) -> 95.13354978 | H185: 0 | I185: 0.2011226852 | J185: 95.13354978 | L185: 0 | N185: 0 | P185: 0 | R185: 0 | S185: 1 | T185: 95.13354978 | V185: =COUNTIF(#REF!,'Series Table'!B185)>0 -> 
A186: 184 | B186: Jethro Moore | C186: =IFERROR(VLOOKUP(B186,INDIRECT("'"&$I$1&"'!"&"$C$2:$H$200"),2,FALSE),"") -> Adventure Beyond | D186: =IFERROR(VLOOKUP(B186,INDIRECT("'"&$I$1&"'!"&"$C$2:$H$200"),3,FALSE),"") -> M | E186: =IFERROR(VLOOKUP(B186,INDIRECT("'"&$I$1&"'!"&"$C$2:$H$200"),4,FALSE),"") -> M | F186: =SUM(LARGE((H186,J186,L186,N186,P186,R186),{1,2,3,4})) -> 94.85594969 | H186: 0 | I186: 0.2016550926 | J186: 94.85594969 | L186: 0 | N186: 0 | P186: 0 | R186: 0 | S186: 1 | T186: 94.85594969 | V186: =COUNTIF(#REF!,'Series Table'!B186)>0 -> 
A187: 185 | B187: Theo Akritidis | C187: =IFERROR(VLOOKUP(B187,INDIRECT("'"&$I$1&"'!"&"$C$2:$H$200"),2,FALSE),"") -> Reading | D187: =IFERROR(VLOOKUP(B187,INDIRECT("'"&$I$1&"'!"&"$C$2:$H$200"),3,FALSE),"") -> M | E187: =IFERROR(VLOOKUP(B187,INDIRECT("'"&$I$1&"'!"&"$C$2:$H$200"),4,FALSE),"") -> M40 | F187: =SUM(LARGE((H187,J187,L187,N187,P187,R187),{1,2,3,4})) -> 94.84991491 | H187: 0 | I187: 0.2016666667 | J187: 94.84991491 | L187: 0 | N187: 0 | P187: 0 | R187: 0 | S187: 1 | T187: 94.84991491 | V187: =COUNTIF(#REF!,'Series Table'!B187)>0 -> 
A188: 186 | B188: David Place | C188: =IFERROR(VLOOKUP(B188,INDIRECT("'"&$M$1&"'!"&"$C$2:$H$200"),2,FALSE),"") -> Unattached | D188: =IFERROR(VLOOKUP(B188,INDIRECT("'"&$M$1&"'!"&"$C$2:$H$200"),3,FALSE),"") -> M | E188: =IFERROR(VLOOKUP(B188,INDIRECT("'"&$M$1&"'!"&"$C$2:$H$200"),4,FALSE),"") -> M50 | F188: =SUM(LARGE((H188,J188,L188,N188,P188,R188),{1,2,3,4})) -> 94.49249973 | H188: 0 | J188: 0 | L188: 0 | M188: 0.03717592593 | N188: 94.49249973 | P188: 0 | R188: 0 | S188: 1 | T188: 94.49249973 | V188: =COUNTIF(#REF!,'Series Table'!B188)>0 -> 
A189: 187 | B189: Andrew Blackmore | C189: =IFERROR(VLOOKUP(B189,INDIRECT("'"&$O$1&"'!"&"$C$2:$H$200"),2,FALSE),"") -> MDC | D189: =IFERROR(VLOOKUP(B189,INDIRECT("'"&$O$1&"'!"&"$C$2:$H$200"),3,FALSE),"") -> M | E189: =IFERROR(VLOOKUP(B189,INDIRECT("'"&$O$1&"'!"&"$C$2:$H$200"),4,FALSE),"") -> M50 | F189: =SUM(LARGE((H189,J189,L189,N189,P189,R189),{1,2,3,4})) -> 94.44082432 | H189: 0 | J189: 0 | L189: 0 | N189: 0 | O189: 0.07671608796 | P189: 94.44082432 | R189: 0 | S189: 1 | T189: 94.44082432 | V189: =COUNTIF(#REF!,'Series Table'!B189)>0 -> 
A190: 188 | B190: Martin Scrivens | C190: =IFERROR(VLOOKUP(B190,INDIRECT("'"&$O$1&"'!"&"$C$2:$H$200"),2,FALSE),"") -> Unattached | D190: =IFERROR(VLOOKUP(B190,INDIRECT("'"&$O$1&"'!"&"$C$2:$H$200"),3,FALSE),"") -> M | E190: =IFERROR(VLOOKUP(B190,INDIRECT("'"&$O$1&"'!"&"$C$2:$H$200"),4,FALSE),"") -> M | F190: =SUM(LARGE((H190,J190,L190,N190,P190,R190),{1,2,3,4})) -> 94.0047814 | H190: 0 | J190: 0 | L190: 0 | N190: 0 | O190: 0.07703298611 | P190: 94.0047814 | R190: 0 | S190: 1 | T190: 94.0047814 | V190: =COUNTIF(#REF!,'Series Table'!B190)>0 -> 
A191: 189 | B191: Sue Howard | C191: =IFERROR(VLOOKUP(B191,INDIRECT("'"&$I$1&"'!"&"$C$2:$H$200"),2,FALSE),"") -> Mercis Fell Runners | D191: =IFERROR(VLOOKUP(B191,INDIRECT("'"&$I$1&"'!"&"$C$2:$H$200"),3,FALSE),"") -> F | E191: =IFERROR(VLOOKUP(B191,INDIRECT("'"&$I$1&"'!"&"$C$2:$H$200"),4,FALSE),"") -> F50 | F191: =SUM(LARGE((H191,J191,L191,N191,P191,R191),{1,2,3,4})) -> 93.76968848 | H191: 0 | I191: 0.2037384259 | J191: 93.76968848 | L191: 0 | N191: 0 | P191: 0 | R191: 0 | S191: 1 | T191: 93.76968848 | V191: =COUNTIF(#REF!,'Series Table'!B191)>0 -> 
A192: 190 | B192: Tim Edwards | C192: =IFERROR(VLOOKUP(B192,INDIRECT("'"&$K$1&"'!"&"$C$2:$H$200"),2,FALSE),"") -> Unattached | D192: =IFERROR(VLOOKUP(B192,INDIRECT("'"&$K$1&"'!"&"$C$2:$H$200"),3,FALSE),"") -> M | E192: =IFERROR(VLOOKUP(B192,INDIRECT("'"&$K$1&"'!"&"$C$2:$H$200"),4,FALSE),"") -> M | F192: =SUM(LARGE((H192,J192,L192,N192,P192,R192),{1,2,3,4})) -> 93.45145646 | H192: 0 | J192: 0 | K192: 01:52:03 | L192: 93.45145646 | N192: 0 | P192: 0 | R192: 0 | S192: 1 | T192: 93.45145646 | V192: =COUNTIF(#REF!,'Series Table'!B192)>0 -> 
A193: 191 | B193: Trys Johns | C193: =IFERROR(VLOOKUP(B193,INDIRECT("'"&$I$1&"'!"&"$C$2:$H$200"),2,FALSE),"") -> Cardigan Rc | D193: =IFERROR(VLOOKUP(B193,INDIRECT("'"&$I$1&"'!"&"$C$2:$H$200"),3,FALSE),"") -> M | E193: =IFERROR(VLOOKUP(B193,INDIRECT("'"&$I$1&"'!"&"$C$2:$H$200"),4,FALSE),"") -> M | F193: =SUM(LARGE((H193,J193,L193,N193,P193,R193),{1,2,3,4})) -> 93.40760141 | H193: 0 | I193: 0.2044328704 | J193: 93.40760141 | L193: 0 | N193: 0 | P193: 0 | R193: 0 | S193: 1 | T193: 93.40760141 | V193: =COUNTIF(#REF!,'Series Table'!B193)>0 -> 
A194: 192 | B194: Ged Murphy | C194: =IFERROR(VLOOKUP(B194,INDIRECT("'"&$M$1&"'!"&"$C$2:$H$200"),2,FALSE),"") -> Unattached | D194: =IFERROR(VLOOKUP(B194,INDIRECT("'"&$M$1&"'!"&"$C$2:$H$200"),3,FALSE),"") -> M | E194: =IFERROR(VLOOKUP(B194,INDIRECT("'"&$M$1&"'!"&"$C$2:$H$200"),4,FALSE),"") -> M40 | F194: =SUM(LARGE((H194,J194,L194,N194,P194,R194),{1,2,3,4})) -> 93.34282273 | H194: 0 | J194: 0 | L194: 0 | M194: 0.03758101852 | N194: 93.34282273 | P194: 0 | R194: 0 | S194: 1 | T194: 93.34282273 | V194: =COUNTIF(#REF!,'Series Table'!B194)>0 -> 
A195: 193 | B195: Helen Duffield | C195: =IFERROR(VLOOKUP(B195,INDIRECT("'"&$I$1&"'!"&"$C$2:$H$200"),2,FALSE),"") -> Sedbury | D195: =IFERROR(VLOOKUP(B195,INDIRECT("'"&$I$1&"'!"&"$C$2:$H$200"),3,FALSE),"") -> F | E195: =IFERROR(VLOOKUP(B195,INDIRECT("'"&$I$1&"'!"&"$C$2:$H$200"),4,FALSE),"") -> F40 | F195: =SUM(LARGE((H195,J195,L195,N195,P195,R195),{1,2,3,4})) -> 93.0636187 | G195: =IFERROR(VLOOKUP(B195,INDIRECT("'"&$G$1&"'!"&"$C$2:$H$200"),5,FALSE),"") ->  | H195: =IFERROR(VLOOKUP(B195,INDIRECT("'"&$G$1&"'!"&"$C$2:$H$200"),6,FALSE),0) -> 0 | I195: =IFERROR(VLOOKUP(B195,INDIRECT("'"&$I$1&"'!"&"$C$2:$G$200"),5,FALSE),"") -> 0.2050925926 | J195: =IFERROR(VLOOKUP(B195,INDIRECT("'"&$I$1&"'!"&"$C$2:$H$200"),6,FALSE),0) -> 93.0636187 | K195: =IFERROR(VLOOKUP(B195,INDIRECT("'"&$K$1&"'!"&"$C$2:$H$200"),5,FALSE),"") ->  | L195: =IFERROR(VLOOKUP(B195,INDIRECT("'"&$K$1&"'!"&"$C$2:$H$200"),6,FALSE),0) -> 0 | M195: =IFERROR(VLOOKUP(B195,INDIRECT("'"&$M$1&"'!"&"$C$2:$h$200"),5,FALSE),"") ->  | N195: =IFERROR(VLOOKUP(B195,INDIRECT("'"&$M$1&"'!"&"$C$2:$h$200"),6,FALSE),0) -> 0 | O195: =IFERROR(VLOOKUP(B195,INDIRECT("'"&$O$1&"'!"&"$C$2:$h$200"),5,FALSE),"") ->  | P195: =IFERROR(VLOOKUP(B195,INDIRECT("'"&$O$1&"'!"&"$C$2:$h$200"),6,FALSE),0) -> 0 | Q195: =IFERROR(VLOOKUP(B195,INDIRECT("'"&$Q$1&"'!"&"$C$2:$h$200"),5,FALSE),"") ->  | R195: =IFERROR(VLOOKUP(B195,INDIRECT("'"&$Q$1&"'!"&"$C$2:$h$200"),6,FALSE),0) -> 0 | S195: =6-COUNTIF(G195:Q195,"") -> 1 | T195: =F195/IF(S195>4,4,S195) -> 93.0636187 | V195: =COUNTIF(#REF!,'Series Table'!B195)>0 -> 
A196: =ROW(A194) -> 194 | B196: David Sheard | C196: =IFERROR(VLOOKUP(B196,INDIRECT("'"&$I$1&"'!"&"$C$2:$H$200"),2,FALSE),"") -> Bridgend | D196: =IFERROR(VLOOKUP(B196,INDIRECT("'"&$I$1&"'!"&"$C$2:$H$200"),3,FALSE),"") -> M | E196: =IFERROR(VLOOKUP(B196,INDIRECT("'"&$I$1&"'!"&"$C$2:$H$200"),4,FALSE),"") -> M50 | F196: =SUM(LARGE((H196,J196,L196,N196,P196,R196),{1,2,3,4})) -> 92.87654038 | H196: 0 | I196: 0.2054513889 | J196: 92.87654038 | L196: 0 | N196: 0 | P196: 0 | R196: 0 | S196: 1 | T196: 92.87654038 | V196: =COUNTIF(#REF!,'Series Table'!B196)>0 -> 
A197: 195 | B197: Trevor McAlister | C197: =IFERROR(VLOOKUP(B197,INDIRECT("'"&$M$1&"'!"&"$C$2:$H$200"),2,FALSE),"") -> Ryde Harriers | D197: =IFERROR(VLOOKUP(B197,INDIRECT("'"&$M$1&"'!"&"$C$2:$H$200"),3,FALSE),"") -> M | E197: =IFERROR(VLOOKUP(B197,INDIRECT("'"&$M$1&"'!"&"$C$2:$H$200"),4,FALSE),"") -> M | F197: =SUM(LARGE((H197,J197,L197,N197,P197,R197),{1,2,3,4})) -> 92.78440819 | H197: 0 | J197: 0 | L197: 0 | M197: 0.03777777778 | N197: 92.78440819 | P197: 0 | R197: 0 | S197: 1 | T197: 92.78440819 | V197: =COUNTIF(#REF!,'Series Table'!B197)>0 -> 
A198: 196 | B198: Robert Gale | C198: =IFERROR(VLOOKUP(B198,INDIRECT("'"&$I$1&"'!"&"$C$2:$H$200"),2,FALSE),"") -> Newport Gwent | D198: =IFERROR(VLOOKUP(B198,INDIRECT("'"&$I$1&"'!"&"$C$2:$H$200"),3,FALSE),"") -> M | E198: =IFERROR(VLOOKUP(B198,INDIRECT("'"&$I$1&"'!"&"$C$2:$H$200"),4,FALSE),"") -> M | F198: =SUM(LARGE((H198,J198,L198,N198,P198,R198),{1,2,3,4})) -> 92.65325335 | H198: 0 | I198: 0.2058796296 | J198: 92.65325335 | L198: 0 | N198: 0 | P198: 0 | R198: 0 | S198: 1 | T198: 92.65325335 | V198: =COUNTIF(#REF!,'Series Table'!B198)>0 -> 
A199: 197 | B199: George Colville | C199: =IFERROR(VLOOKUP(B199,INDIRECT("'"&$I$1&"'!"&"$C$2:$H$200"),2,FALSE),"") -> Blaggers Tri | D199: =IFERROR(VLOOKUP(B199,INDIRECT("'"&$I$1&"'!"&"$C$2:$H$200"),3,FALSE),"") -> M | E199: =IFERROR(VLOOKUP(B199,INDIRECT("'"&$I$1&"'!"&"$C$2:$H$200"),4,FALSE),"") -> M | F199: =SUM(LARGE((H199,J199,L199,N199,P199,R199),{1,2,3,4})) -> 92.23081844 | H199: 0 | I199: 0.2066898148 | J199: 92.23081844 | L199: 0 | N199: 0 | P199: 0 | R199: 0 | S199: 1 | T199: 92.23081844 | V199: =COUNTIF(#REF!,'Series Table'!B199)>0 -> 
A200: 198 | B200: Simeon Jenkins | C200: =IFERROR(VLOOKUP(B200,INDIRECT("'"&$I$1&"'!"&"$C$2:$H$200"),2,FALSE),"") -> Blaggers Tri | D200: =IFERROR(VLOOKUP(B200,INDIRECT("'"&$I$1&"'!"&"$C$2:$H$200"),3,FALSE),"") -> M | E200: =IFERROR(VLOOKUP(B200,INDIRECT("'"&$I$1&"'!"&"$C$2:$H$200"),4,FALSE),"") -> M40 | F200: =SUM(LARGE((H200,J200,L200,N200,P200,R200),{1,2,3,4})) -> 92.22478365 | H200: 0 | I200: 0.2067013889 | J200: 92.22478365 | L200: 0 | N200: 0 | P200: 0 | R200: 0 | S200: 1 | T200: 92.22478365 | V200: =COUNTIF(#REF!,'Series Table'!B200)>0 -> 
... 97 more rows

Sheet Torpantau
A1: Position | B1: Number | C1: Name | D1: Club | E1: Gender | F1: Category | G1: Time | H1: Points
A2: 1 | B2: =ROW(A1) -> 1 | C2: Dan Doherty | D2: Mynydd Du | E2: M | F2: M | G2: 01:03:35 | H2: =(2-(G2/L$10))*100 -> 128.4888625
A3: =A2+1 -> 2 | B3: =ROW(A2) -> 2 | C3: Nathan Brickman | D3: Belpher Harriers | E3: M | F3: M | G3: 01:14:00 | H3: 116.7734075 | J3: Number of runners | K3: Position | L3: Time (min.sec)
A4: =A3+1 -> 3 | B4: 3 | C4: Mark Lunt | D4: Westbury Harriers | E4: M | F4: M | G4: 01:14:06 | H4: 116.6609391 | J4: =COUNT(B2:B201) -> 44 | K4: =K6+2 -> 24 | L4: =VLOOKUP(K4,A2:G201,7,FALSE) -> 01:29:55
A5: 4 | B5: 4 | C5: Tom Molleskin | D5: Mynydd Du | E5: M | F5: M | G5: 01:20:15 | H5: 109.7441345 | J5: =ISEVEN(J4) -> TRUE | K5: =K6+1 -> 23 | L5: 01:29:25
A6: 5 | B6: 5 | C6: Brad Johnson | D6: U/A | E6: M | F6: M | G6: 01:20:16 | H6: 109.7253897 | K6: =IF(J5 = TRUE,(J4/2),((J4+1)/2)) -> 22 | L6: 01:28:57
A7: 6 | B7: 6 | C7: Daniel Lewis | D7: Wye Valley | E7: M | F7: M40 | G7: 01:20:17 | H7: 109.706645 | K7: =K6-1 -> 21 | L7: 01:28:48
A8: 7 | B8: 7 | C8: Andy Pritchard | D8: Buckley Runners | E8: M | F8: M40 | G8: 01:20:18 | H8: 109.6879003 | K8: =K6-2 -> 20 | L8: 01:28:26
A9: 8 | B9: 8 | C9: Karie Atkins | D9: Chepstow | E9: M | F9: M40 | G9: 01:20:41 | H9: 109.2567715 | K9: =IF(J5 = TRUE, K6-3, Na) -> 19 | L9: 01:27:58
A10: 9 | B10: 9 | C10: Nick Biggs | D10: Vegan Runners | E10: M | F10: M40 | G10: 01:20:49 | H10: 109.1068137 | L10: =IF(J5=TRUE,AVERAGE(L4:L9),AVERAGE(L4:L8)) -> 01:28:54.833
A11: 10 | B11: 10 | C11: Paul Jeggo | D11: Springfield | E11: M | F11: M50 | G11: 01:21:16 | H11: 108.6007061
A12: 11 | B12: 11 | C12: Paul Tucker | D12: Brecon | E12: M | F12: M50 | G12: 01:21:36 | H12: 108.2258115
A13: 12 | B13: 12 | C13: John Hallett | D13: MDC | E13: M | F13: M | G13: 01:21:38 | H13: 108.188322
A14: 13 | B14: 13 | C14: Hayley Evans | D14: Buckley Runners | E14: F | F14: F | G14: 01:22:44 | H14: 106.95117 | J14: Retired
A15: 14 | B15: 14 | C15: George Fisher | D15: 1 Rifles | E15: M | F15: U23 | G15: 01:22:44 | H15: 106.95117 | J15: Iwan Murton
A16: 15 | B16: 15 | C16: Ben Arkell | D16: MDC | E16: M | F16: U23 | G16: 01:26:44 | H16: 102.4524353 | J16: Shona Thornhill
A17: 16 | B17: 16 | C17: Paul Chester | D17: Wfra | E17: M | F17: M40 | G17: 01:26:52 | H17: 102.3024774 | J17: Oscar Partridge
A18: 17 | B18: 17 | C18: James Woodier | D18: Mynydd Du | E18: M | F18: M | G18: 01:26:54 | H18: 102.264988
A19: 18 | B19: 18 | C19: Chris Chambers | D19: Mynydd Du | E19: M | F19: M40 | G19: 01:27:53 | H19: 101.159049
A20: 19 | B20: 19 | C20: Max Burns | D20: 1 Rifles | E20: M | F20: M | G20: 01:27:58 | H20: 101.0653254
A21: 20 | B21: 20 | C21: Jeremy Jehan | D21: Wye Valley | E21: M | F21: M40 | G21: 01:28:26 | H21: 100.540473
A22: 21 | B22: 21 | C22: Richard Smith | D22: Dursley | E22: M | F22: M | G22: 01:28:48 | H22: 100.128089
A23: 22 | B23: 22 | C23: Tony Wooldridge | D23: Dursley | E23: M | F23: M60 | G23: 01:28:57 | H23: 99.95938642
A24: 23 | B24: 23 | C24: Emma Mcwilliams | D24: Mynydd Du | E24: F | F24: F | G24: 01:29:25 | H24: 99.43453404
A25: 24 | B25: 24 | C25: Steve Harrhy | D25: Pontypool | E25: M | F25: M50 | G25: 01:29:55 | H25: 98.8721922
A26: 25 | B26: 25 | C26: Rona Davies | D26: Mynydd Du | E26: F | F26: F50 | G26: 01:30:10 | H26: 98.59102128
A27: 26 | B27: 26 | C27: Sasha Habgood | D27: MDC | E27: F | F27: F40 | G27: 01:35:28 | H27: 92.63019776
A28: 27 | B28: 27 | C28: Martin Carter | D28: Hay Hotfooters | E28: M | F28: M50 | G28: 01:35:31 | H28: 92.57396357
A29: 28 | B29: 28 | C29: David York | D29: Tattenhall | E29: M | F29: M50 | G29: 01:39:15 | H29: 88.37514449
A30: 29 | B30: 29 | C30: Tim Buckley | D30: Chepstow | E30: M | F30: M50 | G30: 01:39:40 | H30: 87.90652629
A31: 30 | B31: 30 | C31: Neil Grant | D31: Chepstow | E31: M | F31: M60 | G31: 01:41:06 | H31: 86.29447968
A32: 31 | B32: 31 | C32: Bev Tucker | D32: Brecon | E32: F | F32: F50 | G32: 01:41:55 | H32: 85.375988
A33: 32 | B33: 32 | C33: Wyn Davies | D33: Mynydd Du | E33: M | F33: M50 | G33: 01:42:33 | H33: 84.66368834
A34: 33 | B34: 33 | C34: Joc Dodd | D34: Chepstow | E34: F | F34: F60 | G34: 01:43:04 | H34: 84.08260177
A35: 34 | B35: 34 | C35: Stuart Duncan | D35: Chepstow | E35: M | F35: M50 | G35: 01:43:47 | H35: 83.27657846
A36: 35 | B36: 35 | C36: Karen Elvers | D36: MDC | E36: F | F36: F40 | G36: 01:48:18 | H36: 78.19675716
A37: 36 | B37: 36 | C37: John Price | D37: Hay Hotfooters | E37: M | F37: M | G37: 01:49:48 | H37: 76.50973164
A38: 37 | B38: 37 | C38: Les Williams | D38: Eryri | E38: M | F38: M70 | G38: 01:52:16 | H38: 73.73551189
A39: 38 | B39: 38 | C39: Ed Goldsmith | D39: U/A | E39: M | F39: M | G39: 01:53:24 | H39: 72.46087038
A40: 39 | B40: 39 | C40: Anna Causer Nakamura | D40: U/A | E40: F | F40: F | G40: 01:53:41 | H40: 72.14221
A41: 40 | B41: 40 | C41: Angela Price | D41: Hay Hotfooters | E41: F | F41: F40 | G41: 01:54:41 | H41: 71.01752632
A42: 41 | B42: 41 | C42: Nicholas Michael Owen | D42: U/A | E42: M | F42: M50 | G42: 02:05:03 | H42: 59.35830548
A43: 42 | B43: 42 | C43: Callum McGiem | D43: U/A | E43: M | F43: M | G43: 02:06:02 | H43: 58.25236652
A44: 43 | B44: 43 | C44: Matt Lister | D44: U/A | E44: M | F44: M | G44: 02:06:15 | H44: 58.00868506
A45: 44 | B45: =ROW(A44) -> 44 | C45: Lisa Sammons | D45: Oxford City Ac | E45: F | F45: F | G45: 02:06:25 | H45: 57.82123778
A46: 45
A47: 46
A48: 47
A49: 48
A50: 49
A51: 50
A52: 51
A53: 52
A54: 53
A55: 54
A56: 55
A57: 56
A58: 57
A59: 58
A60: 59
A61: 60
A62: 61
A63: 62
A64: 63
A65: 64
A66: 65
A67: 66
A68: =A67+1 -> 67
A69: 68
A70: 69
A71: 70
A72: 71
A73: 72
A74: 73
A75: 74
A76: 75
A77: 76
A78: 77
A79: 78
A80: 79
A81: 80
A82: 81
A83: 82
A84: 83
A85: 84
A86: 85
A87: 86
A88: 87
A89: 88
A90: 89

Sheet Preseli Beast
A1: Position | B1: Number | C1: Name | D1: Club | E1: Gender | F1: Category | G1: Time | H1: Points
A2: 1 | B2: 10 | C2: Dan Doherty | D2: Mynydd Du | E2: M | F2: M | G2: 03:05:35 | H2: =(2-(G2/L$10))*100 -> 132.8026746
A3: 2 | B3: 85 | C3: Jez Brown | D3: Buckley Runners | E3: M | F3: M40 | G3: 03:06:12 | H3: =(2-(G3/L$10))*100 -> 132.5793876 | J3: Number of runners | K3: Position | L3: Time (hr.min.sec)
A4: 3 | B4: 15 | C4: Dylan Griffiths | D4: Rhedwyr Hebog | E4: M | F4: M | G4: 03:17:38 | H4: 128.4395254 | J4: 135 | K4: =K6+2 -> 70 | L4: =VLOOKUP(K4,A2:G201,7,FALSE) -> 04:38:20
A5: 4 | B5: 110 | C5: Daryl John | D5: Trots | E5: M | F5: M40 | G5: 03:24:14 | H5: 126.0497508 | J5: Was it an even field? | K5: =K6+1 -> 69 | L5: 04:36:00
A6: 5 | B6: 101 | C6: Daniel Hooper | D6: Cwmdu, Llandeilo | E6: M | F6: M40 | G6: 03:27:09 | H6: 124.9936635 | J6: =ISEVEN(J4) -> FALSE | K6: =IF(J6 = TRUE,(J4/2),((J4+1)/2)) -> 68 | L6: 04:35:44
A7: 6 | B7: 164 | C7: Balazs Pinter | D7: Aberystwyth Ac | E7: M | F7: M40 | G7: 03:32:14 | H7: 123.1530542 | K7: =K6-1 -> 67 | L7: 04:35:43
A8: 7 | B8: 14 | C8: Samuel Gregory | D8: Machen | E8: M | F8: M | G8: 03:33:03 | H8: 122.8573498 | K8: =K6-2 -> 66 | L8: 04:35:06
A9: 8 | B9: 91 | C9: Little Dave Cumins | D9: Ddmt/Kom/Ttb | E9: M | F9: M40 | G9: 03:35:05 | H9: 122.1211061 | K9: =IF(J6 = TRUE, K6-3, Na) -> 
A10: 9 | B10: 100 | C10: Sam Hawking | D10: Neath | E10: M | F10: M40 | G10: 03:36:03 | H10: 121.7710886 | L10: =IF(J6=TRUE,AVERAGE(L4:L9),AVERAGE(L4:L8)) -> 04:36:10.600
A11: 10 | B11: 20 | C11: Afan Humphries | D11: Caerphilly | E11: M | F11: M | G11: 03:42:33 | H11: 119.4175226
A12: 11 | B12: 52 | C12: Sian Williams | D12: Rhedwyr Hebog | E12: F | F12: F | G12: 03:43:13 | H12: 119.1761312
A13: 12 | B13: 115 | C13: Daniel Lewis | D13: Wye Valley Runners | E13: M | F13: M40 | G13: 03:45:05 | H13: 118.5002354
A14: 13 | B14: 69 | C14: Paul Jeggo | D14: Chelmsford | E14: M | F14: M50 | G14: 03:47:41 | H14: 117.558809
A15: 14 | B15: 47 | C15: Nerys Jones | D15: Parcllyn, Ceredigion | E15: F | F15: F | G15: 03:47:58 | H15: 117.4562176
A16: 15 | B16: 75 | C16: David Powell | D16: Aberystwyth Ac | E16: M | F16: M50 | G16: 03:48:05 | H16: 117.4139741
A17: 16 | B17: 7 | C17: Dee Buchanan | D17: San Domenico | E17: M | F17: M | G17: 03:49:29 | H17: 116.9070522
A18: 17 | B18: 163 | C18: Patrick Swann | D18: U/A | E18: M | F18: M40 | G18: 03:49:34 | H18: 116.8768783
A19: 18 | B19: 128 | C19: Simon Roberts | D19: Chester Ac | E19: M | F19: M40 | G19: 03:52:23 | H19: 115.8569997
A20: 19 | B20: 45 | C20: Hayley Evans | D20: Buckley Runners | E20: F | F20: F | G20: 03:53:02 | H20: 115.6216432
A21: 20 | B21: 165 | C21: Gary Davies | D21: MDC | E21: M | F21: M | G21: 03:57:01 | H21: 114.1793297
A22: 21 | B22: 12 | C22: Will Feline | D22: Stubbington Green | E22: M | F22: M | G22: 03:57:23 | H22: 114.0465644
A23: 22 | B23: 102 | C23: Andrew Hughes | D23: Rhedwyr Preseli | E23: M | F23: M40 | G23: 03:59:34 | H23: 113.2560076
A24: 23 | B24: 54 | C24: John Aggleton | D24: MDC | E24: M | F24: M60 | G24: 03:59:42 | H24: 113.2077294
A25: 24 | B25: 131 | C25: Leigh Searle | D25: Treorchy | E25: M | F25: M40 | G25: 04:00:17 | H25: 112.9965119
A26: 25 | B26: 27 | C26: Ruben Lightfoot | D26: Cwm Cych | E26: M | F26: M | G26: 04:06:20 | H26: 110.8058851
A27: 26 | B27: 124 | C27: Andy Pritchard | D27: Buckley Runners | E27: M | F27: M40 | G27: 04:07:00 | H27: 110.5644937
A28: 27 | B28: 157 | C28: Tasha Sexton | D28: Pembrokeshire Harriers | E28: F | F28: F40 | G28: 04:08:15 | H28: 110.1118849
A29: 28 | B29: 61 | C29: Paul Beeson | D29: Maldwyn Harriers | E29: M | F29: M50 | G29: 04:08:17 | H29: 110.0998153
A30: 29 | B30: 125 | C30: Conrad Rees | D30: Manorbier Newton | E30: M | F30: M40 | G30: 04:08:49 | H30: 109.9067022
A31: 30 | B31: 158 | C31: Sarah Tagg | D31: West Coast Tri | E31: F | F31: F40 | G31: 04:09:34 | H31: 109.6351369
A32: 31 | B32: 4 | C32: Wayne Billman | D32: Blandford Camp | E32: M | F32: M | G32: 04:09:43 | H32: 109.5808239
A33: 32 | B33: 99 | C33: Martin Everett | D33: Narberth | E33: M | F33: M40 | G33: 04:10:36 | H33: 109.2609803
A34: 33 | B34: 92 | C34: Nigel Davies | D34: Sarn Helen | E34: M | F34: M40 | G34: 04:10:41 | H34: 109.2308064
A35: 34 | B35: 133 | C35: Darren Thomas | D35: Spittal | E35: M | F35: M40 | G35: 04:12:17 | H35: 108.6514671
A36: 35 | B36: 107 | C36: Jeremy Jehan | D36: Wye Valley Runners | E36: M | F36: M40 | G36: 04:12:24 | H36: 108.6092236
A37: 36 | B37: 87 | C37: John Cherry | D37: Upper Killay | E37: M | F37: M40 | G37: 04:14:39 | H37: 107.7945277
A38: 37 | B38: 67 | C38: Glyn Fletcher | D38: Maldwyn Harriers | E38: M | F38: M50 | G38: 04:15:49 | H38: 107.3720927
A39: 38 | B39: 23 | C39: Braddon Johnson | D39: Stonehouse | E39: M | F39: M | G39: 04:16:36 | H39: 107.0884579
A40: 39 | B40: 154 | C40: Sophie Noot | D40: Team Cemais | E40: F | F40: F40 | G40: 04:18:25 | H40: 106.4306664
A41: 40 | B41: 64 | C41: Andrew Clement | D41: Trots | E41: M | F41: M50 | G41: 04:18:38 | H41: 106.3522142
A42: 41 | B42: 34 | C42: James Roberts | D42: Pemb Dock | E42: M | F42: M | G42: 04:19:11 | H42: 106.1530663
A43: 42 | B43: 19 | C43: Llifon Howell | D43: West Coast Tri | E43: M | F43: M | G43: 04:19:17 | H43: 106.1168576
A44: 43 | B44: 167 | C44: Heddwyn Evans | D44: Cardigan Running Club | E44: M | F44: M | G44: 04:19:25 | H44: 106.0685793
A45: 44 | B45: 38 | C45: Michael Smith | D45: Worcester | E45: M | F45: M | G45: 04:20:27 | H45: 105.6944227
A46: 45 | B46: 35 | C46: Jonathan Roberts | D46: Pemb Dock | E46: M | F46: M | G46: 04:21:07 | H46: 105.4530313
A47: 46 | B47: 146 | C47: Louise Barker | D47: Aberystwyth Ac | E47: F | F47: F40 | G47: 04:21:26 | H47: 105.3383704
A48: 47 | B48: 62 | C48: Phil Carter | D48: Pembrokeshire Tri | E48: M | F48: M50 | G48: 04:22:53 | H48: 104.8133441
A49: 48 | B49: 31 | C49: Steven Plumb | D49: Carmarthen | E49: M | F49: M | G49: 04:23:15 | H49: 104.6805789
A50: 49 | B50: 137 | C50: Jason Wilkins | D50: Rhedwyr Preseli | E50: M | F50: M40 | G50: 04:23:33 | H50: 104.5719527
A51: 50 | B51: 80 | C51: Paul Tucker | D51: Mynydd Du | E51: M | F51: M50 | G51: 04:25:38 | H51: 103.8176047
A52: 51 | B52: 155 | C52: Rhian Probert | D52: Mynydd Du | E52: F | F52: F40 | G52: 04:25:58 | H52: 103.696909
A53: 52 | B53: 2 | C53: Luke Baines | D53: Narberth | E53: M | F53: M | G53: 04:27:27 | H53: 103.1598132
A54: 53 | B54: 65 | C54: Nick Davies | D54: Rhedwyr Preseli | E54: M | F54: M50 | G54: 04:28:06 | H54: 102.9244566
A55: 54 | B55: 28 | C55: Gareth Morris | D55: Buckley Runners | E55: M | F55: M | G55: 04:28:12 | H55: 102.8882479
A56: 55 | B56: 76 | C56: John Rees | D56: Rhedwyr Preseli | E56: M | F56: M50 | G56: 04:28:37 | H56: 102.7373782
A57: 56 | B57: 126 | C57: Nicky Rees | D57: Five Frogs | E57: M | F57: M40 | G57: 04:29:53 | H57: 102.2787346
A58: 57 | B58: 129 | C58: Steve Rogers | D58: Five Frogs | E58: M | F58: M40 | G58: 04:29:54 | H58: 102.2726998
A59: 58 | B59: 136 | C59: Chris Welton | D59: Rhedwyr Preseli | E59: M | F59: M40 | G59: 04:30:14 | H59: 102.1520042
A60: 59 | B60: 141 | C60: Rona Davies | D60: Mynydd Du | E60: F | F60: F50 | G60: 04:31:43 | H60: 101.6149083
A61: 60 | B61: 90 | C61: Ainslie Corp | D61: Penffordd | E61: M | F61: M40 | G61: 04:31:58 | H61: 101.5243866
A62: 61 | B62: 56 | C62: Lawrie Jones | D62: Fra | E62: M | F62: M60 | G62: 04:32:10 | H62: 101.4519692
A63: 62 | B63: 48 | C63: Emma McWilliams | D63: Mynydd Du | E63: F | F63: F | G63: 04:33:03 | H63: 101.1321256
A64: 63 | B64: 26 | C64: Dafydd Lewis | D64: Whitland | E64: M | F64: M | G64: 04:33:13 | H64: 101.0717777
A65: 64 | B65: 152 | C65: Domi Kimber | D65: Rhedwyr Preseli | E65: F | F65: F40 | G65: 04:33:24 | H65: 101.0053951
A66: 65 | B66: 41 | C66: Ben Woods | D66: Newcastle Emlyn | E66: M | F66: M | G66: 04:33:32 | H66: 100.9571168
A67: 66 | B67: 21 | C67: Dafydd James | D67: Newcastle Emlyn | E67: M | F67: M | G67: 04:35:06 | H67: =(2-(G67/L$10))*100 -> 100.3898471
A68: 67 | B68: 50 | C68: Laura Wainwright | D68: Stubbington Green | E68: F | F68: F | G68: 04:35:43 | H68: 100.1665601
A69: 68 | B69: 106 | C69: Andy James | D69: Tailwind Nutrition | E69: M | F69: M40 | G69: 04:35:44 | H69: 100.1605253
A70: 69 | B70: 25 | C70: Peter Kusy | D70: Milford Haven | E70: M | F70: M | G70: 04:36:00 | H70: 100.0639687
A71: 70 | B71: 33 | C71: Tom Rees | D71: Newport,Pembs | E71: M | F71: M | G71: 04:38:20 | H71: 99.21909889
A72: 71 | B72: 145 | C72: Bev Tucker | D72: Mynydd Du | E72: F | F72: F50 | G72: 04:40:43 | H72: 98.3561247
A73: 72 | B73: 72 | C73: Timothy Parker | D73: Mercia Fell Runners | E73: M | F73: M50 | G73: 04:42:19 | H73: 97.77678539
A74: 73 | B74: 130 | C74: Matt Rogerson | D74: Llanelli | E74: M | F74: M40 | G74: 04:43:55 | H74: 97.19744608
A75: 74 | B75: 36 | C75: Jonny Sable | D75: Rhedwyr Preseli | E75: M | F75: M | G75: 04:44:28 | H75: 96.99829819
A76: 75 | B76: 30 | C76: Tim Plumb | D76: Narberth | E76: M | F76: M | G76: 04:44:43 | H76: 96.90777642
A77: 76 | B77: 5 | C77: Michael Brown | D77: London | E77: M | F77: M | G77: 04:44:44 | H77: 96.90174164
A78: 77 | B78: 139 | C78: Kim Braznell | D78: Mercia Fell Runners | E78: F | F78: F60 | G78: 04:44:54 | H78: 96.84139379
A79: 78 | B79: 96 | C79: Claudio Donofrio | D79: Swansea | E79: M | F79: M40 | G79: 04:46:33 | H79: 96.24395013
A80: 79 | B80: 120 | C80: Gareth Oliver | D80: Swansea | E80: M | F80: M40 | G80: 04:47:26 | H80: 95.92410655
A81: 80 | B81: 18 | C81: Ricky Holmes | D81: Aberporth | E81: M | F81: M | G81: 04:47:35 | H81: 95.86979349
A82: 81 | B82: 117 | C82: Fraser Mcmillan | D82: Cardigan Rc | E82: M | F82: M40 | G82: 04:49:37 | H82: 95.13354978
A83: 82 | B83: 166 | C83: Jethro Moore | D83: Adventure Beyond | E83: M | F83: M | G83: 04:50:23 | H83: 94.85594969
A84: 83 | B84: 82 | C84: Theo Akritidis | D84: Reading | E84: M | F84: M40 | G84: 04:50:24 | H84: 94.84991491
A85: 85 | B85: 162 | C85: Sue Howard | D85: Mercis Fell Runners | E85: F | F85: F50 | G85: 04:53:23 | H85: 93.76968848
A86: 86 | B86: 22 | C86: Trys Johns | D86: Cardigan Rc | E86: M | F86: M | G86: 04:54:23 | H86: 93.40760141
A87: 87 | B87: 150 | C87: Helen Duffield | D87: Sedbury | E87: F | F87: F40 | G87: 04:55:20 | H87: 93.0636187
A88: 88 | B88: 78 | C88: David Sheard | D88: Bridgend | E88: M | F88: M50 | G88: 04:55:51 | H88: 92.87654038
A89: 89 | B89: 13 | C89: Robert Gale | D89: Newport Gwent | E89: M | F89: M | G89: 04:56:28 | H89: 92.65325335
A90: 90 | B90: 8 | C90: George Colville | D90: Blaggers Tri | E90: M | F90: M | G90: 04:57:38 | H90: 92.23081844
A91: 91 | B91: 109 | C91: Simeon Jenkins | D91: Blaggers Tri | E91: M | F91: M40 | G91: 04:57:39 | H91: 92.22478365
A92: 92 | B92: 84 | C92: Steven Badger | D92: Swansea Choc Tea Pot! | E92: M | F92: M40 | G92: 04:59:59 | H92: 91.37991382
A93: 93 | B93: 113 | C93: Gary Lewis | D93: Presteigne Pacers | E93: M | F93: M40 | G93: 05:00:25 | H93: 91.22300943
A94: 94 | B94: 144 | C94: Rita Tomkins | D94: Presteigne Pacers | E94: F | F94: F50 | G94: 05:00:26 | H94: 91.21697464
A95: 95 | B95: 116 | C95: David Mackie | D95: Corsham,Wilts | E95: M | F95: M40 | G95: 05:00:41 | H95: 91.12645287
A96: 96 | B96: 46 | C96: Luisa Fogarty | D96: Northumberland | E96: F | F96: F | G96: 05:00:49 | H96: 91.0781746
A97: 97 | B97: 123 | C97: Justin Pocknell | D97: Ddmt/Caerleon Rc | E97: M | F97: M40 | G97: 05:01:54 | H97: 90.68591361
A98: 98 | B98: 6 | C98: Rob Bruford | D98: Warrington | E98: M | F98: M | G98: 05:03:41 | H98: 90.04019166
A99: 99 | B99: 68 | C99: Laurie Hughes | D99: Swansea | E99: M | F99: M50 | G99: 05:04:32 | H99: 89.73241766
A100: 100 | B100: 153 | C100: Marcelle Mackay | D100: Hirwaun | E100: F | F100: F40 | G100: 05:04:44 | H100: 89.66000024
A101: 101 | B101: 151 | C101: Sasha Habgood | D101: MDC | E101: F | F101: F40 | G101: 05:05:30 | H101: 89.38240015
A102: 102 | B102: 168 | C102: Gary Gunner | D102: Croft Ambrey Runners | E102: M | F102: M70 | G102: 05:06:42 | H102: 88.94789567
A103: 103 | B103: 93 | C103: Gareth Davies | D103: Broughton | E103: M | F103: M40 | G103: 05:06:55 | H103: 88.86944347
A104: 104 | B104: 53 | C104: Alwyn Oliver | D104: Eryri Harriers | E104: M | F104: M70 | G104: 05:03:04 | H104: 90.26347869
A105: 105 | B105: 11 | C105: Dan Eade | D105: Leukaemia Care | E105: M | F105: M | G105: 05:09:00 | H105: 88.11509541
A106: 106 | B106: 43 | C106: Fiona Cooper | D106: Newport,Pembs | E106: F | F106: F | G106: 05:10:51 | H106: 87.44523433
A107: 107 | B107: 42 | C107: Giulia Basevi | D107: Rhedwyr Preseli | E107: F | F107: F | G107: 05:13:41 | H107: 86.41932097
A108: 108 | B108: 161 | C108: Jane Ward | D108: Dorset Doddlers | E108: F | F108: F40 | G108: 05:20:45 | H108: 83.86057234
A109: 109 | B109: 16 | C109: Alex Harries | D109: Cardiff | E109: M | F109: M | G109: 05:20:48 | H109: 83.84246799
A110: 110 | B110: 74 | C110: Carl Platel | D110: Fit For Life | E110: M | F110: M50 | G110: 05:21:09 | H110: 83.71573751
A111: 111 | B111: 112 | C111: Geraint Jones | D111: Trefin | E111: M | F111: M40 | G111: 05:21:48 | H111: 83.48038092
A112: 112 | B112: 59 | C112: Ifor Thomas | D112: Solva Slouchers | E112: M | F112: M60 | G112: 05:22:21 | H112: 83.28123303
A113: 113 | B113: 132 | C113: Lee Skone | D113: Crap Tri | E113: M | F113: M40 | G113: 05:23:20 | H113: 82.92518074
A114: 114 | B114: 111 | C114: Dan Jones | D114: Solva | E114: M | F114: M40 | G114: 05:25:23 | H114: 82.18290225
A115: 115 | B115: 142 | C115: Sue Lloyd | D115: Pembrokeshire Harriers | E115: F | F115: F50 | G115: 05:27:59 | H115: 81.24147587
A116: 116 | B116: 156 | C116: Sj Restall | D116: Ddmt | E116: F | F116: F40 | G116: 05:30:55 | H116: 80.1793538
A117: 117 | B117: 3 | C117: Marc Beasley | D117: Rhedwyr Preseli | E117: M | F117: M | G117: 05:32:06 | H117: 79.7508841
A118: 118 | B118: 108 | C118: Mark Jemmett | D118: Sully,Vog | E118: M | F118: M40 | G118: 05:32:09 | H118: 79.73277974
A119: 119 | B119: 44 | C119: Llinos Davies | D119: Ystalyfera | E119: F | F119: F | G119: 05:34:28 | H119: 78.8939447
A120: 120 | B120: 57 | C120: Roger Nosworthy | D120: Off-Roadents | E120: M | F120: M60 | G120: 05:38:17 | H120: 77.51197905
A121: 121 | B121: 140 | C121: Bridget Funnell | D121: Off-Roadents | E121: F | F121: F60 | G121: 05:38:12 | H121: 77.54215297
A122: 122 | B122: 122 | C122: Jason Pittaway | D122: Bristol | E122: M | F122: M40 | G122: 05:39:04 | H122: 77.22834418
A123: 123 | B123: 103 | C123: Imtiaz Ilahi | D123: Birmingham | E123: M | F123: M40 | G123: 05:39:28 | H123: 77.08350935
A124: 124 | B124: 148 | C124: Zoe Clancy | D124: Cowbridge | E124: F | F124: F40 | G124: 05:44:31 | H124: 75.25496965
A125: 125 | B125: 134 | C125: Matt Thomas | D125: Cardiff | E125: M | F125: M40 | G125: 05:50:00 | H125: 73.26952555
A126: 126 | B126: 77 | C126: Christopher Sexton | D126: Pembrokeshire Harriers | E126: M | F126: M50 | G126: 05:56:42 | H126: 70.84354218
A127: 127 | B127: 40 | C127: Dave Wilson | D127: Kilgetty | E127: M | F127: M | G127: 05:58:47 | H127: 70.08919411
A128: 128 | B128: 119 | C128: Robert Nelson | D128: Monmouth | E128: M | F128: M40 | G128: 05:59:05 | H128: 69.98056799
A129: 129 | B129: 159 | C129: Alison Thomas | D129: Machynys | E129: F | F129: F40 | G129: 06:07:26 | H129: 66.95714096
A130: 130 | B130: 138 | C130: John Addams Williams | D130: Mepal/Cambs | E130: M | F130: M40 | G130: 06:07:26 | H130: 66.95714096
A131: 131 | B131: 1 | C131: Leigh Ally | D131: Walsall | E131: M | F131: M | G131: 06:07:52 | H131: =(2-(G131/L$10))*100 -> 66.80023656
A132: 132 | B132: 118 | C132: Darren Mutter | D132: Narberth | E132: M | F132: M40 | G132: 06:15:27 | H132: 64.05440962
A133: 133 | B133: 51 | C133: Ellen Wakelam | D133: Tresaith | E133: F | F133: F | G133: 06:17:27 | H133: 63.33023548
A134: 134 | B134: 63 | C134: Robert Ivor Chapman | D134: Pontcanna, Cardiff | E134: M | F134: M50 | G134: 06:17:27 | H134: 63.33023548
A135: 135 | B135: 24 | C135: Alex Jungmayr | D135: Tresaith | E135: M | F135: M | G135: 06:16:27 | H135: 63.69232255
A136: 136 | B136: 70 | C136: Paul Johnson | D136: Begelly | E136: M | F136: M50 | G136: 06:20:02 | H136: 62.39484388

Sheet Cwmdu
A1: Position | B1: Number | C1: Name | D1: Club | E1: Gender | F1: Category | G1: Time | H1: Points
A2: 1 | B2: 235 | C2: Robin Wood | D2: Builth & District | E2: M | F2: M40 | G2: 01:23:41 | H2: =(2-(G2/L$10))*100 -> 120.4253701
A3: 2 | B3: 242 | C3: Samuel Gregory | D3: MDC | E3: M | F3: M | G3: 01:23:43 | H3: =(2-(G3/L$10))*100 -> 120.3936733 | J3: Number of runners | K3: Position | L3: Time (hr.min.sec)
A4: 3 | B4: 207 | C4: Jez Brown | D4: Buckley Runners | E4: M | F4: M40 | G4: 01:24:43 | H4: 119.4427716 | J4: =COUNT(B2:B201) -> 57 | K4: =K6+2 -> 31 | L4: =VLOOKUP(K4,A$2:G$201,7,FALSE) -> 01:46:14
A5: 4 | B5: 225 | C5: Mark Palmer | D5: Unattached | E5: M | F5: M50 | G5: 01:26:11 | H5: 118.0481156 | J5: Was it an even field? | K5: =K6+1 -> 30 | L5: =VLOOKUP(K5,A$2:G$201,7,FALSE) -> 01:46:00
A6: 5 | B6: 220 | C6: Nathan Brickman | D6: Belper Harriers | E6: M | F6: M | G6: 01:27:22 | H6: 116.9228819 | J6: =ISEVEN(J4) -> FALSE | K6: =IF(J6 = TRUE,(J4/2),((J4+1)/2)) -> 29 | L6: 01:45:56
A7: 6 | B7: 209 | C7: Iwan Morton | D7: Mynydd Du | E7: M | F7: M40 | G7: 01:29:44 | H7: 114.6724143 | K7: =K6-1 -> 28 | L7: 01:44:14
A8: 7 | B8: 236 | C8: Mark Lunt | D8: Westbury Harriers | E8: M | F8: M | G8: 01:32:23 | H8: 112.1525246 | K8: =K6-2 -> 27 | L8: =VLOOKUP(K8,A$2:G$201,7,FALSE) -> 01:43:25
A9: 8 | B9: 206 | C9: Niki Radnedge | D9: Unattached | E9: M | F9: M40 | G9: 01:33:14 | H9: 111.3442581 | K9: =IF(J5 = TRUE, K6-3, " ") ->  | L9: =VLOOKUP(K9,A7:G206,7,FALSE) -> 
A10: 9 | B10: 251 | C10: Daniel Lewis | D10: Wye Valley Runners | E10: M | F10: M40 | G10: 01:33:25 | H10: 111.1699261 | L10: =IF(J6=TRUE,AVERAGE(L4:L9),AVERAGE(L4:L8)) -> 01:45:09.800
A11: 10 | B11: 238 | C11: Gavin Brace | D11: Lliswerry Runners | E11: M | F11: M | G11: 01:33:50 | H11: 110.7737171
A12: 11 | B12: 212 | C12: Andy Pritchard | D12: Buckley Runners | E12: M | F12: M40 | G12: 01:34:01 | H12: 110.5993851
A13: 12 | B13: 230 | C13: Anthony Powell | D13: Maldwyn Harriers | E13: M | F13: M40 | G13: 01:34:44 | H13: 109.9179055
A14: 13 | B14: 214 | C14: Patrick Tudor | D14: Unattached | E14: M | F14: M | G14: 01:35:00 | H14: 109.6643317
A15: 14 | B15: 205 | C15: Dave Robson | D15: Ilkley Harriers | E15: M | F15: M40 | G15: 01:35:33 | H15: 109.1413357
A16: 15 | B16: 246 | C16: Helen Brown | D16: Mynydd Du | E16: F | F16: F40 | G16: 01:36:06 | H16: 108.6183397
A17: 16 | B17: 227 | C17: Mark Nelson | D17: Unattached | E17: M | F17: M40 | G17: 01:36:21 | H17: 108.3806143
A18: 17 | B18: 210 | C18: Hayley Evans | D18: Buckley Runners | E18: F | F18: F | G18: 01:36:29 | H18: 108.2538274
A19: 18 | B19: 232 | C19: Mike Johnson | D19: Unattached | E19: M | F19: M50 | G19: 01:36:47 | H19: 107.9685568
A20: 19 | B20: 241 | C20: Matthew Lawson | D20: Chepstow Harriers | E20: M | F20: M40 | G20: 01:37:04 | H20: 107.6991347
A21: 20 | B21: 257 | C21: Ben Jozefiak | D21: Eryri Harriers | E21: M | F21: M | G21: 01:37:23 | H21: 107.3980158
A22: 21 | B22: 219 | C22: John Aggleton | D22: MDC | E22: M | F22: M60 | G22: 01:38:17 | H22: 106.5422042
A23: 22 | B23: 237 | C23: Alex Banks | D23: Bristol & West Ac | E23: M | F23: M | G23: 01:39:38 | H23: 105.2584868
A24: 23 | B24: 221 | C24: James Woodier | D24: Mynydd Du | E24: M | F24: M | G24: 01:41:11 | H24: 103.7845891
A25: 24 | B25: 229 | C25: Michael Cope | D25: Mynydd Du | E25: M | F25: M40 | G25: 01:41:15 | H25: 103.7211956
A26: 25 | B26: 250 | C26: Crispin Flower | D26: Mynydd Du | E26: M | F26: M40 | G26: 01:41:20 | H26: 103.6419538
A27: 26 | B27: 218 | C27: Rhian Probert | D27: Mynydd Du | E27: F | F27: F40 | G27: 01:42:06 | H27: 102.9129291
A28: 27 | B28: 244 | C28: Nick Dallimore | D28: MDC | E28: M | F28: M60 | G28: 01:43:25 | H28: 101.6609084
A29: 28 | B29: 231 | C29: Emma Mcwilliams | D29: Mynydd Du | E29: F | F29: F | G29: 01:44:14 | H29: 100.8843386
A30: 29 | B30: 203 | C30: David Mullin | D30: Mercia Fell Runners | E30: M | F30: M40 | G30: 01:45:56 | H30: 99.26780564
A31: 30 | B31: 226 | C31: Richard Hudson | D31: Avon Valley Runners | E31: M | F31: M50 | G31: 01:46:00 | H31: 99.20441218
A32: 31 | B32: 255 | C32: Peter Dyer | D32: Avon Valley Runners | E32: M | F32: MU23 | G32: 01:46:14 | H32: 98.9825351
A33: 32 | B33: 253 | C33: Dave Place | D33: Unattached | E33: M | F33: M50 | G33: 01:46:19 | H33: 98.90329329
A34: 33 | B34: 201 | C34: Helen Marshall | D34: Aberdare | E34: F | F34: F | G34: 01:46:36 | H34: 98.63387112
A35: 34 | B35: 204 | C35: Kevin Hagley | D35: SWRR | E35: M | F35: M50 | G35: 01:46:42 | H35: 98.53878094
A36: 35 | B36: 259 | C36: Alice Bedwell | D36: MDC | E36: F | F36: F50 | G36: 01:46:47 | H36: 98.45953913
A37: 36 | B37: 202 | C37: Peter Sowerby | D37: Brecon Ac | E37: M | F37: M50 | G37: 01:47:27 | H37: 97.82560462
A38: 37 | B38: 258 | C38: Mal Evans | D38: Unattached | E38: M | F38: M50 | G38: 01:47:29 | H38: 97.79390789
A39: 38 | B39: 240 | C39: Andy Stott | D39: MDC | E39: M | F39: M50 | G39: 01:49:28 | H39: 95.90795271
A40: 39 | B40: 248 | C40: Pauol Sajgalik | D40: Tj Drhleny | E40: M | F40: M | G40: 01:49:55 | H40: 95.48004691
A41: 40 | B41: 217 | C41: Tim Edwards | D41: Unattached | E41: M | F41: M | G41: 01:52:03 | H41: 93.45145646
A42: 41 | B42: 254 | C42: Andy Horlick | D42: Forest Of Dean Ac | E42: M | F42: M40 | G42: 01:52:09 | H42: 93.35636629
A43: 42 | B43: 223 | C43: Rona Davies | D43: Mynydd Du | E43: F | F43: F50 | G43: 01:53:15 | H43: 92.31037434
A44: 43 | B44: 249 | C44: Naomi Law | D44: Mynydd Du | E44: F | F44: F40 | G44: 01:53:47 | H44: 91.80322673
A45: 44 | B45: 234 | C45: Sasha Habgood | D45: MDC | E45: F | F45: F40 | G45: 01:57:16 | H45: 88.49091889
A46: 45 | B46: 213 | C46: Hugh Morgan-Jones | D46: FRA | E46: M | F46: M50 | G46: 01:57:50 | H46: 87.95207455
A47: 46 | B47: 215 | C47: David York | D47: Tattenhall | E47: M | F47: M50 | G47: 02:02:38 | H47: 83.38774605
A48: 47 | B48: 208 | C48: Gary Gunner | D48: Croft Ambrey | E48: M | F48: M70+ | G48: 02:02:45 | H48: 83.27680751
A49: 48 | B49: 222 | C49: Bev Tucker | D49: Mynydd Du | E49: F | F49: F50 | G49: 02:02:57 | H49: 83.08662715
A50: 49 | B50: 233 | C50: Celia Mills | D50: Unattached | E50: F | F50: F50 | G50: 02:03:39 | H50: 82.42099591
A51: 50 | B51: 216 | C51: Joc Dodd | D51: Chepstow Harriers | E51: F | F51: F60 | G51: 02:05:19 | H51: 80.83615962
A52: 51 | B52: 256 | C52: Marc Recopuille | D52: Unattached | E52: M | F52: M40 | G52: 02:06:05 | H52: 80.10713493
A53: 52 | B53: 252 | C53: John Kerley | D53: As Chamonix | E53: M | F53: M60 | G53: 02:06:07 | H53: 80.07543821
A54: 53 | B54: 245 | C54: Caroline Dallimore | D54: MDC | E54: F | F54: F60 | G54: 02:08:40 | H54: 77.65063869
A55: 54 | B55: 243 | C55: Clare Dallimore | D55: MDC | E55: F | F55: F | G55: 02:08:41 | H55: 77.63479033
A56: 55 | B56: 239 | C56: Paul Symons | D56: Unattached | E56: M | F56: M50 | G56: 02:14:13 | H56: 72.37313386
A57: 56 | B57: 224 | C57: John Nash | D57: Chepstow Harriers | E57: M | F57: M50 | G57: 02:24:32 | H57: 62.56299724
A58: 57 | B58: 228 | C58: Wendy Sharpe-Nash | D58: Chepstow Harriers | E58: F | F58: F50 | G58: 02:24:33 | H58: 62.54714888

Sheet Pen Y Fan
A1: Position | B1: Number | C1: Name | D1: Club | E1: Gender | F1: Category | G1: Time | H1: Points
A2: 1 | B2: Unknown | C2: Michael Corrales | D2: North Wales Road Runners | E2: M | F2: M | G2: 00:36:23 | H2: =(2-(G2/L$10))*100 -> 128.2930034
A3: =A2+1 -> 2 | B3: Unknown | C3: Dan Doherty | D3: Mynydd Du | E3: M | F3: M | G3: 00:36:32 | H3: =(2-(G3/L$10))*100 -> 127.9973722 | J3: Number of runners | K3: Position | L3: Time (min.sec)
A4: =A3+1 -> 3 | B4: Unknown | C4: Samuel Bevan | D4: Basingstoke & Mid Hants AC | E4: M | F4: M | G4: 00:37:35 | H4: 125.9279536 | J4: =COUNT(A2:A201) -> 96 | K4: =K6+2 -> 50 | L4: =VLOOKUP(K4,A2:G201,7,FALSE) -> 00:51:42
A5: 4 | B5: Unknown | C5: Billy Starling | D5: Mercia Fell Runners | E5: M | F5: M | G5: 00:38:35 | H5: 123.9570787 | J5: =ISEVEN(J4) -> TRUE | K5: =K6+1 -> 49 | L5: =VLOOKUP(K5,A3:G202,7,FALSE) -> 00:50:51
A6: 5 | B6: Unknown | C6: Jez Brown | D6: Buckley Runners | E6: M | F6: M40 | G6: 00:38:46 | H6: 123.5957517 | K6: =IF(J5 = TRUE,(J4/2),((J4+1)/2)) -> 48 | L6: 00:50:50
A7: 6 | B7: Unknown | C7: Jim Webb | D7: Team Bath AC | E7: M | F7: M | G7: 00:39:46 | H7: 121.6248768 | K7: =K6-1 -> 47 | L7: 00:50:39
A8: 7 | B8: Unknown | C8: Andrew Reeves | D8: Serpentine Running Club | E8: M | F8: M40 | G8: 00:40:48 | H8: 119.5883061 | K8: =K6-2 -> 46 | L8: 00:50:19
A9: 8 | B9: Unknown | C9: David Lawson | D9: MDC | E9: M | F9: M | G9: 00:41:56 | H9: 117.354648 | K9: =IF(J5 = TRUE, K6-3, Na) -> 45 | L9: 00:50:05
A10: 9 | B10: Unknown | C10: Hopcyn Matthews | D10: Unattached | E10: M | F10: M | G10: 00:42:14 | H10: 116.7633855 | L10: =IF(J5=TRUE,AVERAGE(L4:L9),AVERAGE(L4:L8)) -> 00:50:44.333
A11: 10 | B11: Unknown | C11: Christian Poulton | D11: Cambridge Harriers | E11: M | F11: M50 | G11: 00:42:17 | H11: 116.6648418
A12: 11 | B12: Unknown | C12: Llewelyn Lloyd | D12: Sarn Helen | E12: M | F12: M | G12: 00:42:31 | H12: 116.204971
A13: 12 | B13: Unknown | C13: Joe Starling | D13: Mercia Fell Runners | E13: M | F13: M | G13: 00:42:34 | H13: 116.1064272
A14: 13 | B14: Unknown | C14: Mark Hopkinson | D14: Unattached | E14: M | F14: M | G14: 00:42:38 | H14: 115.9750356
A15: 14 | B15: Unknown | C15: Tarbo Fukazawa | D15: Cambridge Harriers | E15: M | F15: M | G15: 00:43:00 | H15: 115.2523815
A16: 15 | B16: Unknown | C16: Daniel Nettelfield | D16: South Molton Strugglers | E16: M | F16: M | G16: 00:43:01 | H16: 115.2195336
A17: 16 | B17: Unknown | C17: Thomas Mollekin | D17: Mynydd Du | E17: M | F17: M | G17: 00:43:21 | H17: 114.5625753
A18: 17 | B18: Unknown | C18: Mark Lunt | D18: Westbury Harriers | E18: M | F18: M | G18: 00:43:32 | H18: 114.2012482
A19: 18 | B19: Unknown | C19: Nick Biggs | D19: Vegan Runners | E19: M | F19: M40 | G19: 00:43:55 | H19: 113.4457462
A20: 19 | B20: Unknown | C20: Anthony Powell | D20: Maldwyn Harriers | E20: M | F20: M40 | G20: 00:44:06 | H20: 113.0844191
A21: 20 | B21: Unknown | C21: Mark Bevan | D21: Basingstoke & Mid Hants AC | E21: M | F21: M50 | G21: 00:45:05 | H21: 111.1463922
A22: 21 | B22: Unknown | C22: Helen Brown | D22: Mynydd Du | E22: F | F22: F40 | G22: 00:45:16 | H22: 110.7850651
A23: 22 | B23: Unknown | C23: Andrew Pritchard | D23: Buckley Runners | E23: M | F23: M40 | G23: 00:45:18 | H23: 110.7193693
A24: 23 | B24: Unknown | C24: Edward Davies | D24: Mercia Fell Runners | E24: M | F24: M60 | G24: 00:45:36 | H24: 110.1281069
A25: 24 | B25: Unknown | C25: James Gillanders | D25: Serpentine Running Club | E25: M | F25: M | G25: 00:45:38 | H25: 110.062411
A26: 25 | B26: Unknown | C26: John Keenan | D26: London Frontrunners | E26: M | F26: M40 | G26: 00:45:42 | H26: 109.9310194
A27: 26 | B27: Unknown | C27: Jonny Ashley | D27: Unattached | E27: M | F27: M | G27: 00:45:55 | H27: 109.5039965
A28: 27 | B28: Unknown | C28: Malcolm O'Brien | D28: Unattached | E28: M | F28: M | G28: 00:46:24 | H28: 108.551407
A29: 28 | B29: Unknown | C29: Evan Davies | D29: Unattached | E29: M | F29: M | G29: 00:46:24 | H29: 108.551407
A30: 29 | B30: Unknown | C30: John Aggleton | D30: MDC | E30: M | F30: M60 | G30: 00:46:47 | H30: 107.795905
A31: 30 | B31: Unknown | C31: Jonathan Moscrop | D31: Serpentine Running Club | E31: M | F31: M40 | G31: 00:47:03 | H31: 107.2703383
A32: 31 | B32: Unknown | C32: Anderson Hirst | D32: Unattached | E32: M | F32: M50 | G32: 00:47:04 | H32: 107.2374904
A33: 32 | B33: Unknown | C33: Nigel Eldridge | D33: Ryde Harriers | E33: M | F33: M40 | G33: 00:47:04 | H33: 107.2374904
A34: 33 | B34: Unknown | C34: Paul Dodd | D34: Chepstow Harriers | E34: M | F34: M50 | G34: 00:47:06 | H34: 107.1717946
A35: 34 | B35: Unknown | C35: Gemma Moore | D35: North Wales Road Runners | E35: F | F35: F | G35: 00:47:07 | H35: 107.1389467
A36: 35 | B36: Unknown | C36: Hayley Evans | D36: Buckley Runners | E36: F | F36: F | G36: 00:47:22 | H36: 106.646228
A37: 36 | B37: Unknown | C37: Helen Marshall | D37: Aberystwyth AC | E37: F | F37: F | G37: 00:48:10 | H37: 105.0695281
A38: 37 | B38: Unknown | C38: Rodney Parker | D38: Ryde Harriers | E38: M | F38: M40 | G38: 00:48:19 | H38: 104.7738969
A39: 38 | B39: Unknown | C39: Harry Rann | D39: Godshill Massive | E39: M | F39: M | G39: 00:48:33 | H39: 104.3140261
A40: 39 | B40: Unknown | C40: Richard Love | D40: Mercia Fell Runners | E40: M | F40: M50 | G40: 00:48:50 | H40: 103.7556115
A41: 40 | B41: Unknown | C41: Kevin Hagley | D41: South West Road Runners | E41: M | F41: M50 | G41: 00:48:54 | H41: 103.6242199
A42: 41 | B42: Unknown | C42: Paul Tucker | D42: Mynydd Du | E42: M | F42: M50 | G42: 00:48:59 | H42: 103.4599803
A43: 42 | B43: Unknown | C43: Rhian Probert | D43: Mynydd Du | E43: F | F43: F40 | G43: 00:49:08 | H43: 103.1643491
A44: 43 | B44: Unknown | C44: Gary Pearson | D44: Croft Ambrey | E44: M | F44: M40 | G44: 00:49:47 | H44: 101.8832804
A45: 44 | B45: Unknown | C45: Dave Clarke | D45: Unattached | E45: M | F45: M | G45: 00:49:53 | H45: 101.6861929
A46: 45 | B46: Unknown | C46: Clem Dixon | D46: Cambridge Harriers | E46: M | F46: M50 | G46: 00:50:05 | H46: 101.292018
A47: 46 | B47: Unknown | C47: Martin Green | D47: Maldwyn Harriers | E47: M | F47: M60 | G47: 00:50:19 | H47: 100.8321472
A48: 47 | B48: Unknown | C48: Julian Boon | D48: Forest of Dean AC | E48: M | F48: M40 | G48: 00:50:39 | H48: 100.1751889
A49: 48 | B49: Unknown | C49: Jonathan Smith | D49: Ranelagh Harriers | E49: M | F49: M | G49: 00:50:50 | H49: 99.81386182
A50: 49 | B50: Unknown | C50: Andrew Noble | D50: Folkestone RC | E50: M | F50: M50 | G50: 00:50:51 | H50: 99.78101391
A51: 50 | B51: Unknown | C51: Paul Kelly | D51: Durham Fell Runners | E51: M | F51: M60 | G51: 00:51:42 | H51: 98.10577028
A52: 51 | B52: Unknown | C52: Simon Blease | D52: Brycheiniog | E52: M | F52: M50 | G52: 00:52:19 | H52: 96.89039746
A53: 52 | B53: Unknown | C53: Rona Davies | D53: Mynydd Du | E53: F | F53: F50 | G53: 00:52:41 | H53: 96.16774335
A54: 53 | B54: Unknown | C54: Julian Williams | D54: London Frontrunners | E54: M | F54: M40 | G54: 00:52:42 | H54: 96.13489543
A55: 54 | B55: Unknown | C55: James Morrison | D55: Tiverton Harriers | E55: M | F55: M40 | G55: 00:53:09 | H55: 95.24800175
A56: 55 | B56: Unknown | C56: David Place | D56: Unattached | E56: M | F56: M50 | G56: 00:53:32 | H56: 94.49249973
A57: 56 | B57: Unknown | C57: Ged Murphy | D57: Unattached | E57: M | F57: M40 | G57: 00:54:07 | H57: 93.34282273
A58: 57 | B58: Unknown | C58: Trevor McAlister | D58: Ryde Harriers | E58: M | F58: M | G58: 00:54:24 | H58: 92.78440819
A59: 58 | B59: Unknown | C59: Richard Quinn | D59: Unattached | E59: M | F59: M | G59: 00:54:50 | H59: 91.93036242
A60: 59 | B60: Unknown | C60: Alan Stanley | D60: Unattached | E60: M | F60: M50 | G60: 00:55:01 | H60: 91.56903537
A61: 60 | B61: Unknown | C61: Sasha Habgood | D61: MDC | E61: F | F61: F40 | G61: 00:55:18 | H61: 91.01062083
A62: 61 | B62: Unknown | C62: Natalie Taylor | D62: Mynydd Du | E62: F | F62: F | G62: 00:55:34 | H62: 90.4850542
A63: 62 | B63: Unknown | C63: Chris Hall | D63: Stubbington Green Runners | E63: M | F63: M50 | G63: 00:55:45 | H63: 90.12372714
A64: 63 | B64: Unknown | C64: John Morris | D64: Buckley Runners | E64: M | F64: M70 | G64: 00:56:15 | H64: 89.13828972
A65: 64 | B65: Unknown | C65: James Relph | D65: London Frontrunners | E65: M | F65: M | G65: 00:56:38 | H65: 88.38278769
A66: 65 | B66: Unknown | C66: Sarah Pemberton | D66: Serpentine Running Club | E66: F | F66: F | G66: 00:56:44 | H66: 88.18570021
A67: 66 | B67: Unknown | C67: Sophie Smith | D67: Bournville Harriers | E67: F | F67: F | G67: 00:56:46 | H67: =(2-(G67/L$10))*100 -> 88.12000438
A68: =A67+1 -> 67 | B68: Unknown | C68: Ian Morgan | D68: Forest of Dean AC | E68: M | F68: M | G68: 00:57:16 | H68: 87.13456695
A69: 68 | B69: Unknown | C69: Graham Maynard | D69: Cambridge Harriers | E69: M | F69: M50 | G69: 00:57:29 | H69: 86.70754407
A70: 69 | B70: Unknown | C70: Matthew Mason | D70: Ely Runners | E70: M | F70: M40 | G70: 00:58:11 | H70: 85.32793168
A71: 70 | B71: Unknown | C71: Nick Ashley | D71: Unattached | E71: M | F71: M50 | G71: 00:58:53 | H71: 83.94831928
A72: 71 | B72: Unknown | C72: Ian Marshall | D72: Cambridge Harriers | E72: M | F72: M60 | G72: 00:58:55 | H72: 83.88262345
A73: 72 | B73: Unknown | C73: Peter McDonald | D73: Unattached | E73: M | F73: M | G73: 00:59:19 | H73: 83.09427351
A74: 73 | B74: Unknown | C74: John Jaspers | D74: Hay Hotfooters | E74: M | F74: M40 | G74: 00:59:25 | H74: 82.89718603
A75: 74 | B75: Unknown | C75: Daniel Seymour | D75: Unattached | E75: M | F75: M | G75: 01:00:13 | H75: 81.32048615
A76: 75 | B76: Unknown | C76: David York | D76: Tattenhall Runners | E76: M | F76: M50 | G76: 01:00:53 | H76: 80.00656958
A77: 76 | B77: Unknown | C77: Neil Williams | D77: Mynydd Du | E77: M | F77: M | G77: 01:00:01 | H77: 81.71466112
A78: 77 | B78: Unknown | C78: John Price | D78: Hay Hotfooters | E78: M | F78: M60 | G78: 01:00:04 | H78: 81.61611738
A79: 78 | B79: Unknown | C79: Gary Gunner | D79: Croft Ambrey | E79: M | F79: M70 | G79: 01:00:05 | H79: 81.58326946
A80: 79 | B80: Unknown | C80: Anthony Howells | D80: Unattached | E80: M | F80: M50 | G80: 01:01:09 | H80: 79.48100296
A81: 80 | B81: Unknown | C81: Anna Lawson | D81: Unattached | E81: F | F81: F | G81: 01:01:17 | H81: 79.21821964
A82: 81 | B82: Unknown | C82: Andrew Law | D82: Plumstead Runners | E82: M | F82: M40 | G82: 01:01:18 | H82: 79.18537173
A83: 82 | B83: Unknown | C83: Karlwinder Hayer | D83: London Frontrunners | E83: M | F83: M40 | G83: 01:01:41 | H83: 78.4298697
A84: 83 | B84: Unknown | C84: William Gold | D84: Unattached | E84: M | F84: M | G84: 01:02:46 | H84: 76.29475528
A85: 84 | B85: Unknown | C85: Les Williams | D85: Eryri | E85: M | F85: M70 | G85: 01:03:07 | H85: 75.60494909
A86: 85 | B86: Unknown | C86: Joc Dodd | D86: Chepstow Harriers | E86: F | F86: F60 | G86: 01:04:47 | H86: 72.32015767
A87: 86 | B87: Unknown | C87: Badar Al Raisi | D87: London Frontrunners | E87: M | F87: M | G87: 01:05:01 | H87: 71.86028687
A88: 87 | B88: Unknown | C88: Tom Davies | D88: Croft Ambrey | E88: M | F88: M60 | G88: 01:05:42 | H88: 70.51352239
A89: 88 | B89: Unknown | C89: Tosh Simpkin | D89: Unattached | E89: M | F89: M40 | G89: 01:05:46 | H89: 70.38213073
A90: 89 | B90: Unknown | C90: Ellie Salisbury | D90: Eryri | E90: F | F90: F50 | G90: 01:05:53 | H90: 70.15219534
A91: 90 | B91: Unknown | C91: Sean McNally | D91: Unattached | E91: M | F91: M | G91: 01:05:58 | H91: 69.98795576
A92: 91 | B92: Unknown | C92: Adrian Moir | D92: MDC | E92: M | F92: M50 | G92: 01:06:54 | H92: 68.14847257
A93: 92 | B93: Unknown | C93: Andrew Leah | D93: Ryde Harriers | E93: M | F93: M50 | G93: 01:07:10 | H93: 67.62290595
A94: 93 | B94: Unknown | C94: Tim Peachey | D94: Unattached | E94: M | F94: M50 | G94: 01:10:58 | H94: 60.13358152
A95: 94 | B95: Unknown | C95: Margaret Oliver | D95: Eryri | E95: F | F95: F60 | G95: 01:12:46 | H95: 56.58600679
A96: 95 | B96: Unknown | C96: Claire Campbell | D96: Glossopdale Harriers | E96: F | F96: F40 | G96: 01:14:27 | H96: 53.26836746
A97: 96 | B97: Unknown | C97: Rosie Eldridge | D97: Ryde Harriers | E97: F | F97: F | G97: 01:14:29 | H97: 53.20267163

Sheet Fan Brycheiniog
A1: Position | B1: Number | C1: Name | D1: Club | E1: Gender | F1: Category | G1: Time | H1: Points
A2: 1 | B2: 349 | C2: Dan Doherty | D2: Mynydd Du | E2: M | F2: M | G2: 01:15:38.790 | H2: =(2-(G2/L$10))*100 -> 127.7170467
A3: =A2+1 -> 2 | B3: 315 | C3: Tom Mollekin | D3: Mynydd Du | E3: M | F3: M | G3: 01:27:41.120 | H3: =(2-(G3/L$10))*100 -> 116.2135081 | J3: Number of runners | K3: Position | L3: Time (min.sec)
A4: =A3+1 -> 3 | B4: 314 | C4: Alun Wood | D4: Mynydd Du | E4: M | F4: M | G4: 01:30:27.780 | H4: 113.5593477 | J4: =COUNT(A2:A201) -> 38 | K4: =K6+2 -> 21 | L4: =VLOOKUP(K4,A2:G201,7,FALSE) -> 01:45:52.720
A5: 4 | B5: 334 | C5: Jez Brown | D5: Buckley Runners | E5: M | F5: M40 | G5: 01:31:49.400 | H5: 112.2595002 | J5: =ISEVEN(J4) -> TRUE | K5: =K6+1 -> 20 | L5: 01:45:19.040
A6: 5 | B6: 346 | C6: Alex Lewis | D6: Neath Harriers | E6: M | F6: M | G6: 01:32:58.400 | H6: 111.1606338 | K6: =IF(J5 = TRUE,(J4/2),((J4+1)/2)) -> 19 | L6: 01:44:21.260
A7: 6 | B7: 343 | C7: Matthew Lawson | D7: Chepstow Harriers | E7: M | F7: M40 | G7: 01:36:04.710 | H7: 108.1935353 | K7: =K6-1 -> 18 | L7: 01:44:18.590
A8: 7 | B8: 332 | C8: Andy Creber | D8: Chepstow Harriers | E8: M | F8: M50 | G8: 01:36:21.590 | H8: 107.9247112 | K8: =K6-2 -> 17 | L8: 01:44:10.980
A9: 8 | B9: 327 | C9: Andy Pritchard | D9: Buckley Runners | E9: M | F9: M40 | G9: 01:36:28.200 | H9: 107.819443 | K9: =IF(J5 = TRUE, K6-3, Na) -> 16 | L9: 01:43:52.600
A10: 9 | B10: 326 | C10: Hayley Evans | D10: Buckley Runners | E10: F | F10: F | G10: 01:36:33.910 | H10: 107.7285078 | L10: =IF(J5=TRUE,AVERAGE(L4:L9),AVERAGE(L4:L8)) -> 01:44:39.198
A11: 10 | B11: 324 | C11: Andy Vaudin | D11: Unattached | E11: M | F11: M50 | G11: 01:36:43.480 | H11: 107.5760998
A12: 11 | B12: 318 | C12: Andy Horlick | D12: Forest Of Dean Ac | E12: M | F12: M40 | G12: 01:36:50.590 | H12: 107.4628688
A13: 12 | B13: 325 | C13: Niki Morgan | D13: Mynydd Du | E13: F | F13: F50 | G13: 01:38:50.990 | H13: 105.5454266
A14: 13 | B14: 329 | C14: Nick Dallimore | D14: MDC | E14: M | F14: M60 | G14: 01:39:24.160 | H14: 105.0171744
A15: 14 | B15: 330 | C15: Rhian Probert | D15: Mynydd Du | E15: F | F15: F40 | G15: 01:39:49.440 | H15: 104.6145753
A16: 15 | B16: 333 | C16: Pauline Linton | D16: FRA | E16: F | F16: F50 | G16: 01:43:21.530 | H16: 101.2369148
A17: 16 | B17: 313 | C17: James Woodier | D17: Mynydd Du | E17: M | F17: M | G17: 01:43:52.600 | H17: 100.7421064
A18: 17 | B18: 322 | C18: Martin Carter | D18: Hay Hotfooters | E18: M | F18: M50 | G18: 01:44:10.980 | H18: 100.4493939
A19: 18 | B19: 344 | C19: Sasha Habgood | D19: MDC | E19: F | F19: F40 | G19: 01:44:18.590 | H19: 100.3282001
A20: 19 | B20: 345 | C20: Andy Stott | D20: MDC | E20: M | F20: M50 | G20: 01:44:21.260 | H20: 100.2856787
A21: 20 | B21: 320 | C21: David Mullin | D21: Mercia Fell Runners | E21: M | F21: M40 | G21: 01:45:19.040 | H21: 99.36549756
A22: 21 | B22: 337 | C22: Jon Roberts | D22: Unattached | E22: M | F22: M | G22: 01:45:52.720 | H22: 98.82912336
A23: 22 | B23: 341 | C23: Andrew Blackmore | D23: MDC | E23: M | F23: M50 | G23: 01:50:28.270 | H23: 94.44082432
A24: 23 | B24: 339 | C24: Martin Scrivens | D24: Unattached | E24: M | F24: M | G24: 01:50:55.650 | H24: 94.0047814
A25: 24 | B25: 347 | C25: David York | D25: Tattenhall Runners | E25: M | F25: M50 | G25: 01:54:55.170 | H25: 90.19028172
A26: 25 | B26: 342 | C26: Rona Davies | D26: Mynydd Du | E26: F | F26: F50 | G26: 01:56:04.450 | H26: 89.08695616
A27: 26 | B27: 340 | C27: Mark Scrivens | D27: Monross Trailblazers | E27: M | F27: M40 | G27: 01:56:11.420 | H27: 88.97595473
A28: 27 | B28: 348 | C28: Tim Watkins | D28: Forest Of Dean Ac | E28: M | F28: M | G28: 01:57:42.360 | H28: 87.52768068
A29: 28 | B29: 350 | C29: Julian Boon | D29: Forest Of Dean Ac | E29: M | F29: M40 | G29: 02:01:10.510 | H29: 84.21276708
A30: 29 | B30: 317 | C30: John Jaspers | D30: Unattached | E30: M | F30: M40 | G30: 02:04:56.400 | H30: 80.61533333
A31: 30 | B31: 335 | C31: Nathanial Swan | D31: Unattached | E31: M | F31: M | G31: 02:05:22.580 | H31: 80.19840112
A32: 31 | B32: 319 | C32: Karen Elvers | D32: MDC | E32: F | F32: F40 | G32: 02:07:12.260 | H32: 78.45168133
A33: 32 | B33: 328 | C33: Caroline Dallimore | D33: MDC | E33: F | F33: F60 | G33: 02:07:21.030 | H33: 78.31201382
A34: 33 | B34: 338 | C34: Dawn Louise Roberts | D34: Unattached | E34: F | F34: F | G34: 02:07:25.890 | H34: 78.23461541
A35: 34 | B35: 323 | C35: Gareth Jones | D35: MDC | E35: M | F35: M60 | G35: 02:09:50.340 | H35: 75.93416251
A36: 35 | B36: 331 | C36: Les Williams | D36: Rhenwyr Eryri | E36: M | F36: MV70 | G36: 02:12:10.890 | H36: 73.69581945
A37: 36 | B37: 316 | C37: Paul Symons | D37: Unattached | E37: M | F37: M50 | G37: 02:12:14.340 | H37: 73.64087613
A38: 37 | B38: 321 | C38: John Price | D38: Hay Hotfooters | E38: M | F38: M60 | G38: 02:18:11.770 | H38: 67.94858898
A39: 38 | B39: 336 | C39: Richard Cronin | D39: MDC | E39: M | F39: M | G39: 02:18:24.440 | H39: 67.74681163

Sheet Llyn Y Fan
A1: Position | B1: Number | C1: Name | D1: Club | E1: Sex | F1: Category | G1: Time | H1: Points | I1: =AVERAGE(G4:G8) -> 
A2: 1
A3: =A2+1 -> 2 | J3: Number of runners | K3: Position | L3: Time (min.sec)
A4: =A3+1 -> 3 | J4: =COUNT(B2:B201) -> 0 | K4: =K6+2 -> 2 | L4: =VLOOKUP(K4,A2:G201,7,FALSE) -> 00:00:00
A5: 4 | J5: =ISEVEN(J4) -> TRUE | K5: =K6+1 -> 1
A6: 5 | K6: =IF(J5 = TRUE,(J4/2),((J4+1)/2)) -> 0
A7: 6 | K7: =K6-1 -> -1
A8: 7 | K8: =K6-2 -> -2
A9: 8 | K9: =IF(J5 = TRUE, K6-3, Na) -> -3
A10: 9 | L10: =IF(J5=TRUE,AVERAGE(L4:L9),AVERAGE(L4:L8)) -> 
A11: 10
A12: 11
A13: 12
A14: 13
A15: 14
A16: 15
A17: 16
A18: 17
A19: 18
A20: 19
A21: 20
A22: 21
A23: 22
A24: 23
A25: 24
A26: 25
A27: 26
A28: 27
A29: 28
A30: 29
A31: 30
A32: 31
A33: 32
A34: 33
A35: 34
A36: 35
A37: 36
A38: 37
A39: 38
A40: 39
A41: 40
A42: 41
A43: 42
A44: 43
A45: 44
A46: 45
A47: 46
A48: 47
A49: 48
A50: 49
A51: 50
A52: 51
A53: 52
A54: 53
A55: 54
A56: 55
A57: 56
A58: 57
A59: 58
A60: 59
A61: 60
A62: 61
A63: 62
A64: 63
A65: 64
A66: 65
A67: 66
A68: =A67+1 -> 67
A69: 68
A70: 69
A71: 70
A72: 71
A73: 72
A74: 73
A75: 74
A76: 75
A77: 76
A78: 77
A79: 78
A80: 79
A81: 80
A82: 81
A83: 82
A84: 83
A85: 84
A86: 85
A87: 86
A88: 87
A89: 88
A90: 89
